DATE OF TRANSACTION,LA DEPARTMENT INCURRING SPEND,BENEFICIARY,GROSS AMOUNT,SUMMARY OF PURPOSEOF SPEND,MERCHANT CATEGORY
28/08/2017,LIBERTAS COMMUNITY HOME,HARE & HOUNDS,34.68,REFRESHMENT COSTS,"BAR,LOUNGE,DISCO,NIGHTCLUB,TAVERN-ALCOHOLIC DRINKS"
28/08/2017,WOODLANDS COMMUNITY HOME,MCDONALDS LAS TORVISCA,46.89,PURCHASE OF FOOD (RAW MATERIALS),FAST FOOD RESTAURANTS
28/08/2017,WOODLANDS COMMUNITY HOME,BK ADEJE GRAN SUR,6.31,PURCHASE OF FOOD (RAW MATERIALS),"EATING PLACES, RESTAURANTS"
28/08/2017,HILLSIDE,SAINSBURYS 0675,4.94,PURCHASE OF FOOD (RAW MATERIALS),"GROCERY STORES, SUPERMARKETS"
28/08/2017,HILLSIDE,SAINSBURYS 0675,19.51,PURCHASE OF FOOD (RAW MATERIALS),"GROCERY STORES, SUPERMARKETS"
28/08/2017,DOWNLANDS COUNTRYSIDE PROJECT,STARLANE FUEL SERVICES,48.27,EQUIPMENT,SERVICE STATIONS WITH OR WITHOUT ANCILLARY SERVICE
28/08/2017,WOODLANDS COMMUNITY HOME,SPECIAL PRICES AUTOS R,112.98,HIRE OF VEHICLES,AUTOMOBILE RENTAL AGENCY-NOT ELSEWHERE CLASSIFIED
28/08/2017,WOODLANDS COMMUNITY HOME,SPECIAL PRICES AUTOS R,112.98,HIRE OF VEHICLES,AUTOMOBILE RENTAL AGENCY-NOT ELSEWHERE CLASSIFIED
28/08/2017,WOODLANDS COMMUNITY HOME,MERCADONA C.C.GRAN SUR,152.81,PURCHASE OF FOOD (RAW MATERIALS),"GROCERY STORES, SUPERMARKETS"
28/08/2017,WOODLANDS COMMUNITY HOME,FLYING HORSE,92.80,PURCHASE OF FOOD (RAW MATERIALS),"EATING PLACES, RESTAURANTS"
28/08/2017,HILLSIDE,SAINSBURYS SACAT 0784,16.98,PURCHASE OF FOOD (RAW MATERIALS),"GROCERY STORES, SUPERMARKETS"
28/08/2017,HILLSIDE,LIDL UK,.99,PURCHASE OF FOOD (RAW MATERIALS),"GROCERY STORES, SUPERMARKETS"
28/08/2017,HILLSIDE,LIDL UK,36.60,PURCHASE OF FOOD (RAW MATERIALS),"GROCERY STORES, SUPERMARKETS"
28/08/2017,LIBERTAS COMMUNITY HOME,TESCO STORES 5837,12.00,REFRESHMENT COSTS,"GROCERY STORES, SUPERMARKETS"
28/08/2017,BURBANK COMMUNITY HOME,LEIGH DELAMERE N/E BK,36.45,PURCHASE OF FOOD (RAW MATERIALS),"EATING PLACES, RESTAURANTS"
28/08/2017,BURBANK COMMUNITY HOME,LEIGH DELAMERE N/E BK,8.99,PURCHASE OF FOOD (RAW MATERIALS),"EATING PLACES, RESTAURANTS"
28/08/2017,MALLOW CRESCENT,TESCO STORE 2590,8.40,PURCHASE OF FOOD (RAW MATERIALS),"GROCERY STORES, SUPERMARKETS"
28/08/2017,MALLOW CRESCENT,TESCO STORE 2590,92.92,PURCHASE OF FOOD (RAW MATERIALS),"GROCERY STORES, SUPERMARKETS"
28/08/2017,CHEYNE WALK COMMUNITY HOME,AMAZON EU,26.98,EQUIPMENT,DIRECT MARKETING-OTHER DIRECT MARKETERS/NOT ELSEW.
28/08/2017,CHEYNE WALK COMMUNITY HOME,FREEPRINTS,21.19,LIBRARY RESOURCES,"PHOTO DEVELOPING, PHOTOFINISHING LABORATORIES"
28/08/2017,LIBERTAS COMMUNITY HOME,WIGHTLINK FERRIES,4.00,EDUC VISITS/HOLS/CAMPS/TOYS,"TRANSPRTN-SUBRBN & LOCAL COMTR PSNGR, INCL FERRIES"
28/08/2017,EXTENDED HOPE,TESCO STORE 2590,19.36,PURCHASE OF FOOD (RAW MATERIALS),"GROCERY STORES, SUPERMARKETS"
28/08/2017,EXTENDED HOPE,TESCO STORE 2590,99.14,PURCHASE OF FOOD (RAW MATERIALS),"GROCERY STORES, SUPERMARKETS"
28/08/2017,COMMUNICATIONS TEAM,ITUNES.COM/BILL,17.98,SUBSCRIPTIONS,RECORD SHOPS
28/08/2017,COMMUNICATIONS - SURREY MATTERS,SPARKOL,21.60,SUBSCRIPTIONS,COMPUTER SOFTWARE STORES
28/08/2017,MALLOW CRESCENT,SAINSBURYS TO YOU 0652,7.80,PURCHASE OF FOOD (RAW MATERIALS),"GROCERY STORES, SUPERMARKETS"
28/08/2017,MALLOW CRESCENT,SAINSBURYS TO YOU 0652,114.47,PURCHASE OF FOOD (RAW MATERIALS),"GROCERY STORES, SUPERMARKETS"
28/08/2017,FAIRCROFT COMMUNITY HOME,TESCO STORE 2812,212.33,PURCHASE OF FOOD (RAW MATERIALS),"GROCERY STORES, SUPERMARKETS"
28/08/2017,COVEHAM,AMAZON UK MARKETPLACE,12.25,EQUIPMENT,BOOK STORES
29/08/2017,SW LOOKED AFTER TEAM,FLYBE BSP 2675683895508,241.77,MISCELLANEOUS STAFF TRAVEL,"AIR CARRIERS, AIRLINES-NOT ELSEWHERE CLASSIFIED"
29/08/2017,DEVELOPMENT TEAM,GITHUB.COM  6BH7W,2.77,COMPUTER SERVICES,"COMPUTERS, COMPUTER PERIPHERAL EQUIPMENT, SOFTWARE"
29/08/2017,HOPE SERVICE - WEST,AMAZON.CO.UK,3.99,CURRICULUM CONSUMABLES,BOOK STORES
29/08/2017,CSAF 50+,PAYPAL  SPRINTPRINT,44.82,STATIONERY,CHEMICALS/ALLIED PRODUCTS NOT ELSEWHERE CLASSIFIED
29/08/2017,SURREY HILLS AONB,INCORPORATE VENUES,46.00,SUBSISTENCE AND CONFERENCE EXPENSES,PROFESSIONAL SERVICES-NOT ELSEWHERE CLASSIFIED
29/08/2017,SOLD CATERING,MILK & MORE OFFLINE,56.16,PURCHASE OF FOOD (RAW MATERIALS),"MISC FOOD STORE-CONVENIENCE,MRKT,SPLTY,VENDNG MACS"
29/08/2017,TRANSPORT,BUCK & HICKMAN,214.16,OPERATIONAL FIRE EQUIPMENT,HARDWARE EQUIPMENT AND SUPPLIES
29/08/2017,BURBANK COMMUNITY HOME,SAINSBURYS TO YOU 0686,331.43,PURCHASE OF FOOD (RAW MATERIALS),"GROCERY STORES, SUPERMARKETS"
29/08/2017,BURBANK COMMUNITY HOME,SAINSBURYS TO YOU 0686,-1.50,PURCHASE OF FOOD (RAW MATERIALS),"GROCERY STORES, SUPERMARKETS"
29/08/2017,RUTH HOUSE,HOMEBASE LTD 050,90.99,EQUIPMENT,"BUILDING MATERIALS, LUMBER STORES"
29/08/2017,FAIRCROFT COMMUNITY HOME,LOVE HOLIDAYS,"4,138.27",EDUC VISITS/HOLS/CAMPS/TOYS,TRAVEL AGENCIES AND TOUR OPERATORS
29/08/2017,PROPERTY OPERATIONS TEAM,SCREWFIX DIRECT,20.68,PURCHASE OF BUILDING MATERIALS,"BUILDING MATERIALS, LUMBER STORES"
29/08/2017,SW LOOKED AFTER TEAM,EXPEDIA 7291720863994,3.00,MISCELLANEOUS STAFF TRAVEL,TRAVEL AGENCIES AND TOUR OPERATORS
29/08/2017,SW CARE - LAC,GRO HM PASSPORT OFFICE,18.50,LEGAL EXPENSES,GOVERNMENT SERVICES-NOT ELSEWHERE CLASSIFIED
29/08/2017,EMERGENCY MANAGEMENT,TRAINLINE,93.74,MISCELLANEOUS STAFF TRAVEL,PASSENGER RAILWAYS
29/08/2017,FAIRCROFT COMMUNITY HOME,FREEDOM LEISURE,4.90,REFRESHMENT COSTS,GOVERNMENT SERVICES-NOT ELSEWHERE CLASSIFIED
29/08/2017,FAIRCROFT COMMUNITY HOME,FREEDOM LEISURE,22.60,EDUC VISITS/HOLS/CAMPS/TOYS,GOVERNMENT SERVICES-NOT ELSEWHERE CLASSIFIED
29/08/2017,PORTAGE SERVICE (SE),WAITROSE 129,22.50,EQUIPMENT,"GROCERY STORES, SUPERMARKETS"
29/08/2017,HILLSIDE,SAINSBURYS 0675,70.65,PURCHASE OF FOOD (RAW MATERIALS),"GROCERY STORES, SUPERMARKETS"
29/08/2017,HILLSIDE,SAINSBURYS 0675,10.00,EQUIPMENT,"GROCERY STORES, SUPERMARKETS"
29/08/2017,FAMILY WORKFORCE DEVELOPMENT EAST,PAYPAL  SUCCESSINSC,129.97,SUBSCRIPTIONS,"CONSULTING, MANAGEMENT, AND PUBLIC RELATIONS SVCS"
29/08/2017,16-19 SEND FUNDS,WWW.POSTURITE.CO.UK,21.54,EQUIPMENT,OFFICE AND COMMERCIAL FURNITURE
29/08/2017,HOPE SERVICE - WEST,AMAZON UK MARKETPLACE,5.00,CURRICULUM CONSUMABLES,BOOK STORES
29/08/2017,HOPE SERVICE - WEST,AMAZON UK MARKETPLACE,18.95,CURRICULUM CONSUMABLES,BOOK STORES
29/08/2017,HOPE SERVICE - WEST,AMAZON UK MARKETPLACE,4.43,CURRICULUM CONSUMABLES,BOOK STORES
29/08/2017,HOPE SERVICE - WEST,AMAZON UK MARKETPLACE,81.22,CURRICULUM CONSUMABLES,BOOK STORES
29/08/2017,HOPE SERVICE - WEST,AMAZON UK MARKETPLACE,2.51,CURRICULUM CONSUMABLES,BOOK STORES
29/08/2017,HOPE SERVICE - WEST,AMAZON UK MARKETPLACE,15.16,CURRICULUM CONSUMABLES,BOOK STORES
29/08/2017,HOPE SERVICE - WEST,AMAZON UK MARKETPLACE,5.50,CURRICULUM CONSUMABLES,BOOK STORES
29/08/2017,EXTENDED HOPE,AMAZON.CO.UK,7.99,EQUIPMENT,BOOK STORES
29/08/2017,IMT PRODUCTION APPLICATIONS TEAM,RACKSPACE EMAIL & APPS,191.91,COMPUTER SERVICES,COMPUTER NETWORK/INFORMATION SERVICES
29/08/2017,HOLLAND CLOSE RESIDENTIAL HOME,TFL OYST PHOTOCARD,20.00,NON-STAFF RELATED TRANSPORT COSTS,PASSENGER RAILWAYS
29/08/2017,LIBERTAS COMMUNITY HOME,TESCO STORES 5567,10.00,EQUIPMENT,"GROCERY STORES, SUPERMARKETS"
29/08/2017,LIBERTAS COMMUNITY HOME,TESCO STORES 5567,41.94,PURCHASE OF FOOD (RAW MATERIALS),"GROCERY STORES, SUPERMARKETS"
29/08/2017,FAMILIES SPELTHORNE,SAINSBURYS SACAT (4117,4.95,CLEANING MATERIALS,"GROCERY STORES, SUPERMARKETS"
29/08/2017,NW CARE - LAC,LONDON & SOUTH EAS,23.40,CHILDREN ACT SEC 17 PAYMENTS,PASSENGER RAILWAYS
29/08/2017,TARGETED INTERVENTION,SBLENDED MILKSHAKES,9.20,EDUC VISITS/HOLS/CAMPS/TOYS,FAST FOOD RESTAURANTS
29/08/2017,TARGETED INTERVENTION,3C_ THE ATRIUM CAR PAR,1.50,EDUC VISITS/HOLS/CAMPS/TOYS,AUTOMOBILE PARKING LOTS AND GARAGES
29/08/2017,TARGETED INTERVENTION,TENPIN,25.40,EDUC VISITS/HOLS/CAMPS/TOYS,"CLUBS-CNTRY,MBRSHIP(ATHLET,REC,SPRTS,PRIVATE GOLF"
29/08/2017,LIBERTAS COMMUNITY HOME,SAINSBURYS 0652,10.95,PURCHASE OF FOOD (RAW MATERIALS),"GROCERY STORES, SUPERMARKETS"
29/08/2017,LIBERTAS COMMUNITY HOME,SAINSBURYS 0652,93.63,PURCHASE OF FOOD (RAW MATERIALS),"GROCERY STORES, SUPERMARKETS"
29/08/2017,COMMUNICATIONS TEAM,ISMASH UK TRADING LTD,149.99,STATIONERY,COMPUTER MAIN./REPAIR/SERVICES NOT ELSEWHERE CLASS
29/08/2017,COVEHAM,SAINSBURYS TO YOU 0687,176.45,REFRESHMENT COSTS,"GROCERY STORES, SUPERMARKETS"
29/08/2017,WOODLANDS COMMUNITY HOME,SAINSBURYS 0686,3.75,CLEANING MATERIALS,"GROCERY STORES, SUPERMARKETS"
29/08/2017,WOODLANDS COMMUNITY HOME,SAINSBURYS 0686,2.40,EQUIPMENT,"GROCERY STORES, SUPERMARKETS"
29/08/2017,WOODLANDS COMMUNITY HOME,SAINSBURYS 0686,2.75,PURCHASE OF FOOD (RAW MATERIALS),"GROCERY STORES, SUPERMARKETS"
29/08/2017,WOODLANDS COMMUNITY HOME,SAINSBURYS 0686,34.70,PURCHASE OF FOOD (RAW MATERIALS),"GROCERY STORES, SUPERMARKETS"
29/08/2017,WOODLANDS COMMUNITY HOME,SAINSBURYS 0686,27.00,EQUIPMENT,"GROCERY STORES, SUPERMARKETS"
29/08/2017,VIRTUAL SCHOOL FOR LAC PUPIL PREMIUM,EB  ADOPTION UK ANNUAL,96.00,SUBSISTENCE AND CONFERENCE EXPENSES,BUSINESS SERVICES-NOT ELSEWHERE CLASSIFIED
29/08/2017,FAIRCROFT COMMUNITY HOME,SAINSBURYS SACAT 0687,109.99,EQUIPMENT,"GROCERY STORES, SUPERMARKETS"
29/08/2017,FAIRCROFT COMMUNITY HOME,SAINSBURYS SACAT 0687,65.78,PURCHASE OF FOOD (RAW MATERIALS),"GROCERY STORES, SUPERMARKETS"
29/08/2017,FAIRCROFT COMMUNITY HOME,COSTA COFFEE,9.45,REFRESHMENT COSTS,FAST FOOD RESTAURANTS
29/08/2017,NW CARE - LAC,ALLUNITED28102748,320.00,TRANSPORT SOCIAL CARE-TAXI,COMPUTER SOFTWARE STORES
29/08/2017,APPLEWOOD,ASDA HOME SHOPPING,131.84,PURCHASE OF FOOD (RAW MATERIALS),"GROCERY STORES, SUPERMARKETS"
29/08/2017,APPLEWOOD,ASDA HOME SHOPPING,-2.85,PURCHASE OF FOOD (RAW MATERIALS),"GROCERY STORES, SUPERMARKETS"
29/08/2017,CSAF 50+,WE R SPORTS,199.92,EQUIPMENT,SPORTING GOODS STORES
29/08/2017,CSAF 50+,WE R SPORTS,39.84,EQUIPMENT,SPORTING GOODS STORES
30/08/2017,TARGETED INTERVENTION,3C_ WOKING BOROUGH COU,2.60,EDUC VISITS/HOLS/CAMPS/TOYS,AUTOMOBILE PARKING LOTS AND GARAGES
30/08/2017,WOODLANDS COMMUNITY HOME,MERCADONA C.C.GRAN SUR,48.07,PURCHASE OF FOOD (RAW MATERIALS),"GROCERY STORES, SUPERMARKETS"
30/08/2017,EXTENDED HOPE,SAINSBURYS 0652,107.50,PURCHASE OF FOOD (RAW MATERIALS),"GROCERY STORES, SUPERMARKETS"
30/08/2017,MISC EDCAT SUPPORT,WWW.PARAGON.NET.UK RT,17.26,COMPUTER SERVICES,DIRECT MARKETING-CONTINUITY/SUBSCRIPTION MERCHANTS
30/08/2017,TRANSPORT,DATASELECT.CO.UK,99.59,COMPUTER HARDWARE,TELECOMMUNICATION EQUIPMENT INCL TELEPHONE SALES
30/08/2017,SOLD DAY TO DAY OPERATIONS,AMAZON UK MARKETPLACE,4.72,EQUIPMENT,BOOK STORES
30/08/2017,SOLD DAY TO DAY OPERATIONS,AMAZON UK MARKETPLACE,37.69,EQUIPMENT,BOOK STORES
30/08/2017,CSF BUSINESS SUPPORT EDUCATION,AMAZON EU,22.24,STATIONERY,DIRECT MARKETING-OTHER DIRECT MARKETERS/NOT ELSEW.
30/08/2017,HOPE SERVICE - WEST,AMAZON UK MARKETPLACE,12.95,CURRICULUM CONSUMABLES,BOOK STORES
30/08/2017,HOPE SERVICE - WEST,AMAZON UK MARKETPLACE,14.29,CURRICULUM CONSUMABLES,BOOK STORES
30/08/2017,HOPE SERVICE - WEST,AMAZON UK MARKETPLACE,5.86,CURRICULUM CONSUMABLES,BOOK STORES
30/08/2017,HOPE SERVICE - WEST,AMAZON UK MARKETPLACE,26.80,CURRICULUM EQUIPMENT AND FURNITURE,BOOK STORES
30/08/2017,HOPE SERVICE - WEST,ODEON,9.25,EDUC VISITS/HOLS/CAMPS/TOYS,MOTION PICTURE THEATERS
30/08/2017,HOPE SERVICE - WEST,ODEON,5.15,REFRESHMENT COSTS,MOTION PICTURE THEATERS
30/08/2017,FAIRCROFT COMMUNITY HOME,KIT-SHOP LTD,216.75,"CLOTHING, UNIFORM AND LAUNDRY",CHILDREN'S AND INFANT'S WEAR STORES
30/08/2017,FAIRCROFT COMMUNITY HOME,NEXT RETAIL LTD,22.00,"CLOTHING, UNIFORM AND LAUNDRY",FAMILY CLOTHING STORES
30/08/2017,FAIRCROFT COMMUNITY HOME,SAINSBURYS SACAT 0687,25.25,EQUIPMENT,"GROCERY STORES, SUPERMARKETS"
30/08/2017,FAIRCROFT COMMUNITY HOME,SAINSBURYS SACAT 0687,20.00,"CLOTHING, UNIFORM AND LAUNDRY","GROCERY STORES, SUPERMARKETS"
30/08/2017,SW CARE - CP & COURT LAC,SURREY CC CARD PAY,21.00,LEGAL EXPENSES,COMPUTER NETWORK/INFORMATION SERVICES
30/08/2017,HILLSIDE,SAINSBURYS 0675,83.75,PURCHASE OF FOOD (RAW MATERIALS),"GROCERY STORES, SUPERMARKETS"
30/08/2017,CHEYNE WALK COMMUNITY HOME,TESCO STORES 2560,42.29,PURCHASE OF FOOD (RAW MATERIALS),"GROCERY STORES, SUPERMARKETS"
30/08/2017,CHEYNE WALK COMMUNITY HOME,TESCO STORES 2560,11.00,EQUIPMENT,"GROCERY STORES, SUPERMARKETS"
30/08/2017,CHEYNE WALK COMMUNITY HOME,TESCO STORES 2560,10.17,PURCHASE OF FOOD (RAW MATERIALS),"GROCERY STORES, SUPERMARKETS"
30/08/2017,CHEYNE WALK COMMUNITY HOME,TESCO STORES 2560,10.00,EQUIPMENT,"GROCERY STORES, SUPERMARKETS"
30/08/2017,CHEYNE WALK COMMUNITY HOME,TESCO-STORES 6647,236.92,PURCHASE OF FOOD (RAW MATERIALS),"GROCERY STORES, SUPERMARKETS"
30/08/2017,COVEHAM,AMAZON UK MARKETPLACE,25.35,EQUIPMENT,BOOK STORES
30/08/2017,HOPE SERVICE - WEST,AMAZON UK MARKETPLACE,48.92,CURRICULUM CONSUMABLES,BOOK STORES
30/08/2017,FAMILIES REIGATE AND BANSTREAD,CO-OP GROUP FOOD,6.88,REFRESHMENT COSTS,"GROCERY STORES, SUPERMARKETS"
30/08/2017,SUNBURY YC,SAINSBURYS 2663,15.75,PURCHASE OF FOOD (RAW MATERIALS),"GROCERY STORES, SUPERMARKETS"
30/08/2017,LIBERTAS COMMUNITY HOME,THE OLD WORLD TEA ROOM,15.80,REFRESHMENT COSTS,"EATING PLACES, RESTAURANTS"
30/08/2017,LIBERTAS COMMUNITY HOME,PIZZA EXPRESS 3212,30.75,REFRESHMENT COSTS,"EATING PLACES, RESTAURANTS"
30/08/2017,SE CARE - LAC,BEDFORD BOROUGH COUNCI,11.40,CHILDREN ACT SEC 17 PAYMENTS,GOVERNMENT SERVICES-NOT ELSEWHERE CLASSIFIED
30/08/2017,NW CARE - LAC,WWW.FREEDOM-LEISURE.CO,35.00,OTHER COMMUNITY CARE VOL,RECREATION SERVICES (NOT ELSEWHERE CLASSIFIED)
30/08/2017,HILLSIDE,ARGOS LTD,59.96,EQUIPMENT,DISCOUNT STORES
30/08/2017,HILLSIDE,SHOECARE,3.95,EQUIPMENT,"HAT CLEANING SHOPS, SHOE REPAIR SHOPS, SHOE SHINE"
30/08/2017,HILLSIDE,CLINTONS 1221,14.00,EQUIPMENT,"GIFT, CARD, NOVELTY AND SOUVENIR SHOPS"
30/08/2017,FAMILIES WOKING,BOOKER LIMITED BYFLEET,93.62,ITEMS PURCHASED FOR RE-SALE,CATERERS
30/08/2017,FAMILIES WOKING,BOOKER LIMITED BYFLEET,13.24,ITEMS PURCHASED FOR RE-SALE,CATERERS
30/08/2017,CYWS COMMISSIONING,SAINSBURYS SACAT 0828,14.33,PURCHASE OF FOOD (RAW MATERIALS),"GROCERY STORES, SUPERMARKETS"
30/08/2017,FAIRCROFT COMMUNITY HOME,TRAVEL LUGGAGE CAB,114.95,EQUIPMENT,NONDURABLE GOODS (NOT ELSEWHERE CLASSIFIED)
30/08/2017,FAIRCROFT COMMUNITY HOME,HOME BARGAINS BYFLEET,24.37,EQUIPMENT,HARDWARE STORES
30/08/2017,FAIRCROFT COMMUNITY HOME,SPORTSDIRECT 234,14.00,"CLOTHING, UNIFORM AND LAUNDRY",SPORTING GOODS STORES
30/08/2017,ROW VOLUNTEERS WEST                     ,SCREWFIX DIRECT,246.58,EQUIPMENT,"BUILDING MATERIALS, LUMBER STORES"
30/08/2017,BURBANK COMMUNITY HOME,SCHOOL UNIFORM DIRECT,93.96,"CLOTHING, UNIFORM AND LAUNDRY",MEN'S/WOMEN'S/CHILDREN'S UNIFORMS/COMMERCIAL CLOTH
30/08/2017,BURBANK COMMUNITY HOME,COSTA COFFEE 43037185,9.75,REFRESHMENT COSTS,FAST FOOD RESTAURANTS
30/08/2017,CORPORATE GROUP - LEGAL SERVICES,LEWES PARKING,3.40,EXPENSES,SCHOOLS & EDUCATIONAL SVC-NOT ELSEWHERE CLASSIFIED
30/08/2017,CRANLEIGH YC,ASDA STORES,48.01,PURCHASE OF FOOD (RAW MATERIALS),"GROCERY STORES, SUPERMARKETS"
30/08/2017,TARGETED INTERVENTION,THE BIG APPLE,26.85,EDUC VISITS/HOLS/CAMPS/TOYS,BOWLING ALLEYS
30/08/2017,TARGETED INTERVENTION,RONTEC CONCESSIONS,6.50,EDUC VISITS/HOLS/CAMPS/TOYS,"EATING PLACES, RESTAURANTS"
30/08/2017,QUADRANT COURT WOKING,AMAZON UK MARKETPLACE,4.41,EQUIPMENT,BOOK STORES
30/08/2017,QUADRANT COURT WOKING,PSV GLASS,360.00,FIXTURES AND FITTINGS,"GLASS, PAINT, WALLPAPER STORES"
30/08/2017,MALLOW CRESCENT,SAINSBURYS TO YOU 0652,35.60,PURCHASE OF FOOD (RAW MATERIALS),"GROCERY STORES, SUPERMARKETS"
30/08/2017,MALLOW CRESCENT,SAINSBURYS TO YOU 0652,111.36,PURCHASE OF FOOD (RAW MATERIALS),"GROCERY STORES, SUPERMARKETS"
30/08/2017,ENSEMBLES & TOURS,EDITION PETERS,230.00,CURRIC BOOKS,"MUSIC STORES-INSTRUMENTS, PIANOS, SHEET MUSIC"
30/08/2017,BURBANK COMMUNITY HOME,TIMPSON INSIDE,15.00,PRINTING,"HAT CLEANING SHOPS, SHOE REPAIR SHOPS, SHOE SHINE"
30/08/2017,BURBANK COMMUNITY HOME,ASDA STORES 4823,57.00,"CLOTHING, UNIFORM AND LAUNDRY","GROCERY STORES, SUPERMARKETS"
30/08/2017,HOPE SERVICE - WEST,AMAZON UK MARKETPLACE,2.98,EQUIPMENT,BOOK STORES
30/08/2017,HOPE SERVICE - WEST,AMAZON EU,29.99,CURRICULUM EQUIPMENT AND FURNITURE,DIRECT MARKETING-OTHER DIRECT MARKETERS/NOT ELSEW.
30/08/2017,BURBANK COMMUNITY HOME,WICKES,82.87,DAY TO DAY MAINTENANCE,HOME SUPPLY WAREHOUSE STORES
30/08/2017,BURBANK COMMUNITY HOME,HOMEBASE LTD 050,56.97,DAY TO DAY MAINTENANCE,"BUILDING MATERIALS, LUMBER STORES"
30/08/2017,RUTH HOUSE,G J HONOUR,480.11,PURCHASE OF FOOD (RAW MATERIALS),"MISC FOOD STORE-CONVENIENCE,MRKT,SPLTY,VENDNG MACS"
30/08/2017,RUTH HOUSE,WWW.WILSONSBLINDS.CO.U,51.63,EQUIPMENT,"DRAPERY, UPOLSTERY, AND WINDOW COVERINGS STORES"
30/08/2017,RUTH HOUSE,W M MORRISONS,25.00,EQUIPMENT,"GROCERY STORES, SUPERMARKETS"
30/08/2017,FIRE & RESCUE COMMUNITY SAFETY,WEBCOM/ENABLE,28.80,PUBLICITY,COMPUTER MAIN./REPAIR/SERVICES NOT ELSEWHERE CLASS
30/08/2017,FIRE & RESCUE COMMUNITY SAFETY,WEBCOM/ENABLE,.01,PUBLICITY,COMPUTER MAIN./REPAIR/SERVICES NOT ELSEWHERE CLASS
30/08/2017,CHMHS RAP TEAM,AMAZON PRIME,7.99,EDUC VISITS/HOLS/CAMPS/TOYS,DIRECT MARKETING-CONTINUITY/SUBSCRIPTION MERCHANTS
30/08/2017,WOODLANDS COMMUNITY HOME,SAINSBURYS 0670,5.25,EQUIPMENT,"GROCERY STORES, SUPERMARKETS"
30/08/2017,WOODLANDS COMMUNITY HOME,SAINSBURYS 0670,3.00,3RD PARTY PAYMENTS PRIVATE INDIV,"GROCERY STORES, SUPERMARKETS"
30/08/2017,WOODLANDS COMMUNITY HOME,SAINSBURYS 0670,21.08,EQUIPMENT,"GROCERY STORES, SUPERMARKETS"
30/08/2017,WOODLANDS COMMUNITY HOME,SAINSBURYS 0670,9.66,EQUIPMENT,"GROCERY STORES, SUPERMARKETS"
30/08/2017,WOODLANDS COMMUNITY HOME,ARGOS GODALMING IN,92.13,EQUIPMENT,DISCOUNT STORES
30/08/2017,PROPERTY OPERATIONS TEAM,TOOLSTATION LTD,15.70,PURCHASE OF BUILDING MATERIALS,HARDWARE STORES
30/08/2017,PROPERTY OPERATIONS TEAM,SCREWFIX GUILDFORD,72.47,PURCHASE OF BUILDING MATERIALS,"BUILDING MATERIALS, LUMBER STORES"
30/08/2017,PROPERTY OPERATIONS TEAM,SCREWFIX GUILDFORD,-19.99,PURCHASE OF BUILDING MATERIALS,"BUILDING MATERIALS, LUMBER STORES"
30/08/2017,WOODLANDS COMMUNITY HOME,AMAZON UK MARKETPLACE,16.86,EDUC VISITS/HOLS/CAMPS/TOYS,BOOK STORES
30/08/2017,TRANSPORT,WILSONS EPSOM,207.22,VEHICLE REPAIRS AND MAINTENANCE,AUTOMOTIVE SERVICE SHOPS
30/08/2017,TRANSPORT,PAYPAL  JADEBAY LTD,37.99,DAY TO DAY MAINTENANCE,HARDWARE STORES
30/08/2017,HOPE SERVICE - WEST,WWW.HOMECRAFTSDIRECT.C,149.19,CURRICULUM CONSUMABLES,"ARTIST SUPPLY STORES, CRAFT SHOPS"
30/08/2017,HOPE SERVICE - WEST,AMAZON.CO.UK,5.78,CURRICULUM CONSUMABLES,BOOK STORES
30/08/2017,HOPE SERVICE - WEST,AMAZON.CO.UK,14.32,CURRICULUM CONSUMABLES,BOOK STORES
30/08/2017,HOPE SERVICE - WEST,AMAZON UK RETAIL AMAZO,71.03,CURRICULUM EQUIPMENT AND FURNITURE,MISCELLANEOUS AND SPECIALTY RETAIL STORES
30/08/2017,ARUNDEL,TESCO STORES 5999,170.88,REFRESHMENT COSTS,"GROCERY STORES, SUPERMARKETS"
30/08/2017,ARUNDEL,TESCO STORES 5999,6.00,REFRESHMENT COSTS,"GROCERY STORES, SUPERMARKETS"
30/08/2017,KARIBU COMMUNITY HOME,WWW.GOAPE.CO.UK,58.00,EDUC VISITS/HOLS/CAMPS/TOYS,RECREATIONAL AND SPORTING CAMPS
30/08/2017,KARIBU COMMUNITY HOME,TESCO STORE 2812,199.82,PURCHASE OF FOOD (RAW MATERIALS),"GROCERY STORES, SUPERMARKETS"
30/08/2017,TRAINING AND DEVELOPMENT,NOVOTEL HOTELS,129.95,SUBSISTENCE AND CONFERENCE EXPENSES,NOVOTEL HOTELS
30/08/2017,HOPE SERVICE - WEST,AMAZON UK MARKETPLACE,1.60,CURRICULUM CONSUMABLES,BOOK STORES
31/08/2017,TRANSPORT,TOYE KENNING & SPENCER,127.80,"CLOTHING, UNIFORM AND LAUNDRY",WOMEN'S ACCESSORY AND SPECIALTY STORES
31/08/2017,CHEYNE WALK COMMUNITY HOME,SKY BUSINESS,135.60,LIBRARY RESOURCES,"CABLE, SATELLITE, OTHER PAY TELEVISION, RADIO SVCS"
31/08/2017,LIBERTAS COMMUNITY HOME,IOW COUNCIL,25.00,NON-STAFF RELATED TRANSPORT COSTS,GOVERNMENT SERVICES-NOT ELSEWHERE CLASSIFIED
31/08/2017,WOODLANDS COMMUNITY HOME,WWW.ARGOS.CO.UK,179.99,EQUIPMENT,DISCOUNT STORES
31/08/2017,WOODLANDS COMMUNITY HOME,WWW.ARGOS.CO.UK,6.95,EQUIPMENT,DISCOUNT STORES
31/08/2017,WOODLANDS COMMUNITY HOME,HARD ROCK CAFE TENERIF,102.70,PURCHASE OF FOOD (RAW MATERIALS),"EATING PLACES, RESTAURANTS"
31/08/2017,BURBANK COMMUNITY HOME,HATTOS,60.00,REFRESHMENT COSTS,"MISC FOOD STORE-CONVENIENCE,MRKT,SPLTY,VENDNG MACS"
31/08/2017,ROW VOLUNTEERS WEST                     ,SAINSBURYS PFS0591,15.00,PETROL/DIESEL ALL OFF BUSINESS,SERVICE STATIONS WITH OR WITHOUT ANCILLARY SERVICE
31/08/2017,ROW VOLUNTEERS WEST                     ,METHOLD VEHICLE HIRE,42.00,HIRE OF VEHICLES,AUTOMOBILE RENTAL AGENCY-NOT ELSEWHERE CLASSIFIED
31/08/2017,FAMILIES SPELTHORNE,POUNDLAND LTD 1287,2.00,REFRESHMENT COSTS,DISCOUNT STORES
31/08/2017,CORPORATE GROUP - LEGAL SERVICES,AMAZON UK MARKETPLACE,18.98,STATIONERY,BOOK STORES
31/08/2017,ROW VOLUNTEERS EAST                     ,CHOICE VEHICLE RENTALS,39.50,EQUIPMENT,AUTOMOBILE RENTAL AGENCY-NOT ELSEWHERE CLASSIFIED
31/08/2017,ROW VOLUNTEERS EAST                     ,ESSO MRH ROUNDABOUT,10.01,PETROL/DIESEL ALL OFF BUSINESS,SERVICE STATIONS WITH OR WITHOUT ANCILLARY SERVICE
31/08/2017,ROW VOLUNTEERS EAST                     ,ESSO MRH ROUNDABOUT,5.49,PETROL/DIESEL ALL OFF BUSINESS,SERVICE STATIONS WITH OR WITHOUT ANCILLARY SERVICE
31/08/2017,TARGETED INTERVENTION,FREEDOM LEISURE,8.35,EDUC VISITS/HOLS/CAMPS/TOYS,GOVERNMENT SERVICES-NOT ELSEWHERE CLASSIFIED
31/08/2017,TARGETED INTERVENTION,FREEDOM LEISURE,24.00,EDUC VISITS/HOLS/CAMPS/TOYS,GOVERNMENT SERVICES-NOT ELSEWHERE CLASSIFIED
31/08/2017,BURBANK COMMUNITY HOME,SAINSBURYS SACAT 0784,8.05,PURCHASE OF FOOD (RAW MATERIALS),"GROCERY STORES, SUPERMARKETS"
31/08/2017,HOPE SERVICE - WEST,SAINSBURYS 0683,21.70,PURCHASE OF FOOD (RAW MATERIALS),"GROCERY STORES, SUPERMARKETS"
31/08/2017,LIBERTAS COMMUNITY HOME,VECTIS VENTURES LTD,40.20,REFRESHMENT COSTS,"GIFT, CARD, NOVELTY AND SOUVENIR SHOPS"
31/08/2017,LIBERTAS COMMUNITY HOME,VECTIS VENTURES LTD,42.00,EDUC VISITS/HOLS/CAMPS/TOYS,"GIFT, CARD, NOVELTY AND SOUVENIR SHOPS"
31/08/2017,LIBERTAS COMMUNITY HOME,TESCO STORES 5567,15.54,REFRESHMENT COSTS,"GROCERY STORES, SUPERMARKETS"
31/08/2017,SE CARE - LAC,GRO HM PASSPORT OFFICE,27.75,CHILDREN ACT SEC 17 PAYMENTS,GOVERNMENT SERVICES-NOT ELSEWHERE CLASSIFIED
31/08/2017,TARGETED INTERVENTION,RONTEC CONCESSIONS,6.50,EDUC VISITS/HOLS/CAMPS/TOYS,"EATING PLACES, RESTAURANTS"
31/08/2017,TARGETED INTERVENTION,BAS AQUADROME,18.00,EDUC VISITS/HOLS/CAMPS/TOYS,RECREATION SERVICES (NOT ELSEWHERE CLASSIFIED)
31/08/2017,E&I - COMMUNITY RECYCLING CENTRES       ,FACEBK 6ARQPDA2S2,536.83,PUBLICITY,ADVERTISING SERVICES
31/08/2017,E&I - COMMUNITY RECYCLING CENTRES       ,FACEBK 7ARQPDA2S2,22.65,PUBLICITY,ADVERTISING SERVICES
31/08/2017,QUADRANT COURT WOKING,AMAZON UK MARKETPLACE,29.88,EQUIPMENT,BOOK STORES
31/08/2017,QUADRANT COURT WOKING,AMAZON UK MARKETPLACE,33.44,EQUIPMENT,BOOK STORES
31/08/2017,QUADRANT COURT WOKING,W M MORRISONS,16.00,EQUIPMENT,"GROCERY STORES, SUPERMARKETS"
31/08/2017,WORKPLACE COMMERCIAL TEAM,FACEBK NL8JGCSNB2,14.57,PUBLICITY,ADVERTISING SERVICES
31/08/2017,WORKPLACE COMMERCIAL TEAM,FACEBK XJXL5D6JU2,7.99,PUBLICITY,ADVERTISING SERVICES
31/08/2017,TRANSPORT,PAYPAL  AO RETAIL,123.00,EQUIPMENT,ELECTRONIC SALES
31/08/2017,TRANSPORT,PAYPAL  CHRISTGIFT,49.18,FIXTURES AND FITTINGS,ELECTRONIC SALES
31/08/2017,HOPE SERVICE - WEST,AMAZON UK MARKETPLACE,5.44,CURRICULUM CONSUMABLES,BOOK STORES
31/08/2017,VIRTUAL SCHOOL FOR LAC PUPIL PREMIUM,AMAZON UK MARKETPLACE,237.32,SPECIALIST EDUCATIONAL STATIONERY,BOOK STORES
31/08/2017,VIRTUAL SCHOOL FOR LAC PUPIL PREMIUM,AMAZON UK MARKETPLACE,55.18,SPECIALIST EDUCATIONAL STATIONERY,BOOK STORES
31/08/2017,ACL CENTRAL EXPENDITURE,FACEBK SCH3QCJCB2,294.00,PUBLICITY,ADVERTISING SERVICES
31/08/2017,ACL CENTRAL EXPENDITURE,FACEBK TCH3QCJCB2,52.51,PUBLICITY,ADVERTISING SERVICES
31/08/2017,ARUNDEL,TESCO STORES 5999,85.54,REFRESHMENT COSTS,"GROCERY STORES, SUPERMARKETS"
31/08/2017,PRISON CAPITATION                       ,AMAZON UK MARKETPLACE,17.54,LIBRARY RESOURCES,BOOK STORES
31/08/2017,BURBANK COMMUNITY HOME,W M MORRISONS,23.48,PURCHASE OF FOOD (RAW MATERIALS),"GROCERY STORES, SUPERMARKETS"
31/08/2017,TRANSPORT,AMAZON UK MARKETPLACE,4.49,STATIONERY,BOOK STORES
31/08/2017,TRANSPORT,AQUACHECK ENGINEERING,423.50,OPERATIONAL FIRE EQUIPMENT,INDUSTRIAL SUPPLIES NOT ELSEWHERE CLASSIFIED
31/08/2017,SERVICE DELIVERY RESOURCES,CONCEPT ENGINEERIN,334.80,OPERATIONAL FIRE EQUIPMENT,INDUSTRIAL SUPPLIES NOT ELSEWHERE CLASSIFIED
31/08/2017,COUNTYWIDE MANAGED PRINT SERVICE,CANON UK LTD,100.14,STATIONERY,CAMERA AND PHOTOGRAPHIC SUPPLY STORES
31/08/2017,TRANSPORT,AMAZON.CO.UK,17.19,STATIONERY,BOOK STORES
31/08/2017,TRANSPORT,AMAZON.CO.UK,156.72,COMPUTER HARDWARE,BOOK STORES
31/08/2017,HOPE SERVICE - WEST,AMAZON UK MARKETPLACE,1.80,DAY TO DAY MAINTENANCE,BOOK STORES
31/08/2017,LIBERTAS COMMUNITY HOME,SAINSBURYS TO YOU 0652,65.20,PURCHASE OF FOOD (RAW MATERIALS),"GROCERY STORES, SUPERMARKETS"
31/08/2017,NW CARE - LAC,SURREY CC CARD PAY,11.00,FEES,COMPUTER NETWORK/INFORMATION SERVICES
31/08/2017,NW CARE - NON-LAC CP & COURT,SURREY CC CARD PAY,19.00,FEES,COMPUTER NETWORK/INFORMATION SERVICES
31/08/2017,NW CARE - NON-LAC CP & COURT,SURREY CC CARD PAY,19.00,FEES,COMPUTER NETWORK/INFORMATION SERVICES
31/08/2017,HOPE SERVICE - WEST,FINDEL ED LTD,209.78,CURRICULUM CONSUMABLES,DIRECT MARKETING-OTHER DIRECT MARKETERS/NOT ELSEW.
31/08/2017,TS SERVICE MANAGEMENT,AMAZON UK MARKETPLACE,24.75,EQUIPMENT,BOOK STORES
31/08/2017,COUNTY HALL,WWW.SIGN-HOLDERS.CO.UK,88.20,DAY TO DAY MAINTENANCE,MISCELLANEOUS AND SPECIALTY RETAIL STORES
31/08/2017,FAMILIES WAVERLEY,AMAZON UK MARKETPLACE,20.94,EQUIPMENT,BOOK STORES
31/08/2017,RUTH HOUSE,ARGOS LTD,9.99,EQUIPMENT,DISCOUNT STORES
31/08/2017,RUTH HOUSE,ARGOS LTD,50.23,EQUIPMENT,DISCOUNT STORES
31/08/2017,TRAINING AND DEVELOPMENT,WP-THE INSTITUTION,60.00,TRAINING EXPENSES EXTERNAL GENERAL,"ORGANIZATIONS, MEMBERSHIP-NOT ELSEWHERE CLASSIFIED"
31/08/2017,TRAINING AND DEVELOPMENT,WWW.EPCOLLEGE.COM/,"1,146.00",TRAINING EXPENSES EXTERNAL GENERAL,"COLLEGES, UNIV, PRO SCHOOLS, JUNIOR COLLEGES"
31/08/2017,CS BUSINESS SUPPORT WEST,SAINSBURYS 0652,21.75,FURNITURE,"GROCERY STORES, SUPERMARKETS"
31/08/2017,SW CARE - LAC,WWW.AIRHOPTRAMPELINEOA,39.00,EDUC VISITS/HOLS/CAMPS/TOYS,RECREATIONAL AND SPORTING CAMPS
31/08/2017,HILLSIDE,SAINSBURYS 0675,49.57,PURCHASE OF FOOD (RAW MATERIALS),"GROCERY STORES, SUPERMARKETS"
31/08/2017,HILLSIDE,SAINSBURYS 0675,54.85,PURCHASE OF FOOD (RAW MATERIALS),"GROCERY STORES, SUPERMARKETS"
31/08/2017,CHEYNE WALK COMMUNITY HOME,SPAR,19.96,PURCHASE OF FOOD (RAW MATERIALS),NEWS DEALERS AND NEWSSTANDS
31/08/2017,CHEYNE WALK COMMUNITY HOME,AMAZON UK MARKETPLACE,45.09,EQUIPMENT,BOOK STORES
31/08/2017,CHEYNE WALK COMMUNITY HOME,WELC B/ LFE KFC,17.38,PURCHASE OF FOOD (RAW MATERIALS),"MISC FOOD STORE-CONVENIENCE,MRKT,SPLTY,VENDNG MACS"
31/08/2017,CHEYNE WALK COMMUNITY HOME,WELC B/ SOUTH WHS,15.00,EQUIPMENT,"MISC FOOD STORE-CONVENIENCE,MRKT,SPLTY,VENDNG MACS"
31/08/2017,COVEHAM,TERRY PASFIELD SURREY,82.00,DAY TO DAY MAINTENANCE,"CLEANING AND MAINTENANCE, JANITORIAL SERVICES"
31/08/2017,COVEHAM,SAVILLES DRY CLEANERS,108.00,DAY TO DAY MAINTENANCE,DRY CLEANERS
31/08/2017,RECRUITMENT,FACEBK SATCCCSQ82,35.00,STAFF ADVERTISING ,ADVERTISING SERVICES
31/08/2017,LIBERTAS COMMUNITY HOME,THE NEEDLES PARK,18.00,EDUC VISITS/HOLS/CAMPS/TOYS,"AMUSEMENT PARKS,CARNIVALS,CIRCUS,FORTUNE TELLERS"
31/08/2017,SE CARE - LAC,GRO HM PASSPORT OFFICE,27.75,OTHER COMMUNITY CARE VOL,GOVERNMENT SERVICES-NOT ELSEWHERE CLASSIFIED
31/08/2017,ADOPTION CARE,EB  ADOPTION UK ANNUAL,150.00,TRAINING USING EXTERNAL PROVIDERS,BUSINESS SERVICES-NOT ELSEWHERE CLASSIFIED
31/08/2017,TRANSPORT,PAYPAL  SAFETYSCREE,59.99,FIXTURES AND FITTINGS,"SCHOOLS, BUSINESS AND SECRETARIAL"
31/08/2017,FIRE & RESCUE COMMUNITY SAFETY,BSLCOURSESCOUK LTD,550.00,TRAINING USING EXTERNAL PROVIDERS,SCHOOLS & EDUCATIONAL SVC-NOT ELSEWHERE CLASSIFIED
31/08/2017,HOPE SERVICE - WEST,TESCO STORES 6320,1.00,PURCHASE OF FOOD (RAW MATERIALS),"GROCERY STORES, SUPERMARKETS"
31/08/2017,WOODLANDS COMMUNITY HOME,HOMEBASE LTD 084,41.94,DAY TO DAY MAINTENANCE,"BUILDING MATERIALS, LUMBER STORES"
31/08/2017,WOODLANDS COMMUNITY HOME,ARGOS GODALMING IN,106.97,EQUIPMENT,DISCOUNT STORES
31/08/2017,BURBANK COMMUNITY HOME,AMAZON UK MARKETPLACE,5.19,EQUIPMENT,BOOK STORES
31/08/2017,TRAINING SCH COMMISSIONING & ADMISSIONS,SOAS,300.00,TRAINING EXPENSES EXTERNAL GENERAL,"COLLEGES, UNIV, PRO SCHOOLS, JUNIOR COLLEGES"
31/08/2017,CS BUSINESS SUPPORT WEST,AMAZON UK MARKETPLACE,19.32,EQUIPMENT,BOOK STORES
31/08/2017,WOODLANDS COMMUNITY HOME,AMAZON UK MARKETPLACE,8.99,EDUC VISITS/HOLS/CAMPS/TOYS,BOOK STORES
01/09/2017,ASSET PLANNING - OPERATIONS,SAINSBURYS SACAT 0652,10.00,EQUIPMENT,"GROCERY STORES, SUPERMARKETS"
01/09/2017,BURBANK COMMUNITY HOME,SAINSBURYS TO YOU 0686,67.40,PURCHASE OF FOOD (RAW MATERIALS),"GROCERY STORES, SUPERMARKETS"
01/09/2017,ARUNDEL,TESCO STORES 5999,127.13,REFRESHMENT COSTS,"GROCERY STORES, SUPERMARKETS"
01/09/2017,FAIRCROFT COMMUNITY HOME,SAINSBURYS SACAT 0687,69.83,EQUIPMENT,"GROCERY STORES, SUPERMARKETS"
01/09/2017,FAIRCROFT COMMUNITY HOME,SAINSBURYS SACAT 0687,14.50,"CLOTHING, UNIFORM AND LAUNDRY","GROCERY STORES, SUPERMARKETS"
01/09/2017,FAIRCROFT COMMUNITY HOME,SAINSBURYS SACAT 0687,10.10,PURCHASE OF FOOD (RAW MATERIALS),"GROCERY STORES, SUPERMARKETS"
01/09/2017,FAIRCROFT COMMUNITY HOME,KFC GUILDFORD FC,12.97,REFRESHMENT COSTS,FAST FOOD RESTAURANTS
01/09/2017,PE/CDT MAINTENANCE OVERHEADS,POTTERYCRAFTS LTD,37.43,ITEMS PURCHASED FOR RE-SALE,CRYSTAL AND GLASSWARE STORES
01/09/2017,RUTH HOUSE,SAINSBURYS TO YOU 0686,34.30,PURCHASE OF FOOD (RAW MATERIALS),"GROCERY STORES, SUPERMARKETS"
01/09/2017,RUTH HOUSE,SAINSBURYS TO YOU 0686,180.55,PURCHASE OF FOOD (RAW MATERIALS),"GROCERY STORES, SUPERMARKETS"
01/09/2017,RUTH HOUSE,WWW.TORTOISECENTRE.CO.,36.85,EDUC VISITS/HOLS/CAMPS/TOYS,PET SHOPS - PET FOODS AND SUPPLIES
01/09/2017,PROPERTY OPERATIONS TEAM,FAIRALLS,261.31,PURCHASE OF BUILDING MATERIALS,CONSTRUCTION MATERIALS NOT ELSEWHERE CLASSIFIED
01/09/2017,TRAINING AND DEVELOPMENT,DSA,300.00,TRAINING EXPENSES EXTERNAL GENERAL,GOVERNMENT SERVICES-NOT ELSEWHERE CLASSIFIED
01/09/2017,FAIRCROFT COMMUNITY HOME,SPORTSDIRECT 234,107.96,"CLOTHING, UNIFORM AND LAUNDRY",SPORTING GOODS STORES
01/09/2017,FAIRCROFT COMMUNITY HOME,PRIMARK STORES 655,41.40,"CLOTHING, UNIFORM AND LAUNDRY",FAMILY CLOTHING STORES
01/09/2017,LEAVING CARE PACKAGES,ARGOS RETAIL GROUP,50.66,OTHER COMMUNITY CARE VOL,DISCOUNT STORES
01/09/2017,LEAVING CARE PACKAGES,ARGOS RETAIL GROUP,159.99,OTHER COMMUNITY CARE VOL,DISCOUNT STORES
01/09/2017,HOLLAND CLOSE RESIDENTIAL HOME,KINDLE UNLIMITED AMAZO,7.99,SUBSCRIPTIONS,DIGITAL GOODS AUDIOVISUAL MEDIA
01/09/2017,SE CARE - CP & COURT LAC,PREMIER INN,108.98,INDEPENDENT LIVING PLACEMENTS,PREMIER INN
01/09/2017,HILLSIDE,SAINSBURYS 0784,28.37,PURCHASE OF FOOD (RAW MATERIALS),"GROCERY STORES, SUPERMARKETS"
01/09/2017,LIBERTAS COMMUNITY HOME,SAINSBURYS 0652,123.09,PURCHASE OF FOOD (RAW MATERIALS),"GROCERY STORES, SUPERMARKETS"
01/09/2017,LIBERTAS COMMUNITY HOME,SAINSBURYS 0652,14.80,PURCHASE OF FOOD (RAW MATERIALS),"GROCERY STORES, SUPERMARKETS"
01/09/2017,LIBERTAS COMMUNITY HOME,SAINSBURYS 0652,2.00,EQUIPMENT,"GROCERY STORES, SUPERMARKETS"
01/09/2017,CS BUSINESS SUPPORT WEST,MILK & MORE OFFLINE,177.00,REFRESHMENT COSTS,"MISC FOOD STORE-CONVENIENCE,MRKT,SPLTY,VENDNG MACS"
01/09/2017,SW CARE - NON-LAC CP & COURT,NETWORK CARS AND CITY,19.47,NON-STAFF RELATED TRANSPORT COSTS,LIMOUSINES AND TAXICABS
01/09/2017,SUPERFAST BROADBAND ECONOMIC DEVELOPMENT,GOOGLE  SVCSAPPS_SUPER,13.75,COMPUTER SERVICES,DIRECT MARKETING-CONTINUITY/SUBSCRIPTION MERCHANTS
01/09/2017,CHEYNE WALK COMMUNITY HOME,HOBBYCRAFT,8.25,EQUIPMENT,"ARTIST SUPPLY STORES, CRAFT SHOPS"
01/09/2017,CHEYNE WALK COMMUNITY HOME,PIZZA EXPRESS,29.90,PURCHASE OF FOOD (RAW MATERIALS),"EATING PLACES, RESTAURANTS"
01/09/2017,HERITAGE PUBLIC SERVICE,WWW.DIRECT-FUNDRAISING,72.50,EQUIPMENT,MISCELLANEOUS AND SPECIALTY RETAIL STORES
01/09/2017,FAIRCROFT COMMUNITY HOME,SAINSBURYS 0687,8.40,PURCHASE OF FOOD (RAW MATERIALS),"GROCERY STORES, SUPERMARKETS"
01/09/2017,FAIRCROFT COMMUNITY HOME,H&M,24.98,"CLOTHING, UNIFORM AND LAUNDRY",MEN'S AND WOMEN'S CLOTHING STORES
01/09/2017,FAIRCROFT COMMUNITY HOME,3C_ WOKING BOROUGH COU,1.30,MISCELLANEOUS STAFF TRAVEL,AUTOMOBILE PARKING LOTS AND GARAGES
01/09/2017,COMMUNICATIONS TEAM,AMAZON UK MARKETPLACE,43.75,STATIONERY,BOOK STORES
01/09/2017,MASH,WATERCOOLER,26.28,WATER CHARGES,"OFFICE, SCHOOL SUPPLY, AND STATIONERY STORES"
01/09/2017,CHEYNE WALK COMMUNITY HOME,AMFBOWLING.CO.UK,85.45,EDUC VISITS/HOLS/CAMPS/TOYS,"CLUBS-CNTRY,MBRSHIP(ATHLET,REC,SPRTS,PRIVATE GOLF"
01/09/2017,FAMILIES MOLE VALLEY,ASDA SUPERSTORE,50.95,PURCHASE OF FOOD (RAW MATERIALS),"GROCERY STORES, SUPERMARKETS"
01/09/2017,FAIRCROFT COMMUNITY HOME,PRIMARK,81.60,"CLOTHING, UNIFORM AND LAUNDRY",FAMILY CLOTHING STORES
01/09/2017,ROW VOLUNTEERS WEST                     ,SCREWFIX DIRECT,100.97,EQUIPMENT,"BUILDING MATERIALS, LUMBER STORES"
01/09/2017,BURBANK COMMUNITY HOME,COSTA COFFEE 43037185,9.00,REFRESHMENT COSTS,FAST FOOD RESTAURANTS
01/09/2017,CORPORATE GROUP - LEGAL SERVICES,RINGGO PARKING 8,3.32,EXPENSES,AUTOMOBILE PARKING LOTS AND GARAGES
01/09/2017,SW NIL RECOURSE TO PUBLIC FUNDS CARE,TRAVELODGE,646.75,INDEPENDENT LIVING PLACEMENTS,TRAVELODGE
01/09/2017,NE CARE - LAC,TRAVELODGE,58.25,INDEPENDENT LIVING PLACEMENTS,TRAVELODGE
01/09/2017,SE CARE - CP & COURT LAC,AMFBOWLING.CO.UK,34.65,EDUC VISITS/HOLS/CAMPS/TOYS,"CLUBS-CNTRY,MBRSHIP(ATHLET,REC,SPRTS,PRIVATE GOLF"
01/09/2017,HILLSIDE,SAINSBURYS 0673,52.75,PURCHASE OF FOOD (RAW MATERIALS),"GROCERY STORES, SUPERMARKETS"
01/09/2017,HILLSIDE,SAINSBURYS PFS 0096,41.69,NON-STAFF RELATED TRANSPORT COSTS,SERVICE STATIONS WITH OR WITHOUT ANCILLARY SERVICE
01/09/2017,HOLLAND CLOSE RESIDENTIAL HOME,HOMEBASE LTD 247,9.99,EQUIPMENT,"BUILDING MATERIALS, LUMBER STORES"
01/09/2017,MAYFORD CENTRE - BUSINESS,WICKES,25.95,EQUIPMENT,HOME SUPPLY WAREHOUSE STORES
01/09/2017,APPLEWOOD,ASDA HOME SHOPPING,147.93,PURCHASE OF FOOD (RAW MATERIALS),"GROCERY STORES, SUPERMARKETS"
01/09/2017,APPLEWOOD,ASDA HOME SHOPPING,.22,PURCHASE OF FOOD (RAW MATERIALS),"GROCERY STORES, SUPERMARKETS"
01/09/2017,BURBANK COMMUNITY HOME,SANTA FE COFFE CO LTD,5.75,REFRESHMENT COSTS,FAST FOOD RESTAURANTS
01/09/2017,BURBANK COMMUNITY HOME,ASDA STORES 4823,34.00,"CLOTHING, UNIFORM AND LAUNDRY","GROCERY STORES, SUPERMARKETS"
01/09/2017,BURBANK COMMUNITY HOME,CURRYS SUPERSTORE 2324,-.03,EQUIPMENT,ELECTRONIC SALES
01/09/2017,BURBANK COMMUNITY HOME,SPORTSDIRECT 174,33.04,"CLOTHING, UNIFORM AND LAUNDRY",SPORTING GOODS STORES
01/09/2017,SOLD CATERING,ASDA SUPERSTORE,22.25,PURCHASE OF FOOD (RAW MATERIALS),"GROCERY STORES, SUPERMARKETS"
01/09/2017,MISC EDCAT SUPPORT,INDEED TEL+35312545907,4.00,STAFF ADVERTISING ,BUSINESS SERVICES-NOT ELSEWHERE CLASSIFIED
01/09/2017,IMT CRITICAL ENVIRONMENTS,WWW.MILKANDMORE.CO.UK,28.44,REFRESHMENT COSTS,DIRECT MARKETING-CONTINUITY/SUBSCRIPTION MERCHANTS
01/09/2017,IMT CRITICAL ENVIRONMENTS,AMAZON EU,12.00,STATIONERY,DIRECT MARKETING-OTHER DIRECT MARKETERS/NOT ELSEW.
01/09/2017,VIRTUAL SCHOOL FOR LAC PUPIL PREMIUM,AMAZON UK MARKETPLACE,116.41,SPECIALIST EDUCATIONAL STATIONERY,BOOK STORES
01/09/2017,COMMUNICATIONS TEAM,AMAZON UK MARKETPLACE,59.65,STATIONERY,BOOK STORES
02/09/2017,COMMUNICATIONS TEAM,TIMES NEWSPAPERS LTD,34.67,SUBSCRIPTIONS,"BOOKS,PERIODICALS AND NEWSPAPERS"
02/09/2017,HILLSIDE,SAINSBURYS 0675,4.50,PURCHASE OF FOOD (RAW MATERIALS),"GROCERY STORES, SUPERMARKETS"
02/09/2017,HILLSIDE,SAINSBURYS 0675,25.30,PURCHASE OF FOOD (RAW MATERIALS),"GROCERY STORES, SUPERMARKETS"
02/09/2017,PRISON CAPITATION                       ,AMAZON UK MARKETPLACE,32.93,LIBRARY RESOURCES,BOOK STORES
02/09/2017,PRISON CAPITATION                       ,AMAZON EU,11.98,LIBRARY RESOURCES,DIRECT MARKETING-OTHER DIRECT MARKETERS/NOT ELSEW.
02/09/2017,BOOKS - ADULT NON-FICTION               ,AMAZON UK RETAIL AMAZO,11.17,LIBRARY RESOURCES,MISCELLANEOUS AND SPECIALTY RETAIL STORES
02/09/2017,HOMELESSNESS PREVENTION PROJECT,HOME JAMES,56.00,TRANSPORT SOCIAL CARE-TAXI,LIMOUSINES AND TAXICABS
02/09/2017,CORONER,AMAZON EU,34.96,STATIONERY,DIRECT MARKETING-OTHER DIRECT MARKETERS/NOT ELSEW.
02/09/2017,RBDM - GENERAL,AMAZON EU,22.76,STATIONERY,DIRECT MARKETING-OTHER DIRECT MARKETERS/NOT ELSEW.
02/09/2017,SW LOOKED AFTER TEAM,AE EUROPE LIMITED,38.28,NON-STAFF RELATED TRANSPORT COSTS,AUTOMOBILE RENTAL AGENCY-NOT ELSEWHERE CLASSIFIED
02/09/2017,HILLSIDE,TESCO STORE 3149,23.52,PURCHASE OF FOOD (RAW MATERIALS),"GROCERY STORES, SUPERMARKETS"
02/09/2017,HILLSIDE,TESCO STORE 3149,231.43,PURCHASE OF FOOD (RAW MATERIALS),"GROCERY STORES, SUPERMARKETS"
02/09/2017,E&I - LOVE FOOD HATE WASTE              ,GOOGLE  ADWS2060179426,500.00,PUBLICITY,DIRECT MARKETING-CONTINUITY/SUBSCRIPTION MERCHANTS
02/09/2017,FAMILIES MOLE VALLEY,ASHSTEAD COBBLERS,16.00,CURRICULUM EQUIPMENT AND FURNITURE,"HAT CLEANING SHOPS, SHOE REPAIR SHOPS, SHOE SHINE"
02/09/2017,FAMILIES MOLE VALLEY,SHELL GROVE,7.78,EQUIPMENT,SERVICE STATIONS WITH OR WITHOUT ANCILLARY SERVICE
02/09/2017,BURBANK COMMUNITY HOME,MCDONALDS,42.84,REFRESHMENT COSTS,FAST FOOD RESTAURANTS
02/09/2017,BURBANK COMMUNITY HOME,NEW LOOK 1792,9.74,"CLOTHING, UNIFORM AND LAUNDRY",WOMEN'S READY TO WEAR STORES
02/09/2017,BURBANK COMMUNITY HOME,RYMAN,8.48,EDUC VISITS/HOLS/CAMPS/TOYS,"OFFICE, SCHOOL SUPPLY, AND STATIONERY STORES"
02/09/2017,BURBANK COMMUNITY HOME,3C_ WOKING BOROUGH COU,2.60,MISCELLANEOUS STAFF TRAVEL,AUTOMOBILE PARKING LOTS AND GARAGES
02/09/2017,LIBERTAS COMMUNITY HOME,PRIMARK STORES 655,30.50,"CLOTHING, UNIFORM AND LAUNDRY",FAMILY CLOTHING STORES
02/09/2017,LIBERTAS COMMUNITY HOME,POUNDLAND LTD 1518,5.00,EDUC VISITS/HOLS/CAMPS/TOYS,DISCOUNT STORES
02/09/2017,LIBERTAS COMMUNITY HOME,MCDONALDS,4.89,REFRESHMENT COSTS,"EATING PLACES, RESTAURANTS"
02/09/2017,LIBERTAS COMMUNITY HOME,JD SPORTS PLC,10.05,"CLOTHING, UNIFORM AND LAUNDRY",SPORTING GOODS STORES
02/09/2017,LIBERTAS COMMUNITY HOME,JD SPORTS PLC,10.00,"CLOTHING, UNIFORM AND LAUNDRY",SPORTING GOODS STORES
02/09/2017,LIBERTAS COMMUNITY HOME,JD SPORTS PLC,28.00,EDUC VISITS/HOLS/CAMPS/TOYS,SPORTING GOODS STORES
02/09/2017,LIBERTAS COMMUNITY HOME,TOP SHOP/TOPMAN,37.00,"CLOTHING, UNIFORM AND LAUNDRY",MEN'S AND WOMEN'S CLOTHING STORES
02/09/2017,LIBERTAS COMMUNITY HOME,SUPERDRUG STORES PLC,8.00,EQUIPMENT,"DRUG STORES, PHARMACIES"
02/09/2017,LIBERTAS COMMUNITY HOME,SUPERDRUG STORES PLC,2.00,REFRESHMENT COSTS,"DRUG STORES, PHARMACIES"
02/09/2017,LIBERTAS COMMUNITY HOME,SUPERDRUG STORES PLC,2.00,EQUIPMENT,"DRUG STORES, PHARMACIES"
02/09/2017,LIBERTAS COMMUNITY HOME,RYMAN 1138,1.99,EDUC VISITS/HOLS/CAMPS/TOYS,"OFFICE, SCHOOL SUPPLY, AND STATIONERY STORES"
02/09/2017,LIBERTAS COMMUNITY HOME,WH SMITH,11.97,EDUC VISITS/HOLS/CAMPS/TOYS,NEWS DEALERS AND NEWSSTANDS
02/09/2017,FAMILIES MOLE VALLEY,SHELL GROVE,18.63,PETROL/DIESEL ALL OFF BUSINESS,SERVICE STATIONS WITH OR WITHOUT ANCILLARY SERVICE
02/09/2017,FAMILIES MOLE VALLEY,MCDONALDS,22.14,REFRESHMENT COSTS,"EATING PLACES, RESTAURANTS"
02/09/2017,FAMILIES MOLE VALLEY,TENPIN BOWLING,76.00,EDUC VISITS/HOLS/CAMPS/TOYS,"CLUBS-CNTRY,MBRSHIP(ATHLET,REC,SPRTS,PRIVATE GOLF"
02/09/2017,WOODLANDS COMMUNITY HOME,BEACH CLUB 2,72.19,PURCHASE OF FOOD (RAW MATERIALS),"EATING PLACES, RESTAURANTS"
02/09/2017,SOLD BUSINESS SUPPORT,POSTOFFICE SELFSERVICE,2.84,POSTAGE AND COURIER CHARGES,POSTAL SERVICES-GOVERNMENT ONLY
03/09/2017,WOODLANDS COMMUNITY HOME,HOMEBASE LTD 084,18.49,FIXTURES AND FITTINGS,"BUILDING MATERIALS, LUMBER STORES"
03/09/2017,RUTH HOUSE,HOBBYCRAFT,8.50,EDUC VISITS/HOLS/CAMPS/TOYS,"ARTIST SUPPLY STORES, CRAFT SHOPS"
03/09/2017,RUTH HOUSE,ARGOS LTD,-15.96,EQUIPMENT,DISCOUNT STORES
03/09/2017,HOLLAND CLOSE RESIDENTIAL HOME,TESCO-STORES 6647,140.35,PURCHASE OF FOOD (RAW MATERIALS),"GROCERY STORES, SUPERMARKETS"
03/09/2017,ACL CENTRAL EXPENDITURE,TESCO DELIVERY SAVER1,7.00,REFRESHMENT COSTS,"GROCERY STORES, SUPERMARKETS"
03/09/2017,QUADRANT COURT WOKING,AMAZON PRIME,7.99,EQUIPMENT,DIRECT MARKETING-CONTINUITY/SUBSCRIPTION MERCHANTS
03/09/2017,CYWS COMMISSIONING,SAINSBURYS SACAT 0828,6.40,PURCHASE OF FOOD (RAW MATERIALS),"GROCERY STORES, SUPERMARKETS"
03/09/2017,COMMUNICATIONS TEAM,HOO HOOTSUITE MEDIA I,5.73,SUBSCRIPTIONS,DIRECT MARKETING-CONTINUITY/SUBSCRIPTION MERCHANTS
03/09/2017,FAIRCROFT COMMUNITY HOME,SHUN FENG CATERING LTD,48.20,PURCHASE OF FOOD (RAW MATERIALS),CATERERS
03/09/2017,SAP COMPETENCY CENTRE,AMAZON MKTPLACE PMTS,387.19,COMPUTER SERVICES,MISCELLANEOUS AND SPECIALTY RETAIL STORES
03/09/2017,FAMILIES MOLE VALLEY,GOV.UK/DART-CHARGE,20.00,NON-STAFF RELATED TRANSPORT COSTS,"BRIDGE AND ROAD FEES, TOLLS"
03/09/2017,FAMILIES MOLE VALLEY,MCDONALDS,25.91,REFRESHMENT COSTS,"EATING PLACES, RESTAURANTS"
03/09/2017,FAMILIES MOLE VALLEY,BP BOREHAM CONNECT,5.75,PURCHASE OF FOOD (RAW MATERIALS),SERVICE STATIONS WITH OR WITHOUT ANCILLARY SERVICE
03/09/2017,FAMILIES MOLE VALLEY,CLACKET LANE WEST CONN,76.01,PETROL/DIESEL ALL OFF BUSINESS,SERVICE STATIONS WITH OR WITHOUT ANCILLARY SERVICE
03/09/2017,PORTAGE SERVICE (SE),WAITROSE 208,2.50,EQUIPMENT,"GROCERY STORES, SUPERMARKETS"
03/09/2017,WOODLANDS COMMUNITY HOME,AMAZON PRIME,7.99,EDUC VISITS/HOLS/CAMPS/TOYS,DIRECT MARKETING-CONTINUITY/SUBSCRIPTION MERCHANTS
03/09/2017,WOODLANDS COMMUNITY HOME,RITAZZA SALIDAS,21.28,PURCHASE OF FOOD (RAW MATERIALS),"EATING PLACES, RESTAURANTS"
03/09/2017,WOODLANDS COMMUNITY HOME,TFS SSP AEROPUERTO TFS,50.76,PURCHASE OF FOOD (RAW MATERIALS),"EATING PLACES, RESTAURANTS"
03/09/2017,WOODLANDS COMMUNITY HOME,TFS SSP AEROPUERTO TFS,6.26,PURCHASE OF FOOD (RAW MATERIALS),"EATING PLACES, RESTAURANTS"
03/09/2017,WOODLANDS COMMUNITY HOME,BP ATOGO,52.61,VEHICLE RUNNING COSTS,SERVICE STATIONS WITH OR WITHOUT ANCILLARY SERVICE
03/09/2017,WOODLANDS COMMUNITY HOME,WDFG TENERIFE SUR,18.93,EQUIPMENT,DUTY FREE STORES
03/09/2017,WOODLANDS COMMUNITY HOME,WDFG TENERIFE SUR,1.85,PURCHASE OF FOOD (RAW MATERIALS),DUTY FREE STORES
04/09/2017,NW LOOKED AFTER TEAM,PREMIER INN,71.50,OTHER COMMUNITY CARE VOL,PREMIER INN
04/09/2017,BURBANK COMMUNITY HOME,PRIMARK,15.00,"CLOTHING, UNIFORM AND LAUNDRY",FAMILY CLOTHING STORES
04/09/2017,TRANSPORT,AMAZON.CO.UK,12.50,STATIONERY,BOOK STORES
04/09/2017,CHMHS RAP TEAM,48HOURSLOGO.COM,140.93,EDUC VISITS/HOLS/CAMPS/TOYS,"COMP PROGRAMING,DATA PRCSNG,INTGRTD SYS DSGN SRVS"
04/09/2017,STUDENT FARECARD,SURREY CC CARD PAY,-10.00,NON-STAFF RELATED TRANSPORT COSTS,COMPUTER NETWORK/INFORMATION SERVICES
04/09/2017,STUDENT FARECARD,SURREY CC CARD PAY,-10.00,NON-STAFF RELATED TRANSPORT COSTS,COMPUTER NETWORK/INFORMATION SERVICES
04/09/2017,PROPERTY OPERATIONS TEAM,SCREWFIX GUILDFORD,41.97,PURCHASE OF BUILDING MATERIALS,"BUILDING MATERIALS, LUMBER STORES"
04/09/2017,TRAINING AND DEVELOPMENT,FUTURE INNS CARDIFF,"1,710.00",TRAINING EXPENSES EXTERNAL GENERAL,"LODGING-HOTELS,MOTELS,RESORTS-NOT CLASSIFIED"
04/09/2017,SOLD DAY TO DAY OPERATIONS,TESCO STORES 3102,8.10,EQUIPMENT,"GROCERY STORES, SUPERMARKETS"
04/09/2017,CHEYNE WALK COMMUNITY HOME,WAITROSE 233,10.00,PURCHASE OF FOOD (RAW MATERIALS),"GROCERY STORES, SUPERMARKETS"
04/09/2017,CHEYNE WALK COMMUNITY HOME,KINGS BAKERY,6.80,PURCHASE OF FOOD (RAW MATERIALS),BAKERIES
04/09/2017,MALLOW CRESCENT,SAINSBURYS TO YOU 0652,9.60,PURCHASE OF FOOD (RAW MATERIALS),"GROCERY STORES, SUPERMARKETS"
04/09/2017,MALLOW CRESCENT,SAINSBURYS TO YOU 0652,116.05,PURCHASE OF FOOD (RAW MATERIALS),"GROCERY STORES, SUPERMARKETS"
04/09/2017,LOWER MOLE COUNTRYSIDE PROJECT,TIMPSON LTD,9.20,PURCHASE OF BUILDING MATERIALS,"HAT CLEANING SHOPS, SHOE REPAIR SHOPS, SHOE SHINE"
04/09/2017,WOODLANDS COMMUNITY HOME,TOURVEST-BA FOOD/,42.80,PURCHASE OF FOOD (RAW MATERIALS),"MISC FOOD STORE-CONVENIENCE,MRKT,SPLTY,VENDNG MACS"
04/09/2017,MALLOW CRESCENT,SAINSBURYS TO YOU 0652,15.70,PURCHASE OF FOOD (RAW MATERIALS),"GROCERY STORES, SUPERMARKETS"
04/09/2017,MALLOW CRESCENT,SAINSBURYS TO YOU 0652,95.10,PURCHASE OF FOOD (RAW MATERIALS),"GROCERY STORES, SUPERMARKETS"
04/09/2017,FAMILIES SPELTHORNE,TESCO STORE 2047,16.04,REFRESHMENT COSTS,"GROCERY STORES, SUPERMARKETS"
04/09/2017,EXTENDED HOPE,ONE STOP 1523,6.86,REFRESHMENT COSTS,"GROCERY STORES, SUPERMARKETS"
04/09/2017,LIBERTAS COMMUNITY HOME,SAINSBURYS SACAT 0652,13.60,EQUIPMENT,"GROCERY STORES, SUPERMARKETS"
04/09/2017,LIBERTAS COMMUNITY HOME,SAINSBURYS SACAT 0652,12.50,EQUIPMENT,"GROCERY STORES, SUPERMARKETS"
04/09/2017,LIBERTAS COMMUNITY HOME,SAINSBURYS SACAT 0652,2.50,EDUC VISITS/HOLS/CAMPS/TOYS,"GROCERY STORES, SUPERMARKETS"
04/09/2017,LIBERTAS COMMUNITY HOME,SAINSBURYS 0652,20.00,3RD PARTY PAYMENTS PRIVATE INDIV,"GROCERY STORES, SUPERMARKETS"
04/09/2017,LIBERTAS COMMUNITY HOME,SAINSBURYS 0652,10.00,TELECOMMUNICATION CHARGES,"GROCERY STORES, SUPERMARKETS"
04/09/2017,RUNNYMEDE LOCAL CARE OP,HMCTS-SURREY125,75.00,FEES,FINES
04/09/2017,ACL CENTRAL EXPENDITURE,AMAZON UK MARKETPLACE,37.98,EQUIPMENT,BOOK STORES
04/09/2017,COVEHAM,SAINSBURYS TO YOU 0687,172.96,REFRESHMENT COSTS,"GROCERY STORES, SUPERMARKETS"
04/09/2017,TARGETED INTERVENTION,TESCO STORE 2047,62.40,STATIONERY,"GROCERY STORES, SUPERMARKETS"
04/09/2017,LIBERTAS COMMUNITY HOME,SAINSBURYS 0652,2.00,EQUIPMENT,"GROCERY STORES, SUPERMARKETS"
04/09/2017,LIBERTAS COMMUNITY HOME,SAINSBURYS 0652,15.20,PURCHASE OF FOOD (RAW MATERIALS),"GROCERY STORES, SUPERMARKETS"
04/09/2017,LIBERTAS COMMUNITY HOME,SAINSBURYS 0652,131.16,PURCHASE OF FOOD (RAW MATERIALS),"GROCERY STORES, SUPERMARKETS"
04/09/2017,BURBANK COMMUNITY HOME,CURRYS SUPERSTORE 2324,-479.97,EQUIPMENT,ELECTRONIC SALES
04/09/2017,STUDENT FARECARD,SURREY CC CARD PAY,10.00,NON-STAFF RELATED TRANSPORT COSTS,COMPUTER NETWORK/INFORMATION SERVICES
04/09/2017,STUDENT FARECARD,SURREY CC CARD PAY,10.00,NON-STAFF RELATED TRANSPORT COSTS,COMPUTER NETWORK/INFORMATION SERVICES
04/09/2017,ACL CENTRAL EXPENDITURE,AMAZON UK MARKETPLACE,29.99,EQUIPMENT,BOOK STORES
04/09/2017,SOLD ESTATES MANAGEMENT,TOOLSTATION LTD,13.68,DAY TO DAY MAINTENANCE,HARDWARE STORES
04/09/2017,BURBANK COMMUNITY HOME,AMAZON UK MARKETPLACE,26.60,EQUIPMENT,BOOK STORES
04/09/2017,BURBANK COMMUNITY HOME,WWW.HORSELL-JUNIOR.SUR,29.98,"CLOTHING, UNIFORM AND LAUNDRY","SCHOOLS, ELEMENTARY AND SECONDARY"
04/09/2017,BURBANK COMMUNITY HOME,WWW.SURREYCC.GOV.UK,50.00,REFRESHMENT COSTS,GOVERNMENT SERVICES-NOT ELSEWHERE CLASSIFIED
04/09/2017,BURBANK COMMUNITY HOME,WWW.SURREYCC.GOV.UK,12.00,REFRESHMENT COSTS,GOVERNMENT SERVICES-NOT ELSEWHERE CLASSIFIED
04/09/2017,BURBANK COMMUNITY HOME,SURREY CC INTERNET,74.25,REFRESHMENT COSTS,PROFESSIONAL SERVICES-NOT ELSEWHERE CLASSIFIED
04/09/2017,FAMILIES REIGATE AND BANSTREAD,HALFORDS 0757,11.00,EQUIPMENT,BICYCLE SHOPS-SALES AND SERVICE
04/09/2017,HILLSIDE,LIDL UK,.95,PURCHASE OF FOOD (RAW MATERIALS),"GROCERY STORES, SUPERMARKETS"
04/09/2017,HILLSIDE,LIDL UK,18.46,PURCHASE OF FOOD (RAW MATERIALS),"GROCERY STORES, SUPERMARKETS"
04/09/2017,ARUNDEL,CVLE / MPLC,160.19,FEES,"CONSULTING, MANAGEMENT, AND PUBLIC RELATIONS SVCS"
04/09/2017,MEMBERS EXPENSES (INCL ALLOWANCES),COMPANIES HOUSE,13.00,FEES,GOVERNMENT SERVICES-NOT ELSEWHERE CLASSIFIED
04/09/2017,FAIRCROFT COMMUNITY HOME,OXFAM F4240,29.50,EQUIPMENT,"ORGANIZATIONS, CHARITABLE AND SOCIAL SERVICES"
04/09/2017,FAIRCROFT COMMUNITY HOME,SAINSBURYS SACAT 0687,51.65,PURCHASE OF FOOD (RAW MATERIALS),"GROCERY STORES, SUPERMARKETS"
04/09/2017,FAIRCROFT COMMUNITY HOME,SAINSBURYS SACAT 0687,33.70,PURCHASE OF FOOD (RAW MATERIALS),"GROCERY STORES, SUPERMARKETS"
04/09/2017,FAIRCROFT COMMUNITY HOME,SAINSBURYS SACAT 0687,22.48,EQUIPMENT,"GROCERY STORES, SUPERMARKETS"
04/09/2017,BURBANK COMMUNITY HOME,3C_ WOKING BOROUGH COU,3.90,VEHICLE RUNNING COSTS,AUTOMOBILE PARKING LOTS AND GARAGES
04/09/2017,BURBANK COMMUNITY HOME,SHOE ZONE LTD,13.04,"CLOTHING, UNIFORM AND LAUNDRY",SHOE STORES
04/09/2017,BURBANK COMMUNITY HOME,NANDOS WOKING,23.20,PURCHASE OF FOOD (RAW MATERIALS),"EATING PLACES, RESTAURANTS"
04/09/2017,TRANSPORT,AMAZON UK MARKETPLACE,47.81,COMPUTER HARDWARE,BOOK STORES
04/09/2017,OCCUPATIONAL HEALTH,MEDISAVE,450.59,EQUIPMENT,DENTAL/LAB/MED/OPHTHALMIC HOSP EQUIP & SUPPLIES
04/09/2017,ASSET PLANNING - OPERATIONS,MDS BATTERY LTD,13.99,EQUIPMENT,ELECTRICAL PARTS AND EQUIPMENT
04/09/2017,HOPE SERVICE - WEST,SAINSBURYS SACAT(4409),15.25,PURCHASE OF FOOD (RAW MATERIALS),"GROCERY STORES, SUPERMARKETS"
04/09/2017,HOPE SERVICE - WEST,TESCO STORE 2590,143.00,PURCHASE OF FOOD (RAW MATERIALS),"GROCERY STORES, SUPERMARKETS"
04/09/2017,ASSET PLANNING GROUP,GUILDFORD TYRE CO LTD,72.00,EQUIPMENT,AUTOMOTIVE TIRE STORES
04/09/2017,ASSET PLANNING GROUP,FG BARNES & SONS L,30.00,EQUIPMENT,"AUTO & TRUCK DLRS-SALES,SVC, REPRS,PRTS, & LEASING"
04/09/2017,ARUNDEL,TESCO STORE 3406,25.49,REFRESHMENT COSTS,"GROCERY STORES, SUPERMARKETS"
04/09/2017,FACILITIES - WEST,AMAZON EU,12.97,TRAINING EXPENSES EXTERNAL GENERAL,DIRECT MARKETING-OTHER DIRECT MARKETERS/NOT ELSEW.
04/09/2017,COUNTY HALL,JCM LOCKSMITHS LTD,168.00,EQUIPMENT,HARDWARE STORES
04/09/2017,MALLOW CRESCENT,TESCO STORE 2590,4.98,PURCHASE OF FOOD (RAW MATERIALS),"GROCERY STORES, SUPERMARKETS"
04/09/2017,MALLOW CRESCENT,TESCO STORE 2590,96.82,PURCHASE OF FOOD (RAW MATERIALS),"GROCERY STORES, SUPERMARKETS"
04/09/2017,PROPERTY OPERATIONS TEAM,SCREWFIX GUILDFORD,26.00,PURCHASE OF BUILDING MATERIALS,"BUILDING MATERIALS, LUMBER STORES"
05/09/2017,STUDENT FARECARD,SURREY CC CARD PAY,-10.00,NON-STAFF RELATED TRANSPORT COSTS,COMPUTER NETWORK/INFORMATION SERVICES
05/09/2017,ASSET PLANNING GROUP,PREMIER INN,243.00,VENUE COSTS (INCLUDING HIRE OF ROOMS),PREMIER INN
05/09/2017,TRAINING AND DEVELOPMENT,PREMIER INN,146.99,SUBSISTENCE AND CONFERENCE EXPENSES,PREMIER INN
05/09/2017,RIGHTS OF WAY 'STRUCTURES CAPITAL',OTTERBOX IRELAND,125.98,CE02 FURNITURE AND EQUIPMENT,TELECOMMUNICATION EQUIPMENT INCL TELEPHONE SALES
05/09/2017,DEVELOPMENT TEAM,"CLOUD9 IDE, INC",23.12,COMPUTER SERVICES,"COMPUTERS, COMPUTER PERIPHERAL EQUIPMENT, SOFTWARE"
05/09/2017,LIBERTAS COMMUNITY HOME,FIVES AND SIXES TAXIS,60.00,HIRE OF VEHICLES,LIMOUSINES AND TAXICABS
05/09/2017,CHEYNE WALK COMMUNITY HOME,J D SPORTS PLC,85.00,"CLOTHING, UNIFORM AND LAUNDRY",SPORTING GOODS STORES
05/09/2017,CHEYNE WALK COMMUNITY HOME,COUNTY MALL CAR PARK,2.50,EDUC VISITS/HOLS/CAMPS/TOYS,AUTOMOBILE PARKING LOTS AND GARAGES
05/09/2017,CHEYNE WALK COMMUNITY HOME,STARBUCKS,12.84,REFRESHMENT COSTS,FAST FOOD RESTAURANTS
05/09/2017,DOWNLANDS COUNTRYSIDE PROJECT,WWW.MILLETS.CO.UK,95.20,EQUIPMENT,SPORTING GOODS STORES
05/09/2017,DOWNLANDS COUNTRYSIDE PROJECT,KIWIKIT LTD,46.68,EQUIPMENT,AGRICULTURAL COOPERATIVES
05/09/2017,WAVERLEY CMHRS CARE,TRAVELODGE,328.50,OTHER COMMUNITY CARE PRIV,TRAVELODGE
05/09/2017,WAVERLEY CMHRS CARE,TRAVELODGE,31.50,OTHER COMMUNITY CARE PRIV,TRAVELODGE
05/09/2017,ROW VOLUNTEERS WEST                     ,METHOLD VEHICLE HIRE,54.00,HIRE OF VEHICLES,AUTOMOBILE RENTAL AGENCY-NOT ELSEWHERE CLASSIFIED
05/09/2017,ENSEMBLES & TOURS,SHEETMUSICPLUS.COM,97.29,EQUIPMENT,"MUSIC STORES-INSTRUMENTS, PIANOS, SHEET MUSIC"
05/09/2017,EXTENDED HOPE,DISCLOSURE & BARRING,13.00,FEES,GOVERNMENT SERVICES-NOT ELSEWHERE CLASSIFIED
05/09/2017,BURBANK COMMUNITY HOME,SAINSBURYS SACAT 0686,13.10,PURCHASE OF FOOD (RAW MATERIALS),"GROCERY STORES, SUPERMARKETS"
05/09/2017,NE CARE - LAC,TRAINLINE,76.50,NON-STAFF RELATED TRANSPORT COSTS,PASSENGER RAILWAYS
05/09/2017,NE CARE - LAC,TRAINLINE,76.50,NON-STAFF RELATED TRANSPORT COSTS,PASSENGER RAILWAYS
05/09/2017,ASYLUM SEEKERS 18+,CITYSTYLE PROPERTIES,811.56,INDEPENDENT LIVING PLACEMENTS,PROFESSIONAL SERVICES-NOT ELSEWHERE CLASSIFIED
05/09/2017,TARGETED INTERVENTION,TESCO STORE 2047,8.00,EDUC VISITS/HOLS/CAMPS/TOYS,"GROCERY STORES, SUPERMARKETS"
05/09/2017,TARGETED INTERVENTION,SQUIRES GARDEN CENTRE,5.35,EDUC VISITS/HOLS/CAMPS/TOYS,LAWN AND GARDEN SUPPLY STORES
05/09/2017,DOWNLANDS COUNTRYSIDE PROJECT,TESCO STORES,29.19,REFRESHMENT COSTS,"GROCERY STORES, SUPERMARKETS"
05/09/2017,COUNTY HALL,SCREWFIX DIRECT,84.32,DAY TO DAY MAINTENANCE,"BUILDING MATERIALS, LUMBER STORES"
05/09/2017,RUTH HOUSE,SAINSBURYS SACAT 0652,9.05,"CLOTHING, UNIFORM AND LAUNDRY","GROCERY STORES, SUPERMARKETS"
05/09/2017,RUTH HOUSE,SAINSBURYS SACAT 0652,49.00,"CLOTHING, UNIFORM AND LAUNDRY","GROCERY STORES, SUPERMARKETS"
05/09/2017,RUTH HOUSE,C-MONETIQUETTE,27.00,EQUIPMENT,DIRECT MARKETING-COMBINATION CATALOG/RETAIL MERCH.
05/09/2017,SW CARE - LAC,PP STATIONCARSOXTEDLTD,80.00,NON-STAFF RELATED TRANSPORT COSTS,LIMOUSINES AND TAXICABS
05/09/2017,CHEYNE WALK COMMUNITY HOME,AMAZON EU,23.25,EQUIPMENT,DIRECT MARKETING-OTHER DIRECT MARKETERS/NOT ELSEW.
05/09/2017,COVEHAM,AMAZON UK MARKETPLACE,27.00,EQUIPMENT,BOOK STORES
05/09/2017,COVEHAM,SAINSBURYS 0687,5.00,COMPUTER CONSUMABLES,"GROCERY STORES, SUPERMARKETS"
05/09/2017,COVEHAM,TIMPSON LTD,9.00,DAY TO DAY MAINTENANCE,"HAT CLEANING SHOPS, SHOE REPAIR SHOPS, SHOE SHINE"
05/09/2017,FAMILIES WOKING,WAITROSE 181,4.95,PURCHASE OF FOOD (RAW MATERIALS),"GROCERY STORES, SUPERMARKETS"
05/09/2017,BURBANK COMMUNITY HOME,SAINSBURYS SACAT 0802,1.60,REFRESHMENT COSTS,"GROCERY STORES, SUPERMARKETS"
05/09/2017,BURBANK COMMUNITY HOME,3C_ WOKING BOROUGH COU,1.30,VEHICLE RUNNING COSTS,AUTOMOBILE PARKING LOTS AND GARAGES
05/09/2017,BURBANK COMMUNITY HOME,DEICHMANN SE 0085,28.03,"CLOTHING, UNIFORM AND LAUNDRY",SHOE STORES
05/09/2017,BURBANK COMMUNITY HOME,MCDONALDS,1.79,REFRESHMENT COSTS,FAST FOOD RESTAURANTS
05/09/2017,OCCUPATIONAL HEALTH,AMPLIVOX LTD,222.00,EQUIPMENT,"HEALTH PRACTITIONERS, MEDICAL SRVCS-NOT ELSEWHERE"
05/09/2017,SOLD ESTATES MANAGEMENT,HEARNS FARM SUPPLIES,25.99,EQUIPMENT,MISC/AUTO/AIRCRAFT/FARM EQUIP  NOT ELSEWHERE CLASS
05/09/2017,CONSORT HOUSE REDHILL,KEY INDUSTRIAL EQUIPME,124.80,EQUIPMENT,HARDWARE EQUIPMENT AND SUPPLIES
05/09/2017,NE TEACHERS,WWW.DYSLEXIAACTIONSHOP,135.60,CURRIC BOOKS,"SCHOOLS, TRADE AND VOCATIONAL"
05/09/2017,PE/CDT MAINTENANCE OVERHEADS,INDUSTRIAL RUBBER,833.33,EQUIPMENT,MISCELLANEOUS AND SPECIALTY RETAIL STORES
05/09/2017,FAMILIES GUILDFORD,TESCO STORE 2590,9.93,REFRESHMENT COSTS,"GROCERY STORES, SUPERMARKETS"
05/09/2017,FAMILIES GUILDFORD,TESCO STORE 2590,9.59,REFRESHMENT COSTS,"GROCERY STORES, SUPERMARKETS"
05/09/2017,BURBANK COMMUNITY HOME,AMAZON EU,99.99,EQUIPMENT,DIRECT MARKETING-OTHER DIRECT MARKETERS/NOT ELSEW.
05/09/2017,BURBANK COMMUNITY HOME,AMAZON UK MARKETPLACE,4.59,EQUIPMENT,BOOK STORES
05/09/2017,TRANSPORT,AMAZON EU,27.98,COMPUTER HARDWARE,DIRECT MARKETING-OTHER DIRECT MARKETERS/NOT ELSEW.
05/09/2017,SOLD DAY TO DAY OPERATIONS,SAINSBURYS 2053,33.05,EQUIPMENT,"GROCERY STORES, SUPERMARKETS"
05/09/2017,SOLD ESTATES MANAGEMENT,SCREWFIX DIRECT,17.97,DAY TO DAY MAINTENANCE,"BUILDING MATERIALS, LUMBER STORES"
05/09/2017,NE EDUCATION PSYCHOLOGISTS,JESSICA KINGSLEY PUBLI,17.74,BOOKS,BOOK STORES
05/09/2017,PE/CDT MAINTENANCE OVERHEADS,WICKES,46.09,ITEMS PURCHASED FOR RE-SALE,"BUILDING MATERIALS, LUMBER STORES"
05/09/2017,HOPE SERVICE - WEST,SAINSBURYS 0683,85.61,PURCHASE OF FOOD (RAW MATERIALS),"GROCERY STORES, SUPERMARKETS"
05/09/2017,VIRTUAL SCHOOL FOR LAC PUPIL PREMIUM,AMAZON UK MARKETPLACE,22.12,SPECIALIST EDUCATIONAL STATIONERY,BOOK STORES
05/09/2017,VIRTUAL SCHOOL FOR LAC PUPIL PREMIUM,WWW.WESTMINSTER-BRIEFI,294.00,SUBSISTENCE AND CONFERENCE EXPENSES,"SCHOOLS, BUSINESS AND SECRETARIAL"
05/09/2017,HOPE SERVICE - WEST,SAINSBURYS SACAT(4409),3.40,NEWSPAPER AND PERIODICALS,"GROCERY STORES, SUPERMARKETS"
05/09/2017,VIRTUAL SERVICE MANAGER,AMAZON UK MARKETPLACE,179.90,COMPUTER HARDWARE,BOOK STORES
05/09/2017,BURBANK COMMUNITY HOME,VALENTINOS,71.72,"CLOTHING, UNIFORM AND LAUNDRY",MEN'S/WOMEN'S/CHILDREN'S UNIFORMS/COMMERCIAL CLOTH
05/09/2017,N REGIONAL STAFF,THE CHALLENGER MAGAZIN,360.00,STAFF ADVERTISING ,MISCELLANEOUS PUBLISHING AND PRINTING
05/09/2017,WOODLANDS COMMUNITY HOME,AMAZON UK RETAIL AMAZO,49.99,3RD PARTY PAYMENTS PRIVATE INDIV,MISCELLANEOUS AND SPECIALTY RETAIL STORES
05/09/2017,SCHOOL SPORT 2015-16                    ,PAYPAL  PLASTICONLI,60.20,EQUIPMENT,CHEMICALS/ALLIED PRODUCTS NOT ELSEWHERE CLASSIFIED
05/09/2017,SCHOOL SPORT 2015-16                    ,PAYPAL  PLASTICONLI,13.12,POSTAGE AND COURIER CHARGES,CHEMICALS/ALLIED PRODUCTS NOT ELSEWHERE CLASSIFIED
05/09/2017,HILLSIDE,SAINSBURYS 0675,19.10,PURCHASE OF FOOD (RAW MATERIALS),"GROCERY STORES, SUPERMARKETS"
05/09/2017,HILLSIDE,SAINSBURYS 0675,54.80,PURCHASE OF FOOD (RAW MATERIALS),"GROCERY STORES, SUPERMARKETS"
05/09/2017,STUDENT FARECARD,SURREY CC CARD PAY,10.00,NON-STAFF RELATED TRANSPORT COSTS,COMPUTER NETWORK/INFORMATION SERVICES
05/09/2017,HEAD OF SCH COMMISSIONING & ADMISSIONS,WWW.PMGLTD.CO.UK,474.00,TRAINING EXPENSES EXTERNAL GENERAL,BUSINESS SERVICES-NOT ELSEWHERE CLASSIFIED
05/09/2017,MISC EDCAT SUPPORT,INSTITUTE OF DIREC,405.00,SUBSCRIPTIONS,"ORGANIZATIONS, MEMBERSHIP-NOT ELSEWHERE CLASSIFIED"
05/09/2017,SOLD ESTATES MANAGEMENT,AMAZON UK MARKETPLACE,22.73,DAY TO DAY MAINTENANCE,BOOK STORES
05/09/2017,FAMILIES MOLE VALLEY,TESCO STORES 2812,7.81,PURCHASE OF FOOD (RAW MATERIALS),"GROCERY STORES, SUPERMARKETS"
05/09/2017,BURBANK COMMUNITY HOME,WICKES,18.08,DAY TO DAY MAINTENANCE,HOME SUPPLY WAREHOUSE STORES
05/09/2017,CHEYNE WALK COMMUNITY HOME,GREGGS PLC,1.25,REFRESHMENT COSTS,"EATING PLACES, RESTAURANTS"
05/09/2017,BURBANK COMMUNITY HOME,AMAZON UK MARKETPLACE,14.62,EQUIPMENT,BOOK STORES
06/09/2017,SE CARE - CP & COURT LAC,SURREY CC CARD PAY,-11.00,OTHER COMMUNITY CARE VOL,COMPUTER NETWORK/INFORMATION SERVICES
06/09/2017,TRANSPORT,AMAZON.CO.UK,62.40,FIXTURES AND FITTINGS,BOOK STORES
06/09/2017,CS BUSINESS SUPPORT EAST,AMAZON.CO.UK,27.98,EQUIPMENT,BOOK STORES
06/09/2017,COMMUNICATIONS TEAM,AMAZON UK RETAIL AMAZO,23.11,STATIONERY,MISCELLANEOUS AND SPECIALTY RETAIL STORES
06/09/2017,ORBIS HR PROGRAMME AND PERFORMANCE,AMAZON.CO.UK,13.13,EQUIPMENT,BOOK STORES
06/09/2017,TRANSPORT,INTRAMARK,227.72,"CLOTHING, UNIFORM AND LAUNDRY",MISCELLANEOUS AND SPECIALTY RETAIL STORES
06/09/2017,LIBERTAS COMMUNITY HOME,WWW.SYKESCOTTAGES.CO.U,-39.00,EDUC VISITS/HOLS/CAMPS/TOYS,MISCELLANEOUS AND SPECIALTY RETAIL STORES
06/09/2017,WOODLANDS COMMUNITY HOME,HOMEBASE LTD 084,-18.49,FIXTURES AND FITTINGS,"BUILDING MATERIALS, LUMBER STORES"
06/09/2017,HOPE SERVICE - WEST,SAINSBURYS SACAT(4409),2.25,PURCHASE OF FOOD (RAW MATERIALS),"GROCERY STORES, SUPERMARKETS"
06/09/2017,FAIRCROFT COMMUNITY HOME,PP 3212CODE,-1.00,EQUIPMENT,PROFESSIONAL SERVICES-NOT ELSEWHERE CLASSIFIED
06/09/2017,TRANSPORT,AMAZON UK MARKETPLACE,6.28,COMPUTER HARDWARE,BOOK STORES
06/09/2017,CHEYNE WALK COMMUNITY HOME,DVLA VEHICLE TAX,117.50,VEHICLE RUNNING COSTS,GOVERNMENT SERVICES-NOT ELSEWHERE CLASSIFIED
06/09/2017,BURBANK COMMUNITY HOME,SAINSBURYS TO YOU 0686,294.99,PURCHASE OF FOOD (RAW MATERIALS),"GROCERY STORES, SUPERMARKETS"
06/09/2017,BURBANK COMMUNITY HOME,SAINSBURYS TO YOU 0686,-12.00,PURCHASE OF FOOD (RAW MATERIALS),"GROCERY STORES, SUPERMARKETS"
06/09/2017,PROPERTY OPERATIONS TEAM,TOOLSTATION LTD,17.05,PURCHASE OF BUILDING MATERIALS,HARDWARE STORES
06/09/2017,FAIRCROFT COMMUNITY HOME,RUGAL REPAIRS AND SALE,70.50,EQUIPMENT,HOUSEHOLD APPLIANCE STORES
06/09/2017,FAIRCROFT COMMUNITY HOME,WWW.SURREYCC.GOV.UK,50.00,REFRESHMENT COSTS,GOVERNMENT SERVICES-NOT ELSEWHERE CLASSIFIED
06/09/2017,PROPERTY OPERATIONS TEAM,CONNECT 2 MOBILE LTD,10.00,PURCHASE OF BUILDING MATERIALS,"COMPUTERS, COMPUTER PERIPHERAL EQUIPMENT, SOFTWARE"
06/09/2017,PROPERTY OPERATIONS TEAM,SCREWFIX GUILDFORD,15.59,PURCHASE OF BUILDING MATERIALS,"BUILDING MATERIALS, LUMBER STORES"
06/09/2017,NE CP & COURT TEAM,UKBA5873982504,199.00,FEES,GOVERNMENT SERVICES-NOT ELSEWHERE CLASSIFIED
06/09/2017,CSF BUSINESS SUPPORT EDUCATION,UKBA7621202595,"3,199.00",FEES,GOVERNMENT SERVICES-NOT ELSEWHERE CLASSIFIED
06/09/2017,ESTATES DELIVERY MANAGER,WWW.PORT.AC.UK,120.00,TRAINING EXPENSES EXTERNAL GENERAL,SCHOOLS & EDUCATIONAL SVC-NOT ELSEWHERE CLASSIFIED
06/09/2017,KARIBU COMMUNITY HOME,AUTOGLASS,732.96,VEHICLE REPAIRS AND MAINTENANCE,"AUTOMOTIVE PARTS, ACCESSORIES STORES"
06/09/2017,KARIBU COMMUNITY HOME,AUTOGLASS,473.09,VEHICLE REPAIRS AND MAINTENANCE,"AUTOMOTIVE PARTS, ACCESSORIES STORES"
06/09/2017,KARIBU COMMUNITY HOME,WWW.LOCKDOCTOR.BIZ,13.14,EQUIPMENT,MISCELLANEOUS AND SPECIALTY RETAIL STORES
06/09/2017,EXTENDED HOPE,TESCO STORE 2590,10.86,PURCHASE OF FOOD (RAW MATERIALS),"GROCERY STORES, SUPERMARKETS"
06/09/2017,EXTENDED HOPE,TESCO STORE 2590,96.23,PURCHASE OF FOOD (RAW MATERIALS),"GROCERY STORES, SUPERMARKETS"
06/09/2017,BURBANK COMMUNITY HOME,ARGOS LTD,449.99,EQUIPMENT,DISCOUNT STORES
06/09/2017,PRISON CAPITATION                       ,AMAZON UK MARKETPLACE,65.92,EQUIPMENT,BOOK STORES
06/09/2017,BOOKS - ADULT NON-FICTION               ,AMAZON EU,11.17,EQUIPMENT,DIRECT MARKETING-OTHER DIRECT MARKETERS/NOT ELSEW.
06/09/2017,ACCESS PROGRAMMES,WWW.EMBROIDERED-PRINTE,192.00,EQUIPMENT,"GIFT, CARD, NOVELTY AND SOUVENIR SHOPS"
06/09/2017,DRAMA WARDROBE,IKEA ONLINE,72.50,EQUIPMENT,MISCELLANEOUS HOUSE FURNISHING SPECIALTY SHOPS
06/09/2017,FAMILIES SPELTHORNE,SAINSBURYS SACAT (4117,1.00,REFRESHMENT COSTS,"GROCERY STORES, SUPERMARKETS"
06/09/2017,EXTENDED HOPE,AMAZON UK MARKETPLACE,13.84,EQUIPMENT,BOOK STORES
06/09/2017,EXTENDED HOPE,MCDONALDS,12.96,REFRESHMENT COSTS,FAST FOOD RESTAURANTS
06/09/2017,RIGHTS OF WAY 'STRUCTURES CAPITAL',PAYPAL  LIVERPOOLCO,99.90,CE02 FURNITURE AND EQUIPMENT,SPORTING GOODS STORES
06/09/2017,NORTH WEST AREA TEAM,DENNIS WILLIAMS LTD,28.00,EQUIPMENT,BARBER AND BEAUTY SHOPS
06/09/2017,ORBIS HR PROGRAMME AND PERFORMANCE,AMAZON EU,8.99,EQUIPMENT,DIRECT MARKETING-OTHER DIRECT MARKETERS/NOT ELSEW.
06/09/2017,COVEHAM,AMAZON UK MARKETPLACE,15.97,EQUIPMENT,BOOK STORES
06/09/2017,FAMILIES WOKING,W M MORRISONS,12.04,PURCHASE OF FOOD (RAW MATERIALS),"GROCERY STORES, SUPERMARKETS"
06/09/2017,FAMILIES GUILDFORD,TESCO STORES 2025,7.64,PURCHASE OF FOOD (RAW MATERIALS),"GROCERY STORES, SUPERMARKETS"
06/09/2017,FAMILIES ELMBRIDGE,SAINSBURYS SACAT 2663,9.70,PURCHASE OF FOOD (RAW MATERIALS),"GROCERY STORES, SUPERMARKETS"
06/09/2017,FAMILIES GUILDFORD,TABLE TABLE41015900,2.85,REFRESHMENT COSTS,"EATING PLACES, RESTAURANTS"
06/09/2017,LEAVING CARE PACKAGES,MARITIME HOTEL LTD,238.50,INDEPENDENT LIVING PLACEMENTS,"LODGING-HOTELS,MOTELS,RESORTS-NOT CLASSIFIED"
06/09/2017,SE CARE - LAC,PRIORY HSE DENTAL PRAC,65.00,OTHER COMMUNITY CARE VOL,"DENTISTS, ORTHODONTISTS"
06/09/2017,FAIRCROFT COMMUNITY HOME,COBHAM SUPERSTORES,23.00,EQUIPMENT,HARDWARE STORES
06/09/2017,FAIRCROFT COMMUNITY HOME,SAINSBURYS 0687,35.00,PURCHASE OF FOOD (RAW MATERIALS),"GROCERY STORES, SUPERMARKETS"
06/09/2017,CHEYNE WALK COMMUNITY HOME,YOUR IMAGE LIMITED,63.45,"CLOTHING, UNIFORM AND LAUNDRY","CLOTHING RENTAL-COSTUMES,UNIFORMS,FORMAL WEAR"
06/09/2017,CHEYNE WALK COMMUNITY HOME,TESCO-STORES 6647,175.77,PURCHASE OF FOOD (RAW MATERIALS),"GROCERY STORES, SUPERMARKETS"
06/09/2017,QUADRANT COURT WOKING,AMAZON PRIME,-7.99,EQUIPMENT,DIRECT MARKETING-CONTINUITY/SUBSCRIPTION MERCHANTS
06/09/2017,"SE REF, ASS & INT SERVICE - HUB 1",SURREY CC CARD PAY,31.00,FEES,COMPUTER NETWORK/INFORMATION SERVICES
06/09/2017,HOPE SERVICE - WEST,SAINSBURYS TO YOU 0686,112.72,PURCHASE OF FOOD (RAW MATERIALS),"GROCERY STORES, SUPERMARKETS"
06/09/2017,QUADRANT COURT WOKING,SAFE.CO.UK,159.07,EQUIPMENT,"OFFICE, SCHOOL SUPPLY, AND STATIONERY STORES"
06/09/2017,QUADRANT COURT WOKING,CITY ELECTRICAL FA,163.19,EQUIPMENT,"BUILDING MATERIALS, LUMBER STORES"
06/09/2017,CHEYNE WALK COMMUNITY HOME,MCDONALDS,2.98,PURCHASE OF FOOD (RAW MATERIALS),FAST FOOD RESTAURANTS
06/09/2017,HILLSIDE,SAINSBURYS SACAT 0675,3.13,PURCHASE OF FOOD (RAW MATERIALS),"GROCERY STORES, SUPERMARKETS"
06/09/2017,HILLSIDE,SAINSBURYS SACAT 0675,84.07,PURCHASE OF FOOD (RAW MATERIALS),"GROCERY STORES, SUPERMARKETS"
06/09/2017,HILLSIDE,SAINSBURYS SACAT 0675,18.75,EQUIPMENT,"GROCERY STORES, SUPERMARKETS"
06/09/2017,COVEHAM,SAINSBURYS TO YOU 0687,157.90,CLEANING MATERIALS,"GROCERY STORES, SUPERMARKETS"
06/09/2017,COVEHAM,SAINSBURYS TO YOU 0687,-4.50,REFRESHMENT COSTS,"GROCERY STORES, SUPERMARKETS"
06/09/2017,SE CARE - CP & COURT LAC,SURREY CC CARD PAY,11.00,OTHER COMMUNITY CARE VOL,COMPUTER NETWORK/INFORMATION SERVICES
06/09/2017,LIBERTAS COMMUNITY HOME,WWW.EUREKADIRECT.CO.UK,31.80,EQUIPMENT,DENTAL/LAB/MED/OPHTHALMIC HOSP EQUIP & SUPPLIES
06/09/2017,FAIRCROFT COMMUNITY HOME,MARKS&SPENCER PLC,113.05,"CLOTHING, UNIFORM AND LAUNDRY","GROCERY STORES, SUPERMARKETS"
06/09/2017,FAIRCROFT COMMUNITY HOME,SPORTSDIRECT 174,77.53,EQUIPMENT,SPORTING GOODS STORES
06/09/2017,ROW VOLUNTEERS WEST                     ,AMAZON EU,22.37,EQUIPMENT,DIRECT MARKETING-OTHER DIRECT MARKETERS/NOT ELSEW.
06/09/2017,BURBANK COMMUNITY HOME,B & Q 1029,32.22,DAY TO DAY MAINTENANCE,"BUILDING MATERIALS, LUMBER STORES"
06/09/2017,BURBANK COMMUNITY HOME,WICKES,36.58,DAY TO DAY MAINTENANCE,"BUILDING MATERIALS, LUMBER STORES"
07/09/2017,STUDENT FARECARD,SURREY CC CARD PAY,-25.00,NON-STAFF RELATED TRANSPORT COSTS,COMPUTER NETWORK/INFORMATION SERVICES
07/09/2017,NW SECTION 17 CARE,PREMIER INN,484.00,CHILDREN ACT SEC 17 PAYMENTS,PREMIER INN
07/09/2017,MALLOW CRESCENT,PARKDEAN HOLIDAY P,194.27,EDUC VISITS/HOLS/CAMPS/TOYS,CAMPGROUNDS AND TRAILER PARKS
07/09/2017,HOPE SERVICE - WEST,TESCO STORES 6320,5.45,PURCHASE OF FOOD (RAW MATERIALS),"GROCERY STORES, SUPERMARKETS"
07/09/2017,PROPERTY OPERATIONS TEAM,HOMEBASE LTD 305,11.11,PURCHASE OF BUILDING MATERIALS,"BUILDING MATERIALS, LUMBER STORES"
07/09/2017,PROPERTY OPERATIONS TEAM,SCREWFIX GUILDFORD,24.76,PURCHASE OF BUILDING MATERIALS,"BUILDING MATERIALS, LUMBER STORES"
07/09/2017,TRANSPORT,MAHA UK,255.60,VEHICLE REPAIRS AND MAINTENANCE,ELECTRICAL PARTS AND EQUIPMENT
07/09/2017,ARUNDEL,TESCO STORES 5999,151.31,REFRESHMENT COSTS,"GROCERY STORES, SUPERMARKETS"
07/09/2017,ARUNDEL,TESCO STORES 5999,12.00,REFRESHMENT COSTS,"GROCERY STORES, SUPERMARKETS"
07/09/2017,CHEYNE WALK COMMUNITY HOME,CEX,75.00,EQUIPMENT,ELECTRICAL PARTS AND EQUIPMENT
07/09/2017,QUADRANT COURT WOKING,WILKO WOKING,5.00,EQUIPMENT,HOUSEHOLD APPLIANCE STORES
07/09/2017,FAMILIES MOLE VALLEY,ASDA SUPERSTORE,4.77,PURCHASE OF FOOD (RAW MATERIALS),"GROCERY STORES, SUPERMARKETS"
07/09/2017,MALLOW CRESCENT,SAINSBURYS TO YOU 0652,151.05,PURCHASE OF FOOD (RAW MATERIALS),"GROCERY STORES, SUPERMARKETS"
07/09/2017,SW EDUCATION PSYCHOLOGISTS,AMAZON EU,142.46,BOOKS,DIRECT MARKETING-OTHER DIRECT MARKETERS/NOT ELSEW.
07/09/2017,TARGETED INTERVENTION,EPSOM & EWELL BOROUGH,2.60,EDUC VISITS/HOLS/CAMPS/TOYS,GOVERNMENT SERVICES-NOT ELSEWHERE CLASSIFIED
07/09/2017,TARGETED INTERVENTION,COSTA COFFEE,7.85,EDUC VISITS/HOLS/CAMPS/TOYS,FAST FOOD RESTAURANTS
07/09/2017,TARGETED INTERVENTION,FREEDOM LEISURE,3.10,EDUC VISITS/HOLS/CAMPS/TOYS,GOVERNMENT SERVICES-NOT ELSEWHERE CLASSIFIED
07/09/2017,TARGETED INTERVENTION,FREEDOM LEISURE,8.40,EDUC VISITS/HOLS/CAMPS/TOYS,GOVERNMENT SERVICES-NOT ELSEWHERE CLASSIFIED
07/09/2017,TARGETED INTERVENTION,AMF BOWLING,43.05,EDUC VISITS/HOLS/CAMPS/TOYS,"CLUBS-CNTRY,MBRSHIP(ATHLET,REC,SPRTS,PRIVATE GOLF"
07/09/2017,TARGETED INTERVENTION,AMF BOWLING,7.95,EDUC VISITS/HOLS/CAMPS/TOYS,"CLUBS-CNTRY,MBRSHIP(ATHLET,REC,SPRTS,PRIVATE GOLF"
07/09/2017,FAMILIES MOLE VALLEY,LIDL UK,11.34,PURCHASE OF FOOD (RAW MATERIALS),"GROCERY STORES, SUPERMARKETS"
07/09/2017,HOLLAND CLOSE RESIDENTIAL HOME,THE BIG APPLE,6.35,REFRESHMENT COSTS,BOWLING ALLEYS
07/09/2017,FAIRCROFT COMMUNITY HOME,SAINSBURYS 0687,69.08,PURCHASE OF FOOD (RAW MATERIALS),"GROCERY STORES, SUPERMARKETS"
07/09/2017,ROW VOLUNTEERS WEST                     ,ESSO MANOR WEALD SS,12.01,PETROL/DIESEL ALL OFF BUSINESS,SERVICE STATIONS WITH OR WITHOUT ANCILLARY SERVICE
07/09/2017,ROW VOLUNTEERS WEST                     ,METHOLD VEHICLE HIRE,54.00,HIRE OF VEHICLES,AUTOMOBILE RENTAL AGENCY-NOT ELSEWHERE CLASSIFIED
07/09/2017,FAMILIES SPELTHORNE,CEX STAINES,6.00,EXT SCH RESOURCES - COMMUNITY,ELECTRONIC SALES
07/09/2017,FAMILIES SPELTHORNE,POUNDLAND LTD 1287,1.00,PURCHASE OF FOOD (RAW MATERIALS),DISCOUNT STORES
07/09/2017,FAMILIES SPELTHORNE,TESCO STORES 4466,1.30,REFRESHMENT COSTS,"GROCERY STORES, SUPERMARKETS"
07/09/2017,DOWNLANDS COUNTRYSIDE PROJECT,MOLE VALLEY FARMERS LT,3.50,FEES,"BUILDING MATERIALS, LUMBER STORES"
07/09/2017,RIGHTS OF WAY 'STRUCTURES CAPITAL',AMAZON EU,33.98,CE02 FURNITURE AND EQUIPMENT,DIRECT MARKETING-OTHER DIRECT MARKETERS/NOT ELSEW.
07/09/2017,BURBANK COMMUNITY HOME,WAITROSE 181,6.10,EQUIPMENT,"GROCERY STORES, SUPERMARKETS"
07/09/2017,COVEHAM,TIMPSON LTD,9.00,DAY TO DAY MAINTENANCE,"HAT CLEANING SHOPS, SHOE REPAIR SHOPS, SHOE SHINE"
07/09/2017,COVEHAM,SAINSBURYS SACAT 0687,20.92,REFRESHMENT COSTS,"GROCERY STORES, SUPERMARKETS"
07/09/2017,FAIRCROFT COMMUNITY HOME,SAINSBURYS LOC(4180),10.20,PURCHASE OF FOOD (RAW MATERIALS),"GROCERY STORES, SUPERMARKETS"
07/09/2017,CHEYNE WALK COMMUNITY HOME,AMAZON UK MARKETPLACE,2.81,EQUIPMENT,BOOK STORES
07/09/2017,SE TEACHERS,WWW.ELKLAN.CO.UK,80.00,LICENCE FEES,SCHOOLS & EDUCATIONAL SVC-NOT ELSEWHERE CLASSIFIED
07/09/2017,SURREY HEATH CMHRS CARE,HMCTS-SURREY125,75.00,FEES,FINES
07/09/2017,RUNNYMEDE LOCALITY TEAM,TRAVELODGE,56.25,DAY CARE CASES,TRAVELODGE
07/09/2017,COBHAM CHILDRENS CENTRE,WWW.SURREY.GOV.UK,12.50,LOCAL AUTHORITIES,GOVERNMENT SERVICES-NOT ELSEWHERE CLASSIFIED
07/09/2017,ACL CENTRAL EXPENDITURE,TESCO STORE 2160,125.02,REFRESHMENT COSTS,"GROCERY STORES, SUPERMARKETS"
07/09/2017,ACL CENTRAL EXPENDITURE,W M MORRISONS,2.00,REFRESHMENT COSTS,"GROCERY STORES, SUPERMARKETS"
07/09/2017,HOLLAND CLOSE RESIDENTIAL HOME,THE BIG APPLE,26.85,EDUC VISITS/HOLS/CAMPS/TOYS,BOWLING ALLEYS
07/09/2017,KARIBU COMMUNITY HOME,CLOCK TOWER CARS,52.50,TRANSPORT SOCIAL CARE-TAXI,LIMOUSINES AND TAXICABS
07/09/2017,KARIBU COMMUNITY HOME,CLOCK TOWER CARS,52.50,TRANSPORT SOCIAL CARE-TAXI,LIMOUSINES AND TAXICABS
07/09/2017,BURBANK COMMUNITY HOME,FREEDOM LEISURE,3.75,SWIMMING POOLS,GOVERNMENT SERVICES-NOT ELSEWHERE CLASSIFIED
07/09/2017,ASSET PLANNING - OPERATIONS,POST OFFICE COUNTER,13.75,POSTAGE AND COURIER CHARGES,POSTAL SERVICES-GOVERNMENT ONLY
07/09/2017,RUTH HOUSE,INCO SHOP,75.35,EQUIPMENT,MISCELLANEOUS GENERAL MERCHANDISE
07/09/2017,SW LOOKED AFTER TEAM,BRITISH A,149.27,MISCELLANEOUS STAFF TRAVEL,BRITISH A
07/09/2017,SW LOOKED AFTER TEAM,RENTALCARS.COM,37.81,MISCELLANEOUS STAFF TRAVEL,AUTOMOBILE RENTAL AGENCY-NOT ELSEWHERE CLASSIFIED
07/09/2017,SW LOOKED AFTER TEAM,RENTALCARS.COM,52.02,MISCELLANEOUS STAFF TRAVEL,AUTOMOBILE RENTAL AGENCY-NOT ELSEWHERE CLASSIFIED
07/09/2017,COMMUNITY ARCHAEOLOGIST PROJECT,WWW.CROMWELL.CO.UK,208.38,EQUIPMENT,HARDWARE EQUIPMENT AND SUPPLIES
07/09/2017,HILLSIDE,SAINSBURYS 0675,52.79,PURCHASE OF FOOD (RAW MATERIALS),"GROCERY STORES, SUPERMARKETS"
07/09/2017,HILLSIDE,SAINSBURYS 0675,-27.00,PURCHASE OF FOOD (RAW MATERIALS),"GROCERY STORES, SUPERMARKETS"
07/09/2017,TRAVEL AND TRANSPORT GROUP,WESTMINSTER FORUM,252.00,TRAINING EXPENSES EXTERNAL GENERAL,"CONSULTING, MANAGEMENT, AND PUBLIC RELATIONS SVCS"
07/09/2017,PASSENGER TRANSPORT CO-ORDINATION CENTRE,AMAZON.CO.UK,105.00,EQUIPMENT,BOOK STORES
07/09/2017,STUDENT FARECARD,SURREY CC CARD PAY,25.00,NON-STAFF RELATED TRANSPORT COSTS,COMPUTER NETWORK/INFORMATION SERVICES
07/09/2017,ACCESS 2 EDUCATION NE NON-MEDICAL,AMAZON EU,97.92,BOOKS,DIRECT MARKETING-OTHER DIRECT MARKETERS/NOT ELSEW.
07/09/2017,CORONER,SAINSBURYS TO YOU 0686,15.00,REFRESHMENT COSTS,"GROCERY STORES, SUPERMARKETS"
07/09/2017,SURREY THE GREAT WAR,NATIONAL MEMORIAL,170.00,TRAINING EXPENSES EXTERNAL GENERAL,"GIFT, CARD, NOVELTY AND SOUVENIR SHOPS"
07/09/2017,HOPE SERVICE - WEST,TESCO STORES 3399,6.50,PURCHASE OF FOOD (RAW MATERIALS),"GROCERY STORES, SUPERMARKETS"
07/09/2017,CS BUSINESS SUPPORT WEST,AMAZON EU,124.63,COMPUTER HARDWARE,DIRECT MARKETING-OTHER DIRECT MARKETERS/NOT ELSEW.
07/09/2017,VIRTUAL SCHOOL FOR LAC PUPIL PREMIUM,WWW.WESTMINSTER-BRIEFI,294.00,SUBSISTENCE AND CONFERENCE EXPENSES,"SCHOOLS, BUSINESS AND SECRETARIAL"
07/09/2017,SOLD MANAGEMENT AND OVERHEADS,AMAZON UK RETAIL AMAZO,54.79,EQUIPMENT,MISCELLANEOUS AND SPECIALTY RETAIL STORES
07/09/2017,KARIBU COMMUNITY HOME,CLOCK TOWER CARS,52.50,TRANSPORT SOCIAL CARE-TAXI,LIMOUSINES AND TAXICABS
07/09/2017,KARIBU COMMUNITY HOME,CLOCK TOWER CARS,52.50,TRANSPORT SOCIAL CARE-TAXI,LIMOUSINES AND TAXICABS
08/09/2017,STUDENT FARECARD,SURREY CC CARD PAY,-25.00,NON-STAFF RELATED TRANSPORT COSTS,COMPUTER NETWORK/INFORMATION SERVICES
08/09/2017,SW CARE - LAC,HAMPSHIRE COUNTY COUNC,10.00,LEGAL EXPENSES,GOVERNMENT SERVICES-NOT ELSEWHERE CLASSIFIED
08/09/2017,SW LOOKED AFTER TEAM,EASYJET,72.70,MISCELLANEOUS STAFF TRAVEL,EASYJET
08/09/2017,SW LOOKED AFTER TEAM,TRAVELODGE,116.00,MISCELLANEOUS STAFF TRAVEL,TRAVELODGE
08/09/2017,SW CARE - LAC,SURREY CC CARD PAY,11.00,LEGAL EXPENSES,COMPUTER NETWORK/INFORMATION SERVICES
08/09/2017,HILLSIDE,SAINSBURYS 0675,114.33,PURCHASE OF FOOD (RAW MATERIALS),"GROCERY STORES, SUPERMARKETS"
08/09/2017,COVEHAM,COBHAM ENGRAVERS,9.50,DAY TO DAY MAINTENANCE,"TYPESETTING, PLATE MAKING & RELATED SERVICES"
08/09/2017,FAIRMOUNT HOUSE LEATHERHEAD,ARGOS RETAIL GROUP,55.00,EQUIPMENT,DISCOUNT STORES
08/09/2017,ARUNDEL,ARDINTON HOTEL,295.00,EDUC VISITS/HOLS/CAMPS/TOYS,"LODGING-HOTELS,MOTELS,RESORTS-NOT CLASSIFIED"
08/09/2017,ARUNDEL,ARDINTON HOTEL,295.00,EDUC VISITS/HOLS/CAMPS/TOYS,"LODGING-HOTELS,MOTELS,RESORTS-NOT CLASSIFIED"
08/09/2017,ARUNDEL,ARDINTON HOTEL,295.00,EDUC VISITS/HOLS/CAMPS/TOYS,"LODGING-HOTELS,MOTELS,RESORTS-NOT CLASSIFIED"
08/09/2017,ARUNDEL,ARDINTON HOTEL,295.00,EDUC VISITS/HOLS/CAMPS/TOYS,"LODGING-HOTELS,MOTELS,RESORTS-NOT CLASSIFIED"
08/09/2017,ARUNDEL,ARDINTON HOTEL,390.00,EDUC VISITS/HOLS/CAMPS/TOYS,"LODGING-HOTELS,MOTELS,RESORTS-NOT CLASSIFIED"
08/09/2017,SURREY WASTE PARTNERSHIP,GUARDIAN NEWS & MEDIA,900.00,PUBLICITY,MISCELLANEOUS PUBLISHING AND PRINTING
08/09/2017,CHMHS RAP TEAM,MIXAM UK LTD,70.20,EDUC VISITS/HOLS/CAMPS/TOYS,MISCELLANEOUS PUBLISHING AND PRINTING
08/09/2017,HOPE SERVICE - WEST,FREEDOM LEISURE,48.50,EDUC VISITS/HOLS/CAMPS/TOYS,GOVERNMENT SERVICES-NOT ELSEWHERE CLASSIFIED
08/09/2017,HOPE SERVICE - WEST,FREEDOM LEISURE,12.20,REFRESHMENT COSTS,GOVERNMENT SERVICES-NOT ELSEWHERE CLASSIFIED
08/09/2017,HOPE SERVICE - WEST,FREEDOM LEISURE,-24.25,EDUC VISITS/HOLS/CAMPS/TOYS,GOVERNMENT SERVICES-NOT ELSEWHERE CLASSIFIED
08/09/2017,ESTATES DELIVERY MANAGER,WWW.PORT.AC.UK,225.00,TRAINING EXPENSES EXTERNAL GENERAL,SCHOOLS & EDUCATIONAL SVC-NOT ELSEWHERE CLASSIFIED
08/09/2017,STUDENT FARECARD,SURREY CC CARD PAY,25.00,NON-STAFF RELATED TRANSPORT COSTS,COMPUTER NETWORK/INFORMATION SERVICES
08/09/2017,STUDENT FARECARD,SURREY CC CARD PAY,25.00,NON-STAFF RELATED TRANSPORT COSTS,COMPUTER NETWORK/INFORMATION SERVICES
08/09/2017,STUDENT FARECARD,SURREY CC CARD PAY,-25.00,NON-STAFF RELATED TRANSPORT COSTS,COMPUTER NETWORK/INFORMATION SERVICES
08/09/2017,ACCOMMODATION CLEANING AND REFURBISHMENT,RICHARD HAWORTH LTD,498.00,EQUIPMENT,MISCELLANEOUS HOUSE FURNISHING SPECIALTY SHOPS
08/09/2017,ALTERNATIVE SEN,WH SMITH,180.00,COMPUTER SOFTWARE,NEWS DEALERS AND NEWSSTANDS
08/09/2017,COMM LRNG & SKILLS,THE OXFORD COLLEGE OF,804.00,TRAINING EXPENSES EXTERNAL GENERAL,"COLLEGES, UNIV, PRO SCHOOLS, JUNIOR COLLEGES"
08/09/2017,ACL CENTRAL EXPENDITURE,THE OXFORD COLLEGE OF,22.51,TRAINING EXPENSES EXTERNAL GENERAL,"COLLEGES, UNIV, PRO SCHOOLS, JUNIOR COLLEGES"
08/09/2017,HOPE SERVICE - WEST,WWW.HEALTHCARECONFEREN,540.00,SUBSISTENCE AND CONFERENCE EXPENSES,BUSINESS SERVICES-NOT ELSEWHERE CLASSIFIED
08/09/2017,PROJECTS AND CONTRACTS GROUP,ELVA RECOVERY SERVICE,150.00,VEHICLE REPAIRS AND MAINTENANCE,TOWING SERVICES
08/09/2017,ACL CENTRAL EXPENDITURE,FACEBK 2CAYJCECB2,545.51,PUBLICITY,ADVERTISING SERVICES
08/09/2017,ACL CENTRAL EXPENDITURE,FACEBK 4CAYJCECB2,54.51,PUBLICITY,ADVERTISING SERVICES
08/09/2017,KARIBU COMMUNITY HOME,CLOCK TOWER CARS,12.60,TRANSPORT SOCIAL CARE-TAXI,LIMOUSINES AND TAXICABS
08/09/2017,APPLEWOOD,ASDA HOME SHOPPING,143.06,PURCHASE OF FOOD (RAW MATERIALS),"GROCERY STORES, SUPERMARKETS"
08/09/2017,PE/CDT MAINTENANCE OVERHEADS,UNIVERSAL SERVICES (SP,218.45,ITEMS PURCHASED FOR RE-SALE,"ATHLTIC FIELDS,COMMRCL SPRT,SPRT CLBS,SPRT PROMOTR"
08/09/2017,HOPE SERVICE - WEST,FREEDOM LEISURE,14.00,EDUC VISITS/HOLS/CAMPS/TOYS,GOVERNMENT SERVICES-NOT ELSEWHERE CLASSIFIED
08/09/2017,MERSTHAM YOUTH & COM HUB,AMZ PARRS,789.60,CE02 FURNITURE AND EQUIPMENT,COMPUTER NETWORK/INFORMATION SERVICES
08/09/2017,MERSTHAM YOUTH & COM HUB,WWW.SHEDSTORE.CO.UK,269.00,CE02 FURNITURE AND EQUIPMENT,"BUILDING MATERIALS, LUMBER STORES"
08/09/2017,ARUNDEL,ROWNHAMS EAST SERVICE,54.05,EDUC VISITS/HOLS/CAMPS/TOYS,SERVICE STATIONS WITH OR WITHOUT ANCILLARY SERVICE
08/09/2017,APPLEWOOD,ASDA HOME SHOPPING,-.71,PURCHASE OF FOOD (RAW MATERIALS),"GROCERY STORES, SUPERMARKETS"
08/09/2017,MEMBERS EXPENSES (INCL ALLOWANCES),HOC CRS,70.60,REFRESHMENT COSTS,"EATING PLACES, RESTAURANTS"
08/09/2017,MEMBERS EXPENSES (INCL ALLOWANCES),WESTMINSTER FORUM,252.00,TRAINING EXPENSES EXTERNAL GENERAL,"CONSULTING, MANAGEMENT, AND PUBLIC RELATIONS SVCS"
08/09/2017,HOPE SERVICE - WEST,CO-OP GROUP 500031,3.00,PURCHASE OF FOOD (RAW MATERIALS),"GROCERY STORES, SUPERMARKETS"
08/09/2017,FAIRCROFT COMMUNITY HOME,SAINSBURYS SACAT 0687,6.50,PURCHASE OF FOOD (RAW MATERIALS),"GROCERY STORES, SUPERMARKETS"
08/09/2017,LIBERTAS COMMUNITY HOME,ZARA,50.00,"CLOTHING, UNIFORM AND LAUNDRY",MEN'S AND WOMEN'S CLOTHING STORES
08/09/2017,TS SERVICE MANAGEMENT,WWW.REGISTRY-TRUST.ORG,250.00,SUBSCRIPTIONS,PROFESSIONAL SERVICES-NOT ELSEWHERE CLASSIFIED
08/09/2017,READY FOR WORK YSS,VUE NCS CITB HS&E TEST,19.50,EDUC VISITS/HOLS/CAMPS/TOYS,SCHOOLS & EDUCATIONAL SVC-NOT ELSEWHERE CLASSIFIED
08/09/2017,RUTH HOUSE,G J HONOUR,201.06,PURCHASE OF FOOD (RAW MATERIALS),"MISC FOOD STORE-CONVENIENCE,MRKT,SPLTY,VENDNG MACS"
08/09/2017,RUTH HOUSE,SAINSBURYS TO YOU 0686,33.80,PURCHASE OF FOOD (RAW MATERIALS),"GROCERY STORES, SUPERMARKETS"
08/09/2017,RUTH HOUSE,SAINSBURYS TO YOU 0686,340.00,PURCHASE OF FOOD (RAW MATERIALS),"GROCERY STORES, SUPERMARKETS"
08/09/2017,CHEYNE WALK COMMUNITY HOME,AMAZON UK MARKETPLACE,24.35,"CLOTHING, UNIFORM AND LAUNDRY",BOOK STORES
08/09/2017,CHEYNE WALK COMMUNITY HOME,AMAZON UK MARKETPLACE,16.06,EQUIPMENT,BOOK STORES
08/09/2017,CHEYNE WALK COMMUNITY HOME,AMAZON UK MARKETPLACE,13.89,EQUIPMENT,BOOK STORES
08/09/2017,SE EDUCATION PSYCHOLOGISTS,AMAZON UK MARKETPLACE,9.64,EQUIPMENT,BOOK STORES
08/09/2017,SE EDUCATION PSYCHOLOGISTS,AMAZON UK MARKETPLACE,24.72,EQUIPMENT,BOOK STORES
08/09/2017,TRAINING ENVIRONMENT SERVICES,WWW.LETSRECYCLE.COM,219.79,TRAINING EXPENSES EXTERNAL GENERAL,ADVERTISING SERVICES
08/09/2017,"NW REF, ASS & INT SERVICE - HUB 1",PREMIER INN,212.47,OTHER COMMUNITY CARE VOL,PREMIER INN
08/09/2017,HOLLAND CLOSE RESIDENTIAL HOME,VUE BSL LTD,26.48,EDUC VISITS/HOLS/CAMPS/TOYS,MOTION PICTURE THEATERS
08/09/2017,SE CARE - CP & COURT LAC,LBSUTTON,10.00,FEES,GOVERNMENT SERVICES-NOT ELSEWHERE CLASSIFIED
08/09/2017,SE CARE - CP & COURT LAC,AMFBOWLING.CO.UK,34.25,EDUC VISITS/HOLS/CAMPS/TOYS,"CLUBS-CNTRY,MBRSHIP(ATHLET,REC,SPRTS,PRIVATE GOLF"
08/09/2017,SE CARE - LAC,SURREY CC CARD PAY,31.00,FEES,COMPUTER NETWORK/INFORMATION SERVICES
08/09/2017,ARUNDEL,ASDA SUPERSTORE,50.55,REFRESHMENT COSTS,"GROCERY STORES, SUPERMARKETS"
08/09/2017,ARUNDEL,ASDA SUPERSTORE,6.00,CLEANING MATERIALS,"GROCERY STORES, SUPERMARKETS"
08/09/2017,DOWNLANDS COUNTRYSIDE PROJECT,MOLE COUNTRY STORES,6.00,EQUIPMENT,AGRICULTURAL COOPERATIVES
08/09/2017,DOWNLANDS COUNTRYSIDE PROJECT,FAIRALLS,31.49,EQUIPMENT,CONSTRUCTION MATERIALS NOT ELSEWHERE CLASSIFIED
08/09/2017,FAIRCROFT COMMUNITY HOME,LEIGHTONS LTD,67.60,EQUIPMENT,"OPTICIANS,OPTICAL GOODS & EYEGLASSES"
08/09/2017,FAIRCROFT COMMUNITY HOME,LEIGHTONS LTD,36.40,EQUIPMENT,"OPTICIANS,OPTICAL GOODS & EYEGLASSES"
08/09/2017,NE CARE - NON-LAC CP & COURT,TRAVELODGE,81.00,MISCELLANEOUS STAFF TRAVEL,TRAVELODGE
08/09/2017,TARGETED INTERVENTION,GOLDEX INV T/A,6.55,EDUC VISITS/HOLS/CAMPS/TOYS,"EATING PLACES, RESTAURANTS"
08/09/2017,TARGETED INTERVENTION,COSTA COFFEE 43037185,5.00,EDUC VISITS/HOLS/CAMPS/TOYS,FAST FOOD RESTAURANTS
08/09/2017,TARGETED INTERVENTION,3C_ WOKING BOROUGH COU,2.60,MISCELLANEOUS STAFF TRAVEL,AUTOMOBILE PARKING LOTS AND GARAGES
08/09/2017,ACL CENTRAL EXPENDITURE,TESCO STORE 2160,203.20,REFRESHMENT COSTS,"GROCERY STORES, SUPERMARKETS"
08/09/2017,TARGETED INTERVENTION,THE BIG APPLE,23.70,EDUC VISITS/HOLS/CAMPS/TOYS,BOWLING ALLEYS
08/09/2017,TARGETED INTERVENTION,THE BIG APPLE,5.80,EDUC VISITS/HOLS/CAMPS/TOYS,BOWLING ALLEYS
08/09/2017,LIBERTAS COMMUNITY HOME,SAINSBURYS 0652,19.35,PURCHASE OF FOOD (RAW MATERIALS),"GROCERY STORES, SUPERMARKETS"
08/09/2017,LIBERTAS COMMUNITY HOME,SAINSBURYS 0652,6.50,EQUIPMENT,"GROCERY STORES, SUPERMARKETS"
08/09/2017,LIBERTAS COMMUNITY HOME,SAINSBURYS 0652,137.18,PURCHASE OF FOOD (RAW MATERIALS),"GROCERY STORES, SUPERMARKETS"
08/09/2017,COMMUNICATIONS TEAM,ITUNES.COM/BILL,3.99,SUBSCRIPTIONS,RECORD SHOPS
08/09/2017,COMMUNICATIONS TEAM,CENTAUR COMM,"2,404.80",SUBSCRIPTIONS,MISCELLANEOUS PUBLISHING AND PRINTING
08/09/2017,BURBANK COMMUNITY HOME,W M MORRISONS,34.45,REFRESHMENT COSTS,"GROCERY STORES, SUPERMARKETS"
08/09/2017,BURBANK COMMUNITY HOME,W M MORRISONS,.44,REFRESHMENT COSTS,"GROCERY STORES, SUPERMARKETS"
08/09/2017,SE CARE - CP & COURT LAC,LBSUTTON,10.00,FEES,GOVERNMENT SERVICES-NOT ELSEWHERE CLASSIFIED
08/09/2017,TRAINING AND DEVELOPMENT,FUTURE INNS CARDIFF,190.00,TRAINING EXPENSES EXTERNAL GENERAL,"LODGING-HOTELS,MOTELS,RESORTS-NOT CLASSIFIED"
08/09/2017,SW NIL RECOURSE TO PUBLIC FUNDS CARE,EXPEDIA 7294183606960,481.98,CHILDREN ACT SEC 17 PAYMENTS,TRAVEL AGENCIES AND TOUR OPERATORS
08/09/2017,SW CARE - NON-LAC CP & COURT,KIT-SHOP LTD,112.20,"CLOTHING, UNIFORM AND LAUNDRY",CHILDREN'S AND INFANT'S WEAR STORES
08/09/2017,E&I - LOVE FOOD HATE WASTE              ,GOOGLE  ADWS2060179426,500.00,PUBLICITY,DIRECT MARKETING-CONTINUITY/SUBSCRIPTION MERCHANTS
09/09/2017,EXTENDED HOPE,SAINSBURYS 0652,5.05,PURCHASE OF FOOD (RAW MATERIALS),"GROCERY STORES, SUPERMARKETS"
09/09/2017,EXTENDED HOPE,SAINSBURYS 0652,7.80,PURCHASE OF FOOD (RAW MATERIALS),"GROCERY STORES, SUPERMARKETS"
09/09/2017,EXTENDED HOPE,FREEDOM LEISURE,23.59,EDUC VISITS/HOLS/CAMPS/TOYS,GOVERNMENT SERVICES-NOT ELSEWHERE CLASSIFIED
09/09/2017,SW EDUCATION PSYCHOLOGISTS,AMAZON EU,15.00,BOOKS,DIRECT MARKETING-OTHER DIRECT MARKETERS/NOT ELSEW.
09/09/2017,NW EDUCATION PSYCHOLOGISTS,AMAZON EU,14.99,BOOKS,DIRECT MARKETING-OTHER DIRECT MARKETERS/NOT ELSEW.
09/09/2017,TRANSPORT,AMAZON EU,38.18,OPERATIONAL FIRE EQUIPMENT,DIRECT MARKETING-OTHER DIRECT MARKETERS/NOT ELSEW.
09/09/2017,CS BUSINESS SUPPORT EAST,AMAZON EU,10.99,EQUIPMENT,DIRECT MARKETING-OTHER DIRECT MARKETERS/NOT ELSEW.
09/09/2017,CS BUSINESS SUPPORT EAST,AMAZON EU,10.99,EQUIPMENT,DIRECT MARKETING-OTHER DIRECT MARKETERS/NOT ELSEW.
09/09/2017,FAIRCROFT COMMUNITY HOME,DEEP BLUE COBHAM,7.80,REFRESHMENT COSTS,"EATING PLACES, RESTAURANTS"
09/09/2017,RIGHTS OF WAY 'STRUCTURES CAPITAL',AMAZON UK MARKETPLACE,39.99,CE02 FURNITURE AND EQUIPMENT,BOOK STORES
09/09/2017,RIGHTS OF WAY 'STRUCTURES CAPITAL',AMAZON.CO.UK,39.99,CE02 FURNITURE AND EQUIPMENT,BOOK STORES
09/09/2017,HILLSIDE,SAINSBURYS TO YOU 0675,32.50,PURCHASE OF FOOD (RAW MATERIALS),"GROCERY STORES, SUPERMARKETS"
09/09/2017,HILLSIDE,SAINSBURYS TO YOU 0675,264.40,PURCHASE OF FOOD (RAW MATERIALS),"GROCERY STORES, SUPERMARKETS"
09/09/2017,RUTH HOUSE,W M MORRISONS,24.00,PURCHASE OF FOOD (RAW MATERIALS),"GROCERY STORES, SUPERMARKETS"
10/09/2017,FAIRCROFT COMMUNITY HOME,PRIMARK,13.00,"CLOTHING, UNIFORM AND LAUNDRY",FAMILY CLOTHING STORES
10/09/2017,EXTENDED HOPE,CEX,1.00,EDUC VISITS/HOLS/CAMPS/TOYS,ELECTRICAL PARTS AND EQUIPMENT
10/09/2017,HILLSIDE,SAINSBURYS 0675,2.05,PURCHASE OF FOOD (RAW MATERIALS),"GROCERY STORES, SUPERMARKETS"
10/09/2017,HILLSIDE,SAINSBURYS 0675,3.40,PURCHASE OF FOOD (RAW MATERIALS),"GROCERY STORES, SUPERMARKETS"
10/09/2017,WOODLANDS COMMUNITY HOME,NETFLIX.COM,7.49,EDUC VISITS/HOLS/CAMPS/TOYS,"CABLE, SATELLITE, OTHER PAY TELEVISION, RADIO SVCS"
10/09/2017,SOLD CURRICULUM PROGRAMME DELIVERY,WHITEWATER THE CANOE C,36.00,EQUIPMENT,SPORTING GOODS STORES
10/09/2017,FAIRCROFT COMMUNITY HOME,LLOYDS AT SAINSBURYS,11.98,EQUIPMENT,"GROCERY STORES, SUPERMARKETS"
10/09/2017,FAIRCROFT COMMUNITY HOME,SAINSBURYS SACAT 0687,53.35,EQUIPMENT,"GROCERY STORES, SUPERMARKETS"
10/09/2017,FAIRCROFT COMMUNITY HOME,SAINSBURYS SACAT 0687,7.00,EQUIPMENT,"GROCERY STORES, SUPERMARKETS"
10/09/2017,FAMILIES REIGATE AND BANSTREAD,LIDL UK,29.29,PURCHASE OF FOOD (RAW MATERIALS),"GROCERY STORES, SUPERMARKETS"
10/09/2017,FAIRCROFT COMMUNITY HOME,H&M,5.00,"CLOTHING, UNIFORM AND LAUNDRY",MEN'S AND WOMEN'S CLOTHING STORES
10/09/2017,FAIRCROFT COMMUNITY HOME,3C_ CP PLUS - ROYAL SU,4.00,MISCELLANEOUS STAFF TRAVEL,AUTOMOBILE PARKING LOTS AND GARAGES
10/09/2017,FAIRCROFT COMMUNITY HOME,3C_ WOKING BOROUGH COU,3.00,MISCELLANEOUS STAFF TRAVEL,AUTOMOBILE PARKING LOTS AND GARAGES
10/09/2017,FAIRCROFT COMMUNITY HOME,NEW LOOK 1792,27.98,"CLOTHING, UNIFORM AND LAUNDRY",WOMEN'S READY TO WEAR STORES
10/09/2017,FAIRCROFT COMMUNITY HOME,DEBENHAMS,112.50,"CLOTHING, UNIFORM AND LAUNDRY",DEPARTMENT STORES
10/09/2017,FAIRCROFT COMMUNITY HOME,MCDONALDS,7.76,REFRESHMENT COSTS,FAST FOOD RESTAURANTS
10/09/2017,CHEYNE WALK COMMUNITY HOME,TESCO STORE 2560,163.65,EQUIPMENT,"GROCERY STORES, SUPERMARKETS"
10/09/2017,CHEYNE WALK COMMUNITY HOME,MCDONALDS,3.18,PURCHASE OF FOOD (RAW MATERIALS),"EATING PLACES, RESTAURANTS"
10/09/2017,SE EDUCATION PSYCHOLOGISTS,AMAZON EU,31.98,BOOKS,DIRECT MARKETING-OTHER DIRECT MARKETERS/NOT ELSEW.
10/09/2017,IT TRAINING,AMAZON EU,223.39,BOOKS,DIRECT MARKETING-OTHER DIRECT MARKETERS/NOT ELSEW.
10/09/2017,HOLLAND CLOSE RESIDENTIAL HOME,IKEA LIMITED,7.95,E25 CATERING EQUIPMENT,"EQUIP, FURNITURE, HOME FURNSHNGS STRS (EXCPT APPL)"
10/09/2017,HOLLAND CLOSE RESIDENTIAL HOME,TESCO-STORES 6647,151.03,PURCHASE OF FOOD (RAW MATERIALS),"GROCERY STORES, SUPERMARKETS"
10/09/2017,HOLLAND CLOSE RESIDENTIAL HOME,CINEWORLD,35.60,EDUC VISITS/HOLS/CAMPS/TOYS,"THEATRICAL PRODUCERS(EXCL MOTION PIX),TICKET AGNCY"
10/09/2017,SOLD DAY TO DAY OPERATIONS,AMAZON UK MARKETPLACE,11.99,EQUIPMENT,BOOK STORES
10/09/2017,MALLOW CRESCENT,SAINSBURYS TO YOU 0652,13.00,PURCHASE OF FOOD (RAW MATERIALS),"GROCERY STORES, SUPERMARKETS"
10/09/2017,MALLOW CRESCENT,SAINSBURYS TO YOU 0652,127.00,PURCHASE OF FOOD (RAW MATERIALS),"GROCERY STORES, SUPERMARKETS"
10/09/2017,MALLOW CRESCENT,SAINSBURYS TO YOU 0652,-3.00,PURCHASE OF FOOD (RAW MATERIALS),"GROCERY STORES, SUPERMARKETS"
10/09/2017,CS BUSINESS SUPPORT EAST,AMAZON PRIME,79.00,OTHER COMMUNITY CARE VOL,DIRECT MARKETING-CONTINUITY/SUBSCRIPTION MERCHANTS
10/09/2017,KARIBU COMMUNITY HOME,TESCO STORE 2812,352.23,PURCHASE OF FOOD (RAW MATERIALS),"GROCERY STORES, SUPERMARKETS"
11/09/2017,SURREY THE GREAT WAR,PC WORLD ONLINE,119.99,COMPUTER HARDWARE,ELECTRONIC SALES
11/09/2017,EXTENDED HOPE,TVLICENSING.CO.UK,147.00,LICENCE FEES,"CONSULTING, MANAGEMENT, AND PUBLIC RELATIONS SVCS"
11/09/2017,DEVELOPMENT TEAM,GITHUB.COM  6BH7W,33.61,COMPUTER SERVICES,"COMPUTERS, COMPUTER PERIPHERAL EQUIPMENT, SOFTWARE"
11/09/2017,TARGETED INTERVENTION,TOP GOLF LTD,6.95,EDUC VISITS/HOLS/CAMPS/TOYS,"CLUBS-CNTRY,MBRSHIP(ATHLET,REC,SPRTS,PRIVATE GOLF"
11/09/2017,CONSORT HOUSE REDHILL,WWW.IRONMONGERYDIRECT.,6.48,EQUIPMENT,DIRECT MARKETING-CONTINUITY/SUBSCRIPTION MERCHANTS
11/09/2017,IMT MODERN WORKER,MSFT  <E01004DFUF>,192.84,COMPUTER SERVICES,"COMPUTERS, COMPUTER PERIPHERAL EQUIPMENT, SOFTWARE"
11/09/2017,NW CARE - CP & COURT LAC,PREMIER INN,89.50,3RD PARTY PAYMENTS PRIVATE INDIV,PREMIER INN
11/09/2017,MERSTHAM YOUTH & COM HUB,AMAZON UK MARKETPLACE,59.49,CE02 FURNITURE AND EQUIPMENT,BOOK STORES
11/09/2017,7 TANNERY LANE GOSDEN COMMON BRAMLEY,WWW.JOHNLEWIS.COM,977.00,EQUIPMENT,DEPARTMENT STORES
11/09/2017,ARUNDEL,ASDA SUPERSTORE,24.77,REFRESHMENT COSTS,"GROCERY STORES, SUPERMARKETS"
11/09/2017,ARUNDEL,ASDA SUPERSTORE,3.95,REFRESHMENT COSTS,"GROCERY STORES, SUPERMARKETS"
11/09/2017,PE/CDT MAINTENANCE OVERHEADS,CONNEXION DEVELOPM,47.45,EQUIPMENT,ELECTRONIC SALES
11/09/2017,COUNTY HALL,ALSFORD TIMBER LTD,39.00,DAY TO DAY MAINTENANCE,"BUILDING MATERIALS, LUMBER STORES"
11/09/2017,COUNTY HALL,B & Q 1076,12.12,DAY TO DAY MAINTENANCE,"BUILDING MATERIALS, LUMBER STORES"
11/09/2017,READY FOR WORK YSS,CITB,30.00,EDUC VISITS/HOLS/CAMPS/TOYS,"COLLEGES, UNIV, PRO SCHOOLS, JUNIOR COLLEGES"
11/09/2017,GODALMING YC,SAINSBURYS SACAT 0670,11.16,PURCHASE OF FOOD (RAW MATERIALS),"GROCERY STORES, SUPERMARKETS"
11/09/2017,GODALMING YC,SAINSBURYS SACAT 0670,1.80,PURCHASE OF FOOD (RAW MATERIALS),"GROCERY STORES, SUPERMARKETS"
11/09/2017,"NW REF, ASS & INT SERVICE - HUB 2",TRAVELODGE,528.00,INDEPENDENT LIVING PLACEMENTS,TRAVELODGE
11/09/2017,SIGNS OF SAFETY TRAINING,AMAZON.CO.UK,53.91,OTHER COMMUNITY CARE VOL,BOOK STORES
11/09/2017,ROW VOLUNTEERS EAST                     ,WILLIAM WAY (GODSTONE),54.00,EQUIPMENT,"BUILDING MATERIALS, LUMBER STORES"
11/09/2017,ROW VOLUNTEERS EAST                     ,CHOICE VEHICLE RENTALS,48.50,HIRE OF VEHICLES,AUTOMOBILE RENTAL AGENCY-NOT ELSEWHERE CLASSIFIED
11/09/2017,COVEHAM,TIMPSON LTD,-9.00,DAY TO DAY MAINTENANCE,"HAT CLEANING SHOPS, SHOE REPAIR SHOPS, SHOE SHINE"
11/09/2017,FAMILIES RUNNYMEDE,TESCO STORES-2017,11.03,PURCHASE OF FOOD (RAW MATERIALS),"GROCERY STORES, SUPERMARKETS"
11/09/2017,FAMILIES REIGATE AND BANSTREAD,LIDL UK,12.61,PURCHASE OF FOOD (RAW MATERIALS),"GROCERY STORES, SUPERMARKETS"
11/09/2017,S28A MENTAL HEALTH,HMCTS-SURREY125,75.00,FEES,FINES
11/09/2017,ROW VOLUNTEERS EAST                     ,ESSO MRH ROUNDABOUT,10.02,PETROL/DIESEL ALL OFF BUSINESS,SERVICE STATIONS WITH OR WITHOUT ANCILLARY SERVICE
11/09/2017,TARGETED INTERVENTION,TOP GOLF LTD,17.25,EDUC VISITS/HOLS/CAMPS/TOYS,"CLUBS-CNTRY,MBRSHIP(ATHLET,REC,SPRTS,PRIVATE GOLF"
11/09/2017,TARGETED INTERVENTION,STARBUCKS,5.55,EDUC VISITS/HOLS/CAMPS/TOYS,FAST FOOD RESTAURANTS
11/09/2017,TARGETED INTERVENTION,AMF BOWLING,37.98,EDUC VISITS/HOLS/CAMPS/TOYS,"CLUBS-CNTRY,MBRSHIP(ATHLET,REC,SPRTS,PRIVATE GOLF"
11/09/2017,TARGETED INTERVENTION,AMF BOWLING,5.18,EDUC VISITS/HOLS/CAMPS/TOYS,"CLUBS-CNTRY,MBRSHIP(ATHLET,REC,SPRTS,PRIVATE GOLF"
11/09/2017,HILLSIDE,LIDL UK,.99,PURCHASE OF FOOD (RAW MATERIALS),"GROCERY STORES, SUPERMARKETS"
11/09/2017,HILLSIDE,LIDL UK,27.38,PURCHASE OF FOOD (RAW MATERIALS),"GROCERY STORES, SUPERMARKETS"
11/09/2017,PROPERTY OPERATIONS TEAM,TOOLSTATION LTD,39.90,PURCHASE OF BUILDING MATERIALS,HARDWARE STORES
11/09/2017,PROPERTY OPERATIONS TEAM,TOOLSTATION LTD,27.13,PURCHASE OF BUILDING MATERIALS,HARDWARE STORES
11/09/2017,LOWER MOLE COUNTRYSIDE PROJECT,A J S LANDROVERS,690.81,VEHICLE REPAIRS AND MAINTENANCE,AUTOMOTIVE TIRE STORES
11/09/2017,SOLD DAY TO DAY OPERATIONS,AMAZON EU,25.83,EQUIPMENT,DIRECT MARKETING-OTHER DIRECT MARKETERS/NOT ELSEW.
11/09/2017,HILLSIDE,SAINSBURYS PFS 0103,48.02,NON-STAFF RELATED TRANSPORT COSTS,SERVICE STATIONS WITH OR WITHOUT ANCILLARY SERVICE
11/09/2017,IT TRAINING,AMAZON UK MARKETPLACE,24.36,BOOKS,BOOK STORES
11/09/2017,ACL CENTRAL EXPENDITURE,TESCO STORE 3149,76.79,REFRESHMENT COSTS,"GROCERY STORES, SUPERMARKETS"
11/09/2017,ACL CENTRAL EXPENDITURE,WAITROSE 181,9.69,REFRESHMENT COSTS,"GROCERY STORES, SUPERMARKETS"
11/09/2017,ACL CENTRAL EXPENDITURE,TESCO STORE 2160,38.81,REFRESHMENT COSTS,"GROCERY STORES, SUPERMARKETS"
11/09/2017,ACL CENTRAL EXPENDITURE,TESCO STORE 2160,-.96,REFRESHMENT COSTS,"GROCERY STORES, SUPERMARKETS"
11/09/2017,TRANSPORT,PAYPAL  4YOURHOME,12.48,EQUIPMENT,"ANTIQUE SHOPS-SALES,REPAIRS,RESTORATION SERVICES"
11/09/2017,FAIRCROFT COMMUNITY HOME,TESCO STORE 2812,233.98,PURCHASE OF FOOD (RAW MATERIALS),"GROCERY STORES, SUPERMARKETS"
11/09/2017,HOPE SERVICE - WEST,HORTON PARK GOLF,7.95,EDUC VISITS/HOLS/CAMPS/TOYS,"EATING PLACES, RESTAURANTS"
11/09/2017,PROPERTY OPERATIONS TEAM,B & Q 1029,17.69,PURCHASE OF BUILDING MATERIALS,"BUILDING MATERIALS, LUMBER STORES"
11/09/2017,MGMT - ORBIS (MANAGEMENT TEAM & SUPPORT),CUSTOMER THERMOMETER,92.87,FEES,COMPUTER SOFTWARE STORES
11/09/2017,WOODLANDS COMMUNITY HOME,SAINSBURYS SACAT 0686,23.75,PURCHASE OF FOOD (RAW MATERIALS),"GROCERY STORES, SUPERMARKETS"
11/09/2017,WOODLANDS COMMUNITY HOME,SAINSBURYS OPT 0487,55.82,VEHICLE RUNNING COSTS,"FUEL DISPENSER, AUTOMATED"
11/09/2017,CONSORT HOUSE REDHILL,WWW.IRONMONGERYDIRECT.,19.08,DAY TO DAY MAINTENANCE,"GLASS, PAINT, WALLPAPER STORES"
11/09/2017,MALLOW CRESCENT,TESCO STORE 2590,7.00,PURCHASE OF FOOD (RAW MATERIALS),"GROCERY STORES, SUPERMARKETS"
11/09/2017,MALLOW CRESCENT,TESCO STORE 2590,68.01,PURCHASE OF FOOD (RAW MATERIALS),"GROCERY STORES, SUPERMARKETS"
11/09/2017,COVEHAM,AMAZON EU,16.74,EQUIPMENT,DIRECT MARKETING-OTHER DIRECT MARKETERS/NOT ELSEW.
11/09/2017,NW EDUCATION PSYCHOLOGISTS,AMAZON UK MARKETPLACE,116.96,BOOKS,BOOK STORES
11/09/2017,SW EDUCATION PSYCHOLOGISTS,AMAZON UK MARKETPLACE,116.95,BOOKS,BOOK STORES
11/09/2017,CSF BUSINESS SUPPORT EDUCATION,MARTIN MCCOLL,3.00,EQUIPMENT,"MISC FOOD STORE-CONVENIENCE,MRKT,SPLTY,VENDNG MACS"
11/09/2017,HOPE SERVICE - WEST,SAINSBURYS 0683,89.37,PURCHASE OF FOOD (RAW MATERIALS),"GROCERY STORES, SUPERMARKETS"
11/09/2017,SOLD MANAGEMENT AND OVERHEADS,MOUNTAIN TRAINING,24.00,SUBSCRIPTIONS,COMPUTER SOFTWARE STORES
11/09/2017,PROGRAMME TEAM,DOMINOS,79.92,SUBSISTENCE AND CONFERENCE EXPENSES,"EATING PLACES, RESTAURANTS"
11/09/2017,SURREY THE GREAT WAR,CURRYS ONLINE,999.99,COMPUTER HARDWARE,ELECTRONIC SALES
11/09/2017,TRANSPORT,AMAZON UK MARKETPLACE,8.98,STATIONERY,BOOK STORES
11/09/2017,TRANSPORT,TOMDHARRY ALLGLOVED,60.00,"CLOTHING, UNIFORM AND LAUNDRY",MEN'S AND BOY'S CLOTHING AND ACCESSORIES STORES
11/09/2017,TRANSPORT,INTRAMARK,-83.28,CONTRACT CATERING,MISCELLANEOUS AND SPECIALTY RETAIL STORES
11/09/2017,HOLLAND CLOSE RESIDENTIAL HOME,WWW.TULLEYSFARM.COM,110.00,EDUC VISITS/HOLS/CAMPS/TOYS,TOURIST ATTRACTIONS AND EXHIBITS
11/09/2017,ACL CENTRAL EXPENDITURE,BLUE RIBBONS SUGARCRAF,7.70,REFRESHMENT COSTS,BAKERIES
11/09/2017,FAMILIES SPELTHORNE,TESCO STORES 4466,3.50,REFRESHMENT COSTS,"GROCERY STORES, SUPERMARKETS"
11/09/2017,EXTENDED HOPE,GAME RETAIL LTD EPSOM,79.98,EDUC VISITS/HOLS/CAMPS/TOYS,"GAME, TOY, AND HOBBY SHOPS"
11/09/2017,EXTENDED HOPE,TESCO STORE 2590,12.88,PURCHASE OF FOOD (RAW MATERIALS),"GROCERY STORES, SUPERMARKETS"
11/09/2017,EXTENDED HOPE,TESCO STORE 2590,91.78,PURCHASE OF FOOD (RAW MATERIALS),"GROCERY STORES, SUPERMARKETS"
11/09/2017,HILLSIDE,LIDL UK,19.78,PURCHASE OF FOOD (RAW MATERIALS),"GROCERY STORES, SUPERMARKETS"
11/09/2017,HENRIETTA PARKER CTR WEST MOLESEY,WWW.EVAC-CHAIR.CO.UK,54.00,DAY TO DAY MAINTENANCE,DENTAL/LAB/MED/OPHTHALMIC HOSP EQUIP & SUPPLIES
11/09/2017,LIBERTAS COMMUNITY HOME,SAINSBURYS 0652,156.58,PURCHASE OF FOOD (RAW MATERIALS),"GROCERY STORES, SUPERMARKETS"
11/09/2017,LIBERTAS COMMUNITY HOME,SAINSBURYS 0652,26.90,PURCHASE OF FOOD (RAW MATERIALS),"GROCERY STORES, SUPERMARKETS"
11/09/2017,E&I - LOVE FOOD HATE WASTE              ,GOOGLE  ADWS2060179426,500.00,PUBLICITY,DIRECT MARKETING-CONTINUITY/SUBSCRIPTION MERCHANTS
11/09/2017,FAMILIES MOLE VALLEY,SAINSBURYS SACAT 0764,7.10,PURCHASE OF FOOD (RAW MATERIALS),"GROCERY STORES, SUPERMARKETS"
11/09/2017,MALLOW CRESCENT,SAINSBURYS TO YOU 0652,5.90,PURCHASE OF FOOD (RAW MATERIALS),"GROCERY STORES, SUPERMARKETS"
11/09/2017,MALLOW CRESCENT,SAINSBURYS TO YOU 0652,120.68,PURCHASE OF FOOD (RAW MATERIALS),"GROCERY STORES, SUPERMARKETS"
11/09/2017,COVEHAM,SAINSBURYS TO YOU 0687,191.31,REFRESHMENT COSTS,"GROCERY STORES, SUPERMARKETS"
11/09/2017,COVEHAM,SAINSBURYS TO YOU 0687,-9.95,REFRESHMENT COSTS,"GROCERY STORES, SUPERMARKETS"
11/09/2017,HOPE SERVICE - WEST,SAINSBURYS TO YOU 0686,80.69,PURCHASE OF FOOD (RAW MATERIALS),"GROCERY STORES, SUPERMARKETS"
11/09/2017,EXTENDED HOPE,THE WORKS,4.00,EDUC VISITS/HOLS/CAMPS/TOYS,DISCOUNT STORES
11/09/2017,ROW VOLUNTEERS WEST                     ,ESSO MANOR WEALD SS,6.73,PETROL/DIESEL ALL OFF BUSINESS,SERVICE STATIONS WITH OR WITHOUT ANCILLARY SERVICE
11/09/2017,HOPE SERVICE - WEST,SAINSBURYS TO YOU 0686,-1.00,PURCHASE OF FOOD (RAW MATERIALS),"GROCERY STORES, SUPERMARKETS"
11/09/2017,CHEYNE WALK COMMUNITY HOME,HOBBYCRAFT,35.00,BOOKS,"ARTIST SUPPLY STORES, CRAFT SHOPS"
11/09/2017,CHEYNE WALK COMMUNITY HOME,KFC,20.41,REFRESHMENT COSTS,FAST FOOD RESTAURANTS
11/09/2017,PE/CDT MAINTENANCE OVERHEADS,HUCK NETS (UK) LTD,53.98,ITEMS PURCHASED FOR RE-SALE,"DURABLE GOODS, NOT ELSEWHERE CLASSIFIED"
11/09/2017,DOWNLANDS COUNTRYSIDE PROJECT,TESCO STORES-2270,7.50,CLEANING AND DOMESTIC SUPPLIES,"GROCERY STORES, SUPERMARKETS"
12/09/2017,CONSORT HOUSE REDHILL,WWW.IRONMONGERYDIRECT.,155.52,EQUIPMENT,DIRECT MARKETING-CONTINUITY/SUBSCRIPTION MERCHANTS
12/09/2017,LIBERTAS COMMUNITY HOME,BP MERROW CONVENIENCE,50.00,3RD PARTY PAYMENTS PRIVATE INDIV,SERVICE STATIONS WITH OR WITHOUT ANCILLARY SERVICE
12/09/2017,CHEYNE WALK COMMUNITY HOME,BOOTS/0837,42.01,EQUIPMENT,"DRUG STORES, PHARMACIES"
12/09/2017,CHEYNE WALK COMMUNITY HOME,SAINSBURYS SACAT 2501,3.25,PURCHASE OF FOOD (RAW MATERIALS),"GROCERY STORES, SUPERMARKETS"
12/09/2017,CHEYNE WALK COMMUNITY HOME,COSTA COFFEE,9.05,REFRESHMENT COSTS,FAST FOOD RESTAURANTS
12/09/2017,CHEYNE WALK COMMUNITY HOME,PREZZO,27.45,PURCHASE OF FOOD (RAW MATERIALS),"EATING PLACES, RESTAURANTS"
12/09/2017,CHEYNE WALK COMMUNITY HOME,COUNTY MALL CAR PARK,2.50,VEHICLE RUNNING COSTS,AUTOMOBILE PARKING LOTS AND GARAGES
12/09/2017,CHEYNE WALK COMMUNITY HOME,"BOOTS,REDHILL",23.46,EQUIPMENT,"DRUG STORES, PHARMACIES"
12/09/2017,MASH,WATERCOOLER,12.42,EQUIPMENT,"OFFICE, SCHOOL SUPPLY, AND STATIONERY STORES"
12/09/2017,YSS YOUTH CENTRE IMPROVEMENTS,WWW.ULTRASECUREDIRECT.,179.94,EQUIPMENT,"CONTRACTORS,SPECIAL TRADE-NOT ELSEWHERE CLASSIFIED"
12/09/2017,YSS YOUTH CENTRE IMPROVEMENTS,CURRYS T/SALES,199.98,EQUIPMENT,ELECTRONIC SALES
12/09/2017,LIBERTAS COMMUNITY HOME,SQUIRES GARDEN CENTRE,15.85,REFRESHMENT COSTS,LAWN AND GARDEN SUPPLY STORES
12/09/2017,NW CARE - CP & COURT LAC,GRO HM PASSPORT OFFICE,111.00,FEES,GOVERNMENT SERVICES-NOT ELSEWHERE CLASSIFIED
12/09/2017,ARUNDEL,WWW.REIGATE-BANSTEAD.G,131.82,TRADE REFUSE,GOVERNMENT SERVICES-NOT ELSEWHERE CLASSIFIED
12/09/2017,SOUTH WEST OUTREACH,WWW.BLINDPARTS.CO.,3.20,EQUIPMENT,"DRAPERY, UPOLSTERY, AND WINDOW COVERINGS STORES"
12/09/2017,HOPE SERVICE - WEST,SAINSBURYS SACAT(4409),2.20,NEWSPAPER AND PERIODICALS,"GROCERY STORES, SUPERMARKETS"
12/09/2017,FAIRCROFT COMMUNITY HOME,SAINSBURYS SACAT 0687,26.55,PURCHASE OF FOOD (RAW MATERIALS),"GROCERY STORES, SUPERMARKETS"
12/09/2017,ENSEMBLES & TOURS,PAYPAL  CONTACT,36.94,CURRIC BOOKS,PROFESSIONAL SERVICES-NOT ELSEWHERE CLASSIFIED
12/09/2017,WEYBRIDGE LIBRARY,AMAZON EU,12.98,EQUIPMENT,DIRECT MARKETING-OTHER DIRECT MARKETERS/NOT ELSEW.
12/09/2017,BOOKS - ADULT NON-FICTION               ,AMZ AMAZON.CO.UK +44 2,-11.17,LIBRARY RESOURCES,MISCELLANEOUS AND SPECIALTY RETAIL STORES
12/09/2017,BURBANK COMMUNITY HOME,SAINSBURYS SACAT 0686,21.00,EQUIPMENT,"GROCERY STORES, SUPERMARKETS"
12/09/2017,BURBANK COMMUNITY HOME,SAINSBURYS SACAT 0686,7.80,MEDICAL EXPENSES,"GROCERY STORES, SUPERMARKETS"
12/09/2017,BURBANK COMMUNITY HOME,CAR PARKS SPH,3.50,VEHICLE RUNNING COSTS,GOVERNMENT SERVICES-NOT ELSEWHERE CLASSIFIED
12/09/2017,CHEYNE WALK COMMUNITY HOME,CO-OP GROUP PETROL,23.01,NON-STAFF RELATED TRANSPORT COSTS,SERVICE STATIONS WITH OR WITHOUT ANCILLARY SERVICE
12/09/2017,ORBIS HR PROGRAMME AND PERFORMANCE,BACKCARE SOLUTIONS LTD,"1,182.00",FURNITURE,DENTAL/LAB/MED/OPHTHALMIC HOSP EQUIP & SUPPLIES
12/09/2017,FAIRCROFT COMMUNITY HOME,SAINSBURYS PFS0473,4.00,PURCHASE OF FOOD (RAW MATERIALS),SERVICE STATIONS WITH OR WITHOUT ANCILLARY SERVICE
12/09/2017,SURREY ARTS GENERAL,AMAZON UK MARKETPLACE,119.95,CLEANING MATERIALS,BOOK STORES
12/09/2017,SECTOR MANAGER,WWW.FAYEUK.COM,"1,886.87",ITEMS PURCHASED FOR RE-SALE,LEATHER GOODS AND LUGGAGE STORES
12/09/2017,LIBERTAS COMMUNITY HOME,SAINSBURYS 0652,89.62,3RD PARTY PAYMENTS PRIVATE INDIV,"GROCERY STORES, SUPERMARKETS"
12/09/2017,LIBERTAS COMMUNITY HOME,SAINSBURYS 0652,25.00,TELECOMMUNICATION CHARGES,"GROCERY STORES, SUPERMARKETS"
12/09/2017,S28A LEARNING DISABILITY/OLDER PEOPLE,HMCTS-SURREY125,75.00,FEES,FINES
12/09/2017,IMT MANAGEMENT TEAM,AMAZON UK MARKETPLACE,37.91,REFRESHMENT COSTS,BOOK STORES
12/09/2017,IMT MODERN WORKER,MSFT  <E01004DFRX>,267.10,COMPUTER SERVICES,"COMPUTERS, COMPUTER PERIPHERAL EQUIPMENT, SOFTWARE"
12/09/2017,SW EDUCATION PSYCHOLOGISTS,AMAZON EU,89.97,BOOKS,DIRECT MARKETING-OTHER DIRECT MARKETERS/NOT ELSEW.
12/09/2017,ROW VOLUNTEERS EAST                     ,WILLIAM WAY (GODSTONE),60.00,EQUIPMENT,"BUILDING MATERIALS, LUMBER STORES"
12/09/2017,TARGETED INTERVENTION,STARBUCKS,4.95,EDUC VISITS/HOLS/CAMPS/TOYS,FAST FOOD RESTAURANTS
12/09/2017,TARGETED INTERVENTION,STARBUCKS,3.65,EDUC VISITS/HOLS/CAMPS/TOYS,FAST FOOD RESTAURANTS
12/09/2017,TARGETED INTERVENTION,LUMARA CRAFTS,45.60,EDUC VISITS/HOLS/CAMPS/TOYS,"EATING PLACES, RESTAURANTS"
12/09/2017,TARGETED INTERVENTION,BIRDWORLD,49.95,EDUC VISITS/HOLS/CAMPS/TOYS,LAWN AND GARDEN SUPPLY STORES
12/09/2017,MOLESEY YOUTH CENTRE,WWW.LAIDLAWDIRECT.COM,107.70,DAY TO DAY MAINTENANCE,HARDWARE STORES
12/09/2017,ACL CENTRAL EXPENDITURE,WWW.TIRANTI.CO.UK,344.03,EQUIPMENT,"ARTIST SUPPLY STORES, CRAFT SHOPS"
12/09/2017,ACL CENTRAL EXPENDITURE,MOSAIC TRADER UK LTD,78.36,EQUIPMENT,"BUILDING MATERIALS, LUMBER STORES"
12/09/2017,FAIRCROFT COMMUNITY HOME,TESCO STORE 2812,112.86,PURCHASE OF FOOD (RAW MATERIALS),"GROCERY STORES, SUPERMARKETS"
12/09/2017,PROPERTY OPERATIONS TEAM,WICKES,5.98,PURCHASE OF BUILDING MATERIALS,"BUILDING MATERIALS, LUMBER STORES"
12/09/2017,WOODLANDS COMMUNITY HOME,SAINSBURYS TO YOU 0686,19.00,PURCHASE OF FOOD (RAW MATERIALS),"GROCERY STORES, SUPERMARKETS"
12/09/2017,WOODLANDS COMMUNITY HOME,SAINSBURYS TO YOU 0686,210.40,PURCHASE OF FOOD (RAW MATERIALS),"GROCERY STORES, SUPERMARKETS"
12/09/2017,WOODLANDS COMMUNITY HOME,WWW.PRIORYCOFE.COM,50.00,PURCHASE OF FOOD (RAW MATERIALS),CATERERS
12/09/2017,TRANSPORT,AMAZON.CO.UK,29.70,COMPUTER CONSUMABLES,BOOK STORES
12/09/2017,DOWNLANDS COUNTRYSIDE PROJECT,WP-PEOPLE'S TRUST,80.00,TRAINING USING EXTERNAL PROVIDERS,"ORGANIZATIONS, CHARITABLE AND SOCIAL SERVICES"
12/09/2017,HOPE SERVICE - WEST,WWW.CGPBOOKS.CO.UK,5.00,BOOKS,MISCELLANEOUS AND SPECIALTY RETAIL STORES
12/09/2017,HEAD OF SERVICES FOR YOUNG PEOPLE,AMAZON UK MARKETPLACE,75.04,EQUIPMENT,BOOK STORES
12/09/2017,TS SERVICE MANAGEMENT,ACT NOW TRAINING,4.99,TRAINING EXPENSES EXTERNAL GENERAL,"CONSULTING, MANAGEMENT, AND PUBLIC RELATIONS SVCS"
12/09/2017,TS SERVICE MANAGEMENT,ACT NOW TRAINING,717.60,TRAINING EXPENSES EXTERNAL GENERAL,"CONSULTING, MANAGEMENT, AND PUBLIC RELATIONS SVCS"
12/09/2017,READY FOR WORK YSS,CITB,60.00,EDUC VISITS/HOLS/CAMPS/TOYS,"COLLEGES, UNIV, PRO SCHOOLS, JUNIOR COLLEGES"
12/09/2017,RUTH HOUSE,AMAZON UK MARKETPLACE,8.98,EDUC VISITS/HOLS/CAMPS/TOYS,BOOK STORES
12/09/2017,RUTH HOUSE,AUTOGLASS,134.34,VEHICLE RUNNING COSTS,"AUTOMOTIVE PARTS, ACCESSORIES STORES"
12/09/2017,FAIRCROFT COMMUNITY HOME,UPAY,50.00,REFRESHMENT COSTS,"EATING PLACES, RESTAURANTS"
12/09/2017,HILLSIDE,SAINSBURYS SACAT 0675,7.50,PURCHASE OF FOOD (RAW MATERIALS),"GROCERY STORES, SUPERMARKETS"
12/09/2017,HILLSIDE,SAINSBURYS SACAT 0675,32.50,PURCHASE OF FOOD (RAW MATERIALS),"GROCERY STORES, SUPERMARKETS"
12/09/2017,TRAINING AND DEVELOPMENT,FMASTRENGTHCOACH.COM,"1,900.00",SUBSISTENCE AND CONFERENCE EXPENSES,SCHOOLS & EDUCATIONAL SVC-NOT ELSEWHERE CLASSIFIED
12/09/2017,SW CARE - NON-LAC CP & COURT,SURREY CC CARD PAY,21.00,LEGAL EXPENSES,COMPUTER NETWORK/INFORMATION SERVICES
12/09/2017,SE CARE - LAC,SURREY CC CARD PAY,31.00,CHILDREN ACT SEC 17 PAYMENTS,COMPUTER NETWORK/INFORMATION SERVICES
12/09/2017,HILLSIDE,THE SOUTHERN CO-OP,13.65,PURCHASE OF FOOD (RAW MATERIALS),DEPARTMENT STORES
12/09/2017,SOLD PROFESSIONAL TRAINING AND DEVLPMNT,BRITISH CANOEING,125.00,TRAINING EXPENSES EXTERNAL GENERAL,"CLUBS-CNTRY,MBRSHIP(ATHLET,REC,SPRTS,PRIVATE GOLF"
12/09/2017,ROW MAINTENANCE,WILLIAM WAY (GODSTONE),46.08,EQUIPMENT,"BUILDING MATERIALS, LUMBER STORES"
12/09/2017,LEARNING ON MY DOORSTEP PROJECT,AMAZON UK MARKETPLACE,56.52,EQUIPMENT,BOOK STORES
12/09/2017,FAMILIES SURREY HEATH,CURRYS T/SALES,274.99,EDUC VISITS/HOLS/CAMPS/TOYS,ELECTRONIC SALES
12/09/2017,NE CARE - NON-LAC CP & COURT,TRAVELODGE,55.00,FEES,TRAVELODGE
12/09/2017,EXTENDED HOPE,SAINSBURYS 0652,22.85,PURCHASE OF FOOD (RAW MATERIALS),"GROCERY STORES, SUPERMARKETS"
12/09/2017,EXTENDED HOPE,MCDONALDS,23.82,EDUC VISITS/HOLS/CAMPS/TOYS,FAST FOOD RESTAURANTS
12/09/2017,TARGETED INTERVENTION,BIRDWORLD,7.70,EDUC VISITS/HOLS/CAMPS/TOYS,LAWN AND GARDEN SUPPLY STORES
12/09/2017,FAMILIES MOLE VALLEY,LIDL UK,7.96,PURCHASE OF FOOD (RAW MATERIALS),"GROCERY STORES, SUPERMARKETS"
12/09/2017,SE CP & COURT TEAM,ARROW TAXIS LTD,800.00,TRANSPORT SOCIAL CARE-TAXI,LIMOUSINES AND TAXICABS
12/09/2017,RUTH HOUSE,AMAZON UK MARKETPLACE,6.98,EDUC VISITS/HOLS/CAMPS/TOYS,BOOK STORES
13/09/2017,RUTH HOUSE,AMAZON.CO.UK,54.74,EDUC VISITS/HOLS/CAMPS/TOYS,BOOK STORES
13/09/2017,CS BUSINESS SUPPORT WEST,TVLICENSING.CO.UK,147.00,FEES,"CONSULTING, MANAGEMENT, AND PUBLIC RELATIONS SVCS"
13/09/2017,CHEYNE WALK COMMUNITY HOME,PRIMARK 685,16.00,"CLOTHING, UNIFORM AND LAUNDRY",FAMILY CLOTHING STORES
13/09/2017,EXTENDED HOPE,BP WISLEY NORTH,3.54,REFRESHMENT COSTS,SERVICE STATIONS WITH OR WITHOUT ANCILLARY SERVICE
13/09/2017,EXTENDED HOPE,BP WISLEY NORTH,3.50,REFRESHMENT COSTS,SERVICE STATIONS WITH OR WITHOUT ANCILLARY SERVICE
13/09/2017,INCLUSION VIRTUAL LEARNING ENVIRONMENT,DIGICERT INC,233.03,SUBSCRIPTIONS,BUSINESS SERVICES-NOT ELSEWHERE CLASSIFIED
13/09/2017,FAIRMOUNT HOUSE LEATHERHEAD,TESCO-STORES 6647,61.50,EQUIPMENT,"GROCERY STORES, SUPERMARKETS"
13/09/2017,CHMHS RAP TEAM,WWW.PAPAJOHNS.CO.U,18.24,EDUC VISITS/HOLS/CAMPS/TOYS,"EATING PLACES, RESTAURANTS"
13/09/2017,PROPERTY OPERATIONS TEAM,JEWSON LTD,42.09,PURCHASE OF BUILDING MATERIALS,"BUILDING MATERIALS, LUMBER STORES"
13/09/2017,ACL CENTRAL EXPENDITURE,GLS EDUCATIONAL SU,385.54,EQUIPMENT,"COLLEGES, UNIV, PRO SCHOOLS, JUNIOR COLLEGES"
13/09/2017,ASSET MANAGEMENT PLAN,ARGOS LTD,389.00,COMPUTER SERVICES,DISCOUNT STORES
13/09/2017,NW EDUCATION PSYCHOLOGISTS,AMAZON.CO.UK,40.32,BOOKS,BOOK STORES
13/09/2017,SW EDUCATION PSYCHOLOGISTS,AMAZON.CO.UK,40.32,BOOKS,BOOK STORES
13/09/2017,HILLSIDE,SAINSBURYS 0675,99.75,PURCHASE OF FOOD (RAW MATERIALS),"GROCERY STORES, SUPERMARKETS"
13/09/2017,HILLSIDE,SAINSBURYS 0675,36.60,PURCHASE OF FOOD (RAW MATERIALS),"GROCERY STORES, SUPERMARKETS"
13/09/2017,WOODLANDS COMMUNITY HOME,WWW.GRAVITYFORCE.CO.UK,22.00,EDUC VISITS/HOLS/CAMPS/TOYS,"DANCE HALLS, SCHOOLS, AND STUDIOS"
13/09/2017,FAMILIES REIGATE AND BANSTREAD,LIDL UK,7.92,REFRESHMENT COSTS,"GROCERY STORES, SUPERMARKETS"
13/09/2017,CHEYNE WALK COMMUNITY HOME,TESCO-STORES 6647,244.64,PURCHASE OF FOOD (RAW MATERIALS),"GROCERY STORES, SUPERMARKETS"
13/09/2017,RUNNYMEDE CMHRS CARE,TRAVELODGE,-185.25,OTHER COMMUNITY CARE PRIV,TRAVELODGE
13/09/2017,HOLLAND CLOSE RESIDENTIAL HOME,SAINSBURYS 2051,10.33,PURCHASE OF FOOD (RAW MATERIALS),"GROCERY STORES, SUPERMARKETS"
13/09/2017,HOLLAND CLOSE RESIDENTIAL HOME,POUNDLAND LTD 1244,3.00,PURCHASE OF FOOD (RAW MATERIALS),DISCOUNT STORES
13/09/2017,HOLLAND CLOSE RESIDENTIAL HOME,CO-OP GROUP FOOD,30.61,PURCHASE OF FOOD (RAW MATERIALS),"GROCERY STORES, SUPERMARKETS"
13/09/2017,CORONER,SAINSBURYS TO YOU 0686,37.00,REFRESHMENT COSTS,"GROCERY STORES, SUPERMARKETS"
13/09/2017,COBHAM CHILDRENS CENTRE,WAITROSE 176,9.24,REFRESHMENT COSTS,"GROCERY STORES, SUPERMARKETS"
13/09/2017,ASYLUM SEEKERS 18+,PRESTON VILLAGE,200.00,OTHER COMMUNITY CARE VOL,PROFESSIONAL SERVICES-NOT ELSEWHERE CLASSIFIED
13/09/2017,ACL CENTRAL EXPENDITURE,WAITROSE 181,12.04,REFRESHMENT COSTS,"GROCERY STORES, SUPERMARKETS"
13/09/2017,HERITAGE PUBLIC SERVICE,AMAZON EU,49.97,EQUIPMENT,DIRECT MARKETING-OTHER DIRECT MARKETERS/NOT ELSEW.
13/09/2017,FAIRCROFT COMMUNITY HOME,KFC,12.98,REFRESHMENT COSTS,FAST FOOD RESTAURANTS
13/09/2017,FAIRCROFT COMMUNITY HOME,MCDONALDS,24.46,REFRESHMENT COSTS,FAST FOOD RESTAURANTS
13/09/2017,CHILDREN'S RIGHTS TEAM,PIZZA HUT ONLINE WEB,56.87,REFRESHMENT COSTS,"EATING PLACES, RESTAURANTS"
13/09/2017,BUSINESS IMPROVEMENTS,HOTPOINT /INTERNET,348.48,EQUIPMENT,HOUSEHOLD APPLIANCE STORES
13/09/2017,BUSINESS IMPROVEMENTS,CURRYS ONLINE,69.99,EQUIPMENT,ELECTRONIC SALES
13/09/2017,ACL CENTRAL EXPENDITURE,GUILDFORD BOROUGH CNCL,20.20,PUBLICITY,GOVERNMENT SERVICES-NOT ELSEWHERE CLASSIFIED
13/09/2017,ACL CENTRAL EXPENDITURE,AMAZON UK MARKETPLACE,8.95,PUBLICITY,BOOK STORES
13/09/2017,ARUNDEL,TESCO STORES 5999,146.04,REFRESHMENT COSTS,"GROCERY STORES, SUPERMARKETS"
13/09/2017,SURREY ARTS GENERAL,PC WORLD ONLINE,199.99,EQUIPMENT,ELECTRONIC SALES
13/09/2017,DOWNLANDS COUNTRYSIDE PROJECT,TESCO STORES,38.48,REFRESHMENT COSTS,"GROCERY STORES, SUPERMARKETS"
13/09/2017,BURBANK COMMUNITY HOME,W M MORRISONS,19.24,PURCHASE OF FOOD (RAW MATERIALS),"GROCERY STORES, SUPERMARKETS"
13/09/2017,PE/CDT MAINTENANCE OVERHEADS,WWW.EXPERTFITNESSUK.CO,284.10,ITEMS PURCHASED FOR RE-SALE,SPORTING GOODS STORES
13/09/2017,MAINT ENG TEAM,WWW.CIBSE.ORG,342.00,TRAINING EXPENSES EXTERNAL GENERAL,"ORGANIZATIONS, MEMBERSHIP-NOT ELSEWHERE CLASSIFIED"
13/09/2017,FAMILIES SPELTHORNE,SAINSBURYS SACAT (4117,4.25,REFRESHMENT COSTS,"GROCERY STORES, SUPERMARKETS"
13/09/2017,EXTENDED HOPE,MCDONALDS,10.66,REFRESHMENT COSTS,FAST FOOD RESTAURANTS
13/09/2017,HILLSIDE,BOOTS 6701,4.38,CLEANING AND DOMESTIC SUPPLIES,"DRUG STORES, PHARMACIES"
13/09/2017,LIBERTAS COMMUNITY HOME,SUSHI NARA LTD,188.10,3RD PARTY PAYMENTS PRIVATE INDIV,"EATING PLACES, RESTAURANTS"
13/09/2017,CRANLEIGH YC,CO-OP GROUP 500340,17.08,PURCHASE OF FOOD (RAW MATERIALS),"GROCERY STORES, SUPERMARKETS"
13/09/2017,CRANLEIGH YC,CO-OP GROUP 500340,20.00,CURRICULUM EQUIPMENT AND FURNITURE,"GROCERY STORES, SUPERMARKETS"
13/09/2017,LIBERTAS COMMUNITY HOME,B & Q 1029,92.95,EQUIPMENT,"BUILDING MATERIALS, LUMBER STORES"
13/09/2017,CHEYNE WALK COMMUNITY HOME,KIT-SHOP LTD,143.00,"CLOTHING, UNIFORM AND LAUNDRY",CHILDREN'S AND INFANT'S WEAR STORES
13/09/2017,CHEYNE WALK COMMUNITY HOME,NEXT RETAIL LTD,48.05,"CLOTHING, UNIFORM AND LAUNDRY",FAMILY CLOTHING STORES
13/09/2017,CHEYNE WALK COMMUNITY HOME,BOOTS 1449,15.68,EQUIPMENT,"DRUG STORES, PHARMACIES"
13/09/2017,CHEYNE WALK COMMUNITY HOME,COUNTY MALL CAR PARK,2.50,EQUIPMENT,AUTOMOBILE PARKING LOTS AND GARAGES
13/09/2017,CHEYNE WALK COMMUNITY HOME,STARBUCKS,11.23,REFRESHMENT COSTS,FAST FOOD RESTAURANTS
13/09/2017,TS SERVICE MANAGEMENT,AMAZON UK MARKETPLACE,87.76,EQUIPMENT,BOOK STORES
13/09/2017,COUNTY HALL,AMAZON UK MARKETPLACE,59.70,STATIONERY,BOOK STORES
13/09/2017,COUNTY HALL,AMAZON UK MARKETPLACE,38.46,STATIONERY,BOOK STORES
13/09/2017,COUNTY HALL,HOMEBASE LTD,24.99,DAY TO DAY MAINTENANCE,"BUILDING MATERIALS, LUMBER STORES"
13/09/2017,TRAINING AND DEVELOPMENT,ROYAL MARITIMECLUB,216.00,TRAINING EXPENSES EXTERNAL GENERAL,"LODGING-HOTELS,MOTELS,RESORTS-NOT CLASSIFIED"
13/09/2017,SW CARE - CP & COURT LAC,NATIONAL EXPRESS LIMIT,83.90,NON-STAFF RELATED TRANSPORT COSTS,BUS LINES
13/09/2017,CHEYNE WALK COMMUNITY HOME,AMAZON UK MARKETPLACE,7.84,EQUIPMENT,BOOK STORES
13/09/2017,CYWS COMMISSIONING,SAINSBURYS SACAT 0828,10.30,PURCHASE OF FOOD (RAW MATERIALS),"GROCERY STORES, SUPERMARKETS"
13/09/2017,TRANSPORT,CDA GROUP LTD,99.00,EQUIPMENT,ELECTRICAL PARTS AND EQUIPMENT
13/09/2017,CHEYNE WALK COMMUNITY HOME,AMAZON UK MARKETPLACE,40.00,EQUIPMENT,BOOK STORES
13/09/2017,BURBANK COMMUNITY HOME,SAINSBURYS TO YOU 0686,277.98,PURCHASE OF FOOD (RAW MATERIALS),"GROCERY STORES, SUPERMARKETS"
13/09/2017,BURBANK COMMUNITY HOME,W M MORRISONS,3.00,PURCHASE OF FOOD (RAW MATERIALS),"GROCERY STORES, SUPERMARKETS"
13/09/2017,TS SERVICE MANAGEMENT,AMAZON UK MARKETPLACE,47.68,EQUIPMENT,BOOK STORES
13/09/2017,FAIRCROFT COMMUNITY HOME,AO RETAIL LIMITED,200.99,EQUIPMENT,HOUSEHOLD APPLIANCE STORES
13/09/2017,FAIRCROFT COMMUNITY HOME,AO RETAIL LIMITED,235.98,EQUIPMENT,HOUSEHOLD APPLIANCE STORES
14/09/2017,WOODLANDS COMMUNITY HOME,REPLACEMENTKEYSCOUK,13.95,FIXTURES AND FITTINGS,MISCELLANEOUS GENERAL MERCHANDISE
14/09/2017,LIBERTAS COMMUNITY HOME,PRIMARK STORES 655,15.00,"CLOTHING, UNIFORM AND LAUNDRY",FAMILY CLOTHING STORES
14/09/2017,NW EDUCATION PSYCHOLOGISTS,AMAZON.CO.UK,130.50,BOOKS,BOOK STORES
14/09/2017,SW EDUCATION PSYCHOLOGISTS,AMAZON.CO.UK,130.50,BOOKS,BOOK STORES
14/09/2017,HILLSIDE,SAINSBURYS 0675,72.59,PURCHASE OF FOOD (RAW MATERIALS),"GROCERY STORES, SUPERMARKETS"
14/09/2017,HOPE SERVICE - WEST,SQUIRES GARDEN CENTRE,10.10,REFRESHMENT COSTS,LAWN AND GARDEN SUPPLY STORES
14/09/2017,ACL CENTRAL EXPENDITURE,TEXTMARKETER,90.00,PUBLICITY,COMPUTER SOFTWARE STORES
14/09/2017,ACL CENTRAL EXPENDITURE,TEXTMARKETER,90.00,PUBLICITY,COMPUTER SOFTWARE STORES
14/09/2017,ARUNDEL,TESCO STORES 5999,-.75,REFRESHMENT COSTS,"GROCERY STORES, SUPERMARKETS"
14/09/2017,FAIRCROFT COMMUNITY HOME,SAINSBURYS SACAT 0687,38.35,PURCHASE OF FOOD (RAW MATERIALS),"GROCERY STORES, SUPERMARKETS"
14/09/2017,SURREY ARTS GENERAL,SIT-STAND.COM,539.50,FURNITURE,"OFFICE, SCHOOL SUPPLY, AND STATIONERY STORES"
14/09/2017,ACL CENTRAL EXPENDITURE,AMAZON UK MARKETPLACE,11.89,EQUIPMENT,BOOK STORES
14/09/2017,ACL CENTRAL EXPENDITURE,AMAZON UK MARKETPLACE,16.65,EQUIPMENT,BOOK STORES
14/09/2017,HERITAGE ENTERPRISE (SCAU),AMAZON UK MARKETPLACE,79.95,EQUIPMENT,BOOK STORES
14/09/2017,HERITAGE ENTERPRISE (SCAU),AMAZON UK MARKETPLACE,74.97,EQUIPMENT,BOOK STORES
14/09/2017,TRANSPORT,WWW.LOCKHARTCATERING.C,116.35,FURNITURE,"CLEANING AND MAINTENANCE, JANITORIAL SERVICES"
14/09/2017,TRANSPORT,HAMPSHIREFL,53.88,FURNITURE,"FABRIC, NEEDLEWORK, PIECE GOODS, AND SEWING STORES"
14/09/2017,HOPE SERVICE - WEST,AMAZON UK MARKETPLACE,5.95,DAY TO DAY MAINTENANCE,BOOK STORES
14/09/2017,HOPE SERVICE - WEST,AMAZON EU,32.92,PURCHASE OF FOOD (RAW MATERIALS),DIRECT MARKETING-OTHER DIRECT MARKETERS/NOT ELSEW.
14/09/2017,PE/CDT MAINTENANCE OVERHEADS,UNIVERSAL SERVICES (SP,879.02,ITEMS PURCHASED FOR RE-SALE,"ATHLTIC FIELDS,COMMRCL SPRT,SPRT CLBS,SPRT PROMOTR"
14/09/2017,PE/CDT MAINTENANCE OVERHEADS,SCREWFIX DIRECT,416.06,EQUIPMENT,"BUILDING MATERIALS, LUMBER STORES"
14/09/2017,RUTH HOUSE,WWW.PARENTMAIL.CO.,18.40,PURCHASE OF FOOD (RAW MATERIALS),SCHOOLS & EDUCATIONAL SVC-NOT ELSEWHERE CLASSIFIED
14/09/2017,RUTH HOUSE,W M MORRISONS,25.81,PURCHASE OF FOOD (RAW MATERIALS),"GROCERY STORES, SUPERMARKETS"
14/09/2017,FAMILIES ELMBRIDGE,POST OFFICE COUNTER,15.60,POSTAGE AND COURIER CHARGES,POSTAL SERVICES-GOVERNMENT ONLY
14/09/2017,CORPORATE GROUP - LEGAL SERVICES,AMAZON UK MARKETPLACE,36.29,STATIONERY,BOOK STORES
14/09/2017,TARGETED INTERVENTION,BIRDWORLD,81.85,EDUC VISITS/HOLS/CAMPS/TOYS,LAWN AND GARDEN SUPPLY STORES
14/09/2017,TARGETED INTERVENTION,BIRDWORLD,12.70,EDUC VISITS/HOLS/CAMPS/TOYS,LAWN AND GARDEN SUPPLY STORES
14/09/2017,TARGETED INTERVENTION,THE SCULPTURE PARK,25.00,EDUC VISITS/HOLS/CAMPS/TOYS,TOURIST ATTRACTIONS AND EXHIBITS
14/09/2017,TARGETED INTERVENTION,STARBUCKS,8.30,EDUC VISITS/HOLS/CAMPS/TOYS,"EATING PLACES, RESTAURANTS"
14/09/2017,E&I - LOVE FOOD HATE WASTE              ,GOOGLE  ADWS2060179426,500.00,PUBLICITY,DIRECT MARKETING-CONTINUITY/SUBSCRIPTION MERCHANTS
14/09/2017,FAMILIES MOLE VALLEY,HELLOPRINT,170.52,PUBLICITY,"QUICK COPY,REPRODUCTION AND BLUEPRINTING SERVICES"
14/09/2017,FAMILIES MOLE VALLEY,TESCO STORES 2812,19.87,PURCHASE OF FOOD (RAW MATERIALS),"GROCERY STORES, SUPERMARKETS"
14/09/2017,FAIRCROFT COMMUNITY HOME,SAINSBURYS 0687,21.60,PURCHASE OF FOOD (RAW MATERIALS),"GROCERY STORES, SUPERMARKETS"
14/09/2017,FAMILIES ELMBRIDGE,SAINSBURYS SACAT 2663,6.05,REFRESHMENT COSTS,"GROCERY STORES, SUPERMARKETS"
14/09/2017,FAMILIES REIGATE AND BANSTREAD,ICELAND,10.17,PURCHASE OF FOOD (RAW MATERIALS),"GROCERY STORES, SUPERMARKETS"
14/09/2017,IT TRAINING,ACT GARTNER EVENTS EUR,"2,311.63",TRAINING EXPENSES EXTERNAL GENERAL,BUSINESS SERVICES-NOT ELSEWHERE CLASSIFIED
14/09/2017,HOLLAND CLOSE RESIDENTIAL HOME,MOONPIGUK    1JIP0OSL1,6.97,PHOTOCOPIER MACHINES AND MATERIALS,"GIFT, CARD, NOVELTY AND SOUVENIR SHOPS"
14/09/2017,LIBERTAS COMMUNITY HOME,LOCKMEADOW ENTERTAINME,12.45,EDUC VISITS/HOLS/CAMPS/TOYS,RECREATION SERVICES (NOT ELSEWHERE CLASSIFIED)
14/09/2017,SPLASH PROJECT,AMAZON UK MARKETPLACE,52.96,EDUC VISITS/HOLS/CAMPS/TOYS,BOOK STORES
14/09/2017,FAMILIES SURREY HEATH,ARGOS DIRECT,-179.19,EDUC VISITS/HOLS/CAMPS/TOYS,DISCOUNT STORES
14/09/2017,NE CARE - NON-LAC CP & COURT,TRAVELODGE,75.00,FEES,TRAVELODGE
14/09/2017,ROW VOLUNTEERS EAST                     ,PAYPAL  DOTN,48.50,EQUIPMENT,VARIETY STORES
14/09/2017,ROW VOLUNTEERS EAST                     ,SCREWFIX DIRECT,86.95,EQUIPMENT,"BUILDING MATERIALS, LUMBER STORES"
14/09/2017,COVEHAM,EPSOM PLAYHOUSE,39.20,EDUC VISITS/HOLS/CAMPS/TOYS,MISCELLANEOUS GENERAL MERCHANDISE
14/09/2017,ARUNDEL,WILKO RETAIL LIMIT,11.00,EQUIPMENT,HOUSEHOLD APPLIANCE STORES
14/09/2017,HOPE SERVICE - WEST,SAINSBURYS TO YOU 0686,68.30,PURCHASE OF FOOD (RAW MATERIALS),"GROCERY STORES, SUPERMARKETS"
14/09/2017,HOPE SERVICE - WEST,SAINSBURYS TO YOU 0686,-2.05,PURCHASE OF FOOD (RAW MATERIALS),"GROCERY STORES, SUPERMARKETS"
14/09/2017,SCHOOL APPEALS,AMAZON EU,28.17,STATIONERY,DIRECT MARKETING-OTHER DIRECT MARKETERS/NOT ELSEW.
14/09/2017,SCHOOL APPEALS,AMAZON EU,28.16,STATIONERY,DIRECT MARKETING-OTHER DIRECT MARKETERS/NOT ELSEW.
14/09/2017,TRANSPORT,BACK IN ACTION,429.00,FURNITURE,"EQUIP, FURNITURE, HOME FURNSHNGS STRS (EXCPT APPL)"
14/09/2017,CSAF 50+,WE R SPORTS,583.10,EQUIPMENT,SPORTING GOODS STORES
14/09/2017,CSAF 50+,WE R SPORTS,116.20,EQUIPMENT,SPORTING GOODS STORES
14/09/2017,ACL CENTRAL EXPENDITURE,AMAZON UK MARKETPLACE,113.94,EQUIPMENT,BOOK STORES
14/09/2017,ACL CENTRAL EXPENDITURE,AMAZON UK MARKETPLACE,63.21,EQUIPMENT,BOOK STORES
14/09/2017,ACL CENTRAL EXPENDITURE,AMAZON UK MARKETPLACE,33.38,EQUIPMENT,BOOK STORES
14/09/2017,ACL CENTRAL EXPENDITURE,AMAZON UK MARKETPLACE,16.17,EQUIPMENT,BOOK STORES
14/09/2017,IMT CRITICAL ENVIRONMENTS,AMAZON EU,97.98,COMPUTER HARDWARE,DIRECT MARKETING-OTHER DIRECT MARKETERS/NOT ELSEW.
14/09/2017,ASSET PLANNING - OPERATIONS,CROMWELL CRAWLEY,891.19,EQUIPMENT,INDUSTRIAL SUPPLIES NOT ELSEWHERE CLASSIFIED
14/09/2017,ASSET MANAGEMENT PLAN,ARGOS READING CALC,59.99,COMPUTER SERVICES,DISCOUNT STORES
14/09/2017,NW TEACHERS,AMAZON UK MARKETPLACE,46.65,BOOKS,BOOK STORES
15/09/2017,HILLSIDE,TIC,12.00,EDUC VISITS/HOLS/CAMPS/TOYS,"THEATRICAL PRODUCERS(EXCL MOTION PIX),TICKET AGNCY"
15/09/2017,TRANSPORT,JACKSON'S QUALITY SHOE,14.00,DAY TO DAY MAINTENANCE,"HAT CLEANING SHOPS, SHOE REPAIR SHOPS, SHOE SHINE"
15/09/2017,WOODLANDS COMMUNITY HOME,SAINSBURYS 0686,64.00,CLEANING MATERIALS,"GROCERY STORES, SUPERMARKETS"
15/09/2017,WOODLANDS COMMUNITY HOME,SAINSBURYS 0686,45.00,EQUIPMENT,"GROCERY STORES, SUPERMARKETS"
15/09/2017,WOODLANDS COMMUNITY HOME,SAINSBURYS 0686,4.50,PURCHASE OF FOOD (RAW MATERIALS),"GROCERY STORES, SUPERMARKETS"
15/09/2017,WOODLANDS COMMUNITY HOME,SAINSBURYS 0686,61.66,PURCHASE OF FOOD (RAW MATERIALS),"GROCERY STORES, SUPERMARKETS"
15/09/2017,LIBERTAS COMMUNITY HOME,THE OLIVE TREE CAFE,13.90,REFRESHMENT COSTS,FAST FOOD RESTAURANTS
15/09/2017,LIBERTAS COMMUNITY HOME,TESCO STORES 2017,12.90,PURCHASE OF FOOD (RAW MATERIALS),"GROCERY STORES, SUPERMARKETS"
15/09/2017,VIRTUAL SCHOOL FOR LAC PUPIL PREMIUM,BARRINGTON STOKE LTD,52.99,BOOKS,BOOK STORES
15/09/2017,WOODLANDS COMMUNITY HOME,SPORTSDIRECT 234,89.98,"CLOTHING, UNIFORM AND LAUNDRY",SPORTING GOODS STORES
15/09/2017,ARUNDEL,BLUE BADGE PYMENT MOTO,30.00,VEHICLE RUNNING COSTS,GOVERNMENT SERVICES-NOT ELSEWHERE CLASSIFIED
15/09/2017,ARUNDEL,TESCO STORES 5999,131.57,REFRESHMENT COSTS,"GROCERY STORES, SUPERMARKETS"
15/09/2017,PRISON CAPITATION                       ,AMZ AMAZON.CO.UK,-10.46,LIBRARY RESOURCES,MISCELLANEOUS AND SPECIALTY RETAIL STORES
15/09/2017,WOODLANDS COMMUNITY HOME,AMAZON EU,5.99,BOOKS,DIRECT MARKETING-OTHER DIRECT MARKETERS/NOT ELSEW.
15/09/2017,WOODLANDS COMMUNITY HOME,ARGOS BROOKWOOD IN,95.96,EQUIPMENT,DISCOUNT STORES
15/09/2017,WOODLANDS COMMUNITY HOME,SHELL LADYMEAD 046,41.85,PETROL/DIESEL ALL OFF BUSINESS,SERVICE STATIONS WITH OR WITHOUT ANCILLARY SERVICE
15/09/2017,APPLEWOOD,ASDA HOME SHOPPING,159.40,PURCHASE OF FOOD (RAW MATERIALS),"GROCERY STORES, SUPERMARKETS"
15/09/2017,APPLEWOOD,ASDA HOME SHOPPING,-.49,PURCHASE OF FOOD (RAW MATERIALS),"GROCERY STORES, SUPERMARKETS"
15/09/2017,ACL CENTRAL EXPENDITURE,WWW.CASSART.CO.UK,49.20,EQUIPMENT,"ARTIST SUPPLY STORES, CRAFT SHOPS"
15/09/2017,TRAINING ENVIRONMENT SERVICES,TRAINING COMPANY,238.80,TRAINING USING EXTERNAL PROVIDERS,SCHOOLS & EDUCATIONAL SVC-NOT ELSEWHERE CLASSIFIED
15/09/2017,SE CARE - LAC,BEDFORD BOROUGH COUNCI,-11.40,CHILDREN ACT SEC 17 PAYMENTS,GOVERNMENT SERVICES-NOT ELSEWHERE CLASSIFIED
15/09/2017,SURREY THE GREAT WAR,W M MORRISONS,11.02,REFRESHMENT COSTS,"GROCERY STORES, SUPERMARKETS"
15/09/2017,ROW VOLUNTEERS WEST                     ,SJASUPLIES,122.68,EQUIPMENT,"ORGANIZATIONS, CHARITABLE AND SOCIAL SERVICES"
15/09/2017,ASSISTED PURCHASE SCHEME,SAX.CO.UK,"3,795.39",EQUIPMENT,"MUSIC STORES-INSTRUMENTS, PIANOS, SHEET MUSIC"
15/09/2017,ACL CENTRAL EXPENDITURE,AMAZON UK MARKETPLACE,3.99,EQUIPMENT,BOOK STORES
15/09/2017,ACL CENTRAL EXPENDITURE,AMAZON UK MARKETPLACE,9.94,EQUIPMENT,BOOK STORES
15/09/2017,ACL CENTRAL EXPENDITURE,AMAZON UK MARKETPLACE,8.49,EQUIPMENT,BOOK STORES
15/09/2017,ACL CENTRAL EXPENDITURE,AMAZON UK MARKETPLACE,.53,EQUIPMENT,BOOK STORES
15/09/2017,ACL CENTRAL EXPENDITURE,AMAZON UK MARKETPLACE,6.99,EQUIPMENT,BOOK STORES
15/09/2017,ACL CENTRAL EXPENDITURE,AMAZON UK MARKETPLACE,12.99,EQUIPMENT,BOOK STORES
15/09/2017,ACL CENTRAL EXPENDITURE,AMAZON.CO.UK,1.38,EQUIPMENT,BOOK STORES
15/09/2017,RIGHTS OF WAY 'STRUCTURES CAPITAL',DRONES FOR LESS,395.00,CE02 FURNITURE AND EQUIPMENT,MISCELLANEOUS AND SPECIALTY RETAIL STORES
15/09/2017,PE/CDT MAINTENANCE OVERHEADS,TRAVIS PERKINS,37.20,ITEMS PURCHASED FOR RE-SALE,"BUILDING MATERIALS, LUMBER STORES"
15/09/2017,NW CARE - CP & COURT LAC,"CENTER PARCS, ECOM","1,153.62",EDUC VISITS/HOLS/CAMPS/TOYS,"LODGING-HOTELS,MOTELS,RESORTS-NOT CLASSIFIED"
15/09/2017,TS SERVICE MANAGEMENT,WWW.ARCO.CO.UK,23.14,"CLOTHING, UNIFORM AND LAUNDRY",INDUSTRIAL SUPPLIES NOT ELSEWHERE CLASSIFIED
15/09/2017,NW CARE - CP & COURT LAC,"CENTER PARCS, INHOUSE","1,306.62",EDUC VISITS/HOLS/CAMPS/TOYS,"LODGING-HOTELS,MOTELS,RESORTS-NOT CLASSIFIED"
15/09/2017,ASYLUM SEEKERS 18+,WWW.SHURGARD.CO.UK,142.57,REMOVAL EXPENSES,BUSINESS SERVICES-NOT ELSEWHERE CLASSIFIED
15/09/2017,NW SECTION 17 CARE,PREMIER INN,555.00,3RD PARTY PAYMENTS PRIVATE INDIV,PREMIER INN
15/09/2017,NE CARE - CP & COURT LAC,SURREY CC CARD PAY,11.00,FEES,COMPUTER NETWORK/INFORMATION SERVICES
15/09/2017,FAIRCROFT COMMUNITY HOME,WWW.PAPAJOHNS.CO.U,49.72,REFRESHMENT COSTS,"EATING PLACES, RESTAURANTS"
15/09/2017,EXTENDED HOPE,SAINSBURYS SACAT 0052,18.00,EQUIPMENT,"GROCERY STORES, SUPERMARKETS"
15/09/2017,EXTENDED HOPE,FRANKIE & BENNYS 5550,57.70,REFRESHMENT COSTS,"EATING PLACES, RESTAURANTS"
15/09/2017,EXTENDED HOPE,WWW.TENPIN.CO.UK,2.30,REFRESHMENT COSTS,"CLUBS-CNTRY,MBRSHIP(ATHLET,REC,SPRTS,PRIVATE GOLF"
15/09/2017,CSAF 50+,WE R SPORTS,739.26,EQUIPMENT,SPORTING GOODS STORES
15/09/2017,CORPORATE GROUP - LEGAL SERVICES,REIGATE & BANSTEAD,6.40,EXPENSES,GOVERNMENT SERVICES-NOT ELSEWHERE CLASSIFIED
15/09/2017,NW CP & COURT TEAM,CAVELL LEITCH,668.08,OTHER COMMUNITY CARE VOL,"ATTORNEYS, LEGAL SERVICES"
15/09/2017,NE CARE - CP & COURT LAC,EMIRATES AIRLINES (ABBR. EMIRATES),640.14,NON-STAFF RELATED TRANSPORT COSTS,EMIRATES AIRLINES (ABBR. EMIRATES)
15/09/2017,TARGETED INTERVENTION,SAINSBURYS SACAT 0802,9.90,EDUC VISITS/HOLS/CAMPS/TOYS,"GROCERY STORES, SUPERMARKETS"
15/09/2017,TARGETED INTERVENTION,3C_ WOKING BOROUGH COU,2.60,EDUC VISITS/HOLS/CAMPS/TOYS,AUTOMOBILE PARKING LOTS AND GARAGES
15/09/2017,TARGETED INTERVENTION,STARBUCKS,8.65,EDUC VISITS/HOLS/CAMPS/TOYS,"EATING PLACES, RESTAURANTS"
15/09/2017,TARGETED INTERVENTION,SAINSBURYS 0686,3.45,EDUC VISITS/HOLS/CAMPS/TOYS,"GROCERY STORES, SUPERMARKETS"
15/09/2017,TARGETED INTERVENTION,KITKABIN LTD,16.00,EDUC VISITS/HOLS/CAMPS/TOYS,SPORTING GOODS STORES
15/09/2017,HILLSIDE,WILKO RETAIL LIMIT,8.40,DAY TO DAY MAINTENANCE,HOUSEHOLD APPLIANCE STORES
15/09/2017,ASYLUM SEEKERS 18+,MIKE DAVIES TRANSPORT,70.00,TRANSPORT SOCIAL CARE-TAXI,LIMOUSINES AND TAXICABS
15/09/2017,LEAVING CARE PACKAGES,GRO HM PASSPORT OFFICE,9.25,FEES,GOVERNMENT SERVICES-NOT ELSEWHERE CLASSIFIED
15/09/2017,NW CARE - CP & COURT LAC,WORLDSTORES,159.47,FURNITURE,HOUSEHOLD APPLIANCE STORES
15/09/2017,BURBANK COMMUNITY HOME,COSTA COFFEE 43037185,6.60,REFRESHMENT COSTS,FAST FOOD RESTAURANTS
15/09/2017,BURBANK COMMUNITY HOME,3C_ WOKING BOROUGH COU,1.30,EDUC VISITS/HOLS/CAMPS/TOYS,AUTOMOBILE PARKING LOTS AND GARAGES
15/09/2017,BURBANK COMMUNITY HOME,SPORTSDIRECT 174,19.99,"CLOTHING, UNIFORM AND LAUNDRY",SPORTING GOODS STORES
15/09/2017,HILLSIDE,SAINSBURYS 0675,3.00,PURCHASE OF FOOD (RAW MATERIALS),"GROCERY STORES, SUPERMARKETS"
15/09/2017,HILLSIDE,SAINSBURYS 0675,96.67,PURCHASE OF FOOD (RAW MATERIALS),"GROCERY STORES, SUPERMARKETS"
15/09/2017,ACL CENTRAL EXPENDITURE,AMAZON.CO.UK,1.89,EQUIPMENT,BOOK STORES
15/09/2017,ACL CENTRAL EXPENDITURE,AMAZON.CO.UK,11.94,EQUIPMENT,BOOK STORES
15/09/2017,ACL CENTRAL EXPENDITURE,AMAZON.CO.UK,17.59,EQUIPMENT,BOOK STORES
15/09/2017,COUNTY HALL,ALSFORD TIMBER LTD,46.09,DAY TO DAY MAINTENANCE,"BUILDING MATERIALS, LUMBER STORES"
15/09/2017,RUTH HOUSE,SAINSBURYS TO YOU 0686,42.85,PURCHASE OF FOOD (RAW MATERIALS),"GROCERY STORES, SUPERMARKETS"
15/09/2017,RUTH HOUSE,SAINSBURYS TO YOU 0686,233.70,PURCHASE OF FOOD (RAW MATERIALS),"GROCERY STORES, SUPERMARKETS"
15/09/2017,CHEYNE WALK COMMUNITY HOME,AMAZON EU,35.21,FURNITURE,DIRECT MARKETING-OTHER DIRECT MARKETERS/NOT ELSEW.
15/09/2017,FAMILIES EPSOM AND EWELL,SAINSBURYS 0652,12.25,REFRESHMENT COSTS,"GROCERY STORES, SUPERMARKETS"
15/09/2017,HERITAGE ENTERPRISE (SCAU),AMAZON UK MARKETPLACE,159.92,EQUIPMENT,BOOK STORES
15/09/2017,TRANSPORT,AMAZON.CO.UK,49.90,FURNITURE,BOOK STORES
15/09/2017,SOLD ESTATES MANAGEMENT,CROWBOROUGH COACHW,422.88,VEHICLE REPAIRS AND MAINTENANCE,AUTOMOTIVE SERVICE SHOPS
15/09/2017,ACL CENTRAL EXPENDITURE,AMAZON UK MARKETPLACE,4.15,EQUIPMENT,BOOK STORES
15/09/2017,ACL CENTRAL EXPENDITURE,AMAZON UK MARKETPLACE,12.59,EQUIPMENT,BOOK STORES
16/09/2017,EXTENDED HOPE,MCDONALDS,15.36,REFRESHMENT COSTS,"EATING PLACES, RESTAURANTS"
16/09/2017,EXTENDED HOPE,MCDONALDS,4.57,REFRESHMENT COSTS,"EATING PLACES, RESTAURANTS"
16/09/2017,LIBERTAS COMMUNITY HOME,SAINSBURYS TO YOU 0652,70.34,PURCHASE OF FOOD (RAW MATERIALS),"GROCERY STORES, SUPERMARKETS"
16/09/2017,PRISON CAPITATION                       ,AMZ HARRIBELLA.UK.LTD,-20.48,LIBRARY RESOURCES,MISCELLANEOUS AND SPECIALTY RETAIL STORES
16/09/2017,PRISON CAPITATION                       ,AMZ AMAZON.CO.UK,-11.98,LIBRARY RESOURCES,DIRECT MARKETING-OTHER DIRECT MARKETERS/NOT ELSEW.
16/09/2017,FAIRCROFT COMMUNITY HOME,DEBENHAMS,33.65,"CLOTHING, UNIFORM AND LAUNDRY",DEPARTMENT STORES
16/09/2017,FAIRCROFT COMMUNITY HOME,3C_ WOKING BOROUGH COU,1.30,MISCELLANEOUS STAFF TRAVEL,AUTOMOBILE PARKING LOTS AND GARAGES
16/09/2017,HOLLAND CLOSE RESIDENTIAL HOME,TESCO-STORES 6647,142.33,PURCHASE OF FOOD (RAW MATERIALS),"GROCERY STORES, SUPERMARKETS"
16/09/2017,SPLASH PROJECT,AMAZON UK MARKETPLACE,80.82,EDUC VISITS/HOLS/CAMPS/TOYS,BOOK STORES
16/09/2017,SPLASH PROJECT,AMAZON UK MARKETPLACE,77.44,EDUC VISITS/HOLS/CAMPS/TOYS,BOOK STORES
16/09/2017,EXTENDED HOPE,SAINSBURYS SACAT 0683,9.00,EQUIPMENT,"GROCERY STORES, SUPERMARKETS"
16/09/2017,EXTENDED HOPE,ARGOS KILN LANE IN,39.99,EQUIPMENT,DISCOUNT STORES
16/09/2017,EXTENDED HOPE,SPORTSDIRECT 53,7.99,"CLOTHING, UNIFORM AND LAUNDRY",SPORTING GOODS STORES
16/09/2017,7 TANNERY LANE GOSDEN COMMON BRAMLEY,WWW.JOHNLEWIS.COM,189.00,EQUIPMENT,DEPARTMENT STORES
16/09/2017,BURBANK COMMUNITY HOME,"CENTER PARCS, MOTO","-1,131.00",EDUC VISITS/HOLS/CAMPS/TOYS,"LODGING-HOTELS,MOTELS,RESORTS-NOT CLASSIFIED"
16/09/2017,CHEYNE WALK COMMUNITY HOME,AMAZON PRIME,7.99,EQUIPMENT,DIRECT MARKETING-CONTINUITY/SUBSCRIPTION MERCHANTS
16/09/2017,HILLSIDE,WILKO RETAIL LIMIT,17.05,EQUIPMENT,HOUSEHOLD APPLIANCE STORES
16/09/2017,HILLSIDE,TESCO STORE 3149,27.76,PURCHASE OF FOOD (RAW MATERIALS),"GROCERY STORES, SUPERMARKETS"
16/09/2017,HILLSIDE,TESCO STORE 3149,291.34,PURCHASE OF FOOD (RAW MATERIALS),"GROCERY STORES, SUPERMARKETS"
16/09/2017,FAIRCROFT COMMUNITY HOME,SAINSBURYS SACAT 0687,11.50,EQUIPMENT,"GROCERY STORES, SUPERMARKETS"
16/09/2017,FAIRCROFT COMMUNITY HOME,SAINSBURYS PFS0473,10.00,3RD PARTY PAYMENTS PRIVATE INDIV,SERVICE STATIONS WITH OR WITHOUT ANCILLARY SERVICE
16/09/2017,FAIRCROFT COMMUNITY HOME,SAINSBURYS PFS0473,4.05,PURCHASE OF FOOD (RAW MATERIALS),SERVICE STATIONS WITH OR WITHOUT ANCILLARY SERVICE
16/09/2017,FAIRCROFT COMMUNITY HOME,NEW LOOK 1792,49.94,"CLOTHING, UNIFORM AND LAUNDRY",WOMEN'S READY TO WEAR STORES
16/09/2017,FAIRCROFT COMMUNITY HOME,FREEDOM LEISURE,22.80,EDUC VISITS/HOLS/CAMPS/TOYS,GOVERNMENT SERVICES-NOT ELSEWHERE CLASSIFIED
16/09/2017,NW CARE - CP & COURT LAC,BP MERROW CONVENIENCE,26.45,PURCHASE OF FOOD (RAW MATERIALS),SERVICE STATIONS WITH OR WITHOUT ANCILLARY SERVICE
17/09/2017,WOODLANDS COMMUNITY HOME,AMAZON.CO.UK,27.51,EDUC VISITS/HOLS/CAMPS/TOYS,BOOK STORES
17/09/2017,AD OPERATIONS HIGHWAYS AND COUNTRYSIDE,AMAZON.CO.UK,9.04,EQUIPMENT,BOOK STORES
17/09/2017,HILLSIDE,ESSO FRIMLEY RD SSTN,10.50,PURCHASE OF FOOD (RAW MATERIALS),SERVICE STATIONS WITH OR WITHOUT ANCILLARY SERVICE
17/09/2017,ACL CENTRAL EXPENDITURE,AMAZON UK MARKETPLACE,45.35,EQUIPMENT,BOOK STORES
17/09/2017,CORE ACTIVITY                           ,MAILCHIMP    MONTHLY,22.65,COMPUTER SOFTWARE,DIRECT MARKETING-CONTINUITY/SUBSCRIPTION MERCHANTS
17/09/2017,WOODLANDS COMMUNITY HOME,AMAZON UK MARKETPLACE,29.24,EDUC VISITS/HOLS/CAMPS/TOYS,BOOK STORES
17/09/2017,SOLD DAY TO DAY OPERATIONS,WICKES,56.49,EQUIPMENT,HOME SUPPLY WAREHOUSE STORES
17/09/2017,EXTENDED HOPE,CARVERY EXPRESS,6.25,REFRESHMENT COSTS,FAST FOOD RESTAURANTS
17/09/2017,EXTENDED HOPE,GLL BANSTEAD SPORTS CE,6.55,EDUC VISITS/HOLS/CAMPS/TOYS,PROFESSIONAL SERVICES-NOT ELSEWHERE CLASSIFIED
17/09/2017,EXTENDED HOPE,MINT LEAVES,8.95,REFRESHMENT COSTS,"EATING PLACES, RESTAURANTS"
17/09/2017,RIGHTS OF WAY 'STRUCTURES CAPITAL',AMAZON UK MARKETPLACE,35.98,CE02 FURNITURE AND EQUIPMENT,BOOK STORES
17/09/2017,BURBANK COMMUNITY HOME,BEEFEATER40011205,17.98,REFRESHMENT COSTS,"EATING PLACES, RESTAURANTS"
17/09/2017,FAIRCROFT COMMUNITY HOME,SAINSBURYS SACAT 0687,18.05,PURCHASE OF FOOD (RAW MATERIALS),"GROCERY STORES, SUPERMARKETS"
17/09/2017,E&I - LOVE FOOD HATE WASTE              ,GOOGLE  ADWS2060179426,500.00,PUBLICITY,DIRECT MARKETING-CONTINUITY/SUBSCRIPTION MERCHANTS
17/09/2017,EXTENDED HOPE,MCDONALDS,12.62,REFRESHMENT COSTS,FAST FOOD RESTAURANTS
17/09/2017,EXTENDED HOPE,MCDONALDS,3.33,REFRESHMENT COSTS,FAST FOOD RESTAURANTS
17/09/2017,ACL CENTRAL EXPENDITURE,AMAZON UK MARKETPLACE,11.08,EQUIPMENT,BOOK STORES
17/09/2017,NW CARE - CP & COURT LAC,SURREY CAR RENTALS LIM,267.00,NON-STAFF RELATED TRANSPORT COSTS,AUTOMOBILE RENTAL AGENCY-NOT ELSEWHERE CLASSIFIED
17/09/2017,CHILDREN'S EMERGENCY DUTY TEAM,SURREY CC CARD PAY,50.00,TRANSPORT SOCIAL CARE-TAXI,COMPUTER NETWORK/INFORMATION SERVICES
18/09/2017,SE CARE - CP & COURT LAC,BUYITDIRECT CO UK,218.19,FURNITURE,COMPUTER SOFTWARE STORES
18/09/2017,STAFF OFFICE,BRITISH A,519.33,MISCELLANEOUS STAFF TRAVEL,BRITISH A
18/09/2017,TARGETED INTERVENTION,NBX CRAGGY ISLAND,60.00,EDUC VISITS/HOLS/CAMPS/TOYS,RECREATION SERVICES (NOT ELSEWHERE CLASSIFIED)
18/09/2017,NW CARE - CP & COURT LAC,BP POPHAM CONNECT,64.77,VEHICLE RUNNING COSTS,SERVICE STATIONS WITH OR WITHOUT ANCILLARY SERVICE
18/09/2017,FAMILIES RUNNYMEDE,HAMPSHIRE COUNTY S,150.00,EDUC VISITS/HOLS/CAMPS/TOYS,"ORGANIZATIONS, CHARITABLE AND SOCIAL SERVICES"
18/09/2017,HOLLAND CLOSE RESIDENTIAL HOME,SEASIDE KEBAB,39.50,REFRESHMENT COSTS,FAST FOOD RESTAURANTS
18/09/2017,NW CARE - CP & COURT LAC,SAINSBURYS SACAT 0652,3.40,REFRESHMENT COSTS,"GROCERY STORES, SUPERMARKETS"
18/09/2017,NW CARE - CP & COURT LAC,ARGOS BURPHAM,35.99,EDUC VISITS/HOLS/CAMPS/TOYS,DISCOUNT STORES
18/09/2017,NW CARE - CP & COURT LAC,ARGOS LTD,19.99,EDUC VISITS/HOLS/CAMPS/TOYS,DISCOUNT STORES
18/09/2017,SPELTHORNE CMHRS CARE,HMCTS-SURREY125,75.00,FEES,FINES
18/09/2017,HILLSIDE,SAINSBURYS 0784,5.00,PURCHASE OF FOOD (RAW MATERIALS),"GROCERY STORES, SUPERMARKETS"
18/09/2017,HILLSIDE,SAINSBURYS PFS 0103,30.01,NON-STAFF RELATED TRANSPORT COSTS,SERVICE STATIONS WITH OR WITHOUT ANCILLARY SERVICE
18/09/2017,COVEHAM,SAINSBURYS TO YOU 0687,165.77,REFRESHMENT COSTS,"GROCERY STORES, SUPERMARKETS"
18/09/2017,HOLLAND CLOSE RESIDENTIAL HOME,METROBUS - REDHILL,5.00,STUDENT FARE CARD (STUDENTFARECARDRAIL),BUS LINES
18/09/2017,HOLLAND CLOSE RESIDENTIAL HOME,TEAM SPORT V/T,80.00,EDUC VISITS/HOLS/CAMPS/TOYS,"AMUSEMENT PARKS,CARNIVALS,CIRCUS,FORTUNE TELLERS"
18/09/2017,HOLLAND CLOSE RESIDENTIAL HOME,BRIGHTON & HOVE CITY C,6.00,VEHICLE RUNNING COSTS,AUTOMOBILE PARKING LOTS AND GARAGES
18/09/2017,ACL CENTRAL EXPENDITURE,TESCO STORE 3539,-.72,REFRESHMENT COSTS,"GROCERY STORES, SUPERMARKETS"
18/09/2017,HOLLAND CLOSE RESIDENTIAL HOME,RINGGO,10.20,MISCELLANEOUS STAFF TRAVEL,GOVERNMENT SERVICES-NOT ELSEWHERE CLASSIFIED
18/09/2017,HILLSIDE,SAINSBURYS SACAT 0784,4.50,PURCHASE OF FOOD (RAW MATERIALS),"GROCERY STORES, SUPERMARKETS"
18/09/2017,SW NIL RECOURSE TO PUBLIC FUNDS CARE,MANOR HOUSE HOTEL,562.00,INDEPENDENT LIVING PLACEMENTS,"LODGING-HOTELS,MOTELS,RESORTS-NOT CLASSIFIED"
18/09/2017,TARGETED INTERVENTION,BLETCHINGLEY GOLF CLUB,6.25,EDUC VISITS/HOLS/CAMPS/TOYS,SPORTING GOODS STORES
18/09/2017,LIBERTAS COMMUNITY HOME,SAINSBURYS 0652,34.30,PURCHASE OF FOOD (RAW MATERIALS),"GROCERY STORES, SUPERMARKETS"
18/09/2017,LIBERTAS COMMUNITY HOME,SAINSBURYS 0652,121.26,PURCHASE OF FOOD (RAW MATERIALS),"GROCERY STORES, SUPERMARKETS"
18/09/2017,LIBERTAS COMMUNITY HOME,SAINSBURYS 0652,6.10,EQUIPMENT,"GROCERY STORES, SUPERMARKETS"
18/09/2017,LIBERTAS COMMUNITY HOME,B & Q 1029,-18.48,EQUIPMENT,"BUILDING MATERIALS, LUMBER STORES"
18/09/2017,COMMUNICATIONS TEAM,GUARDIAN NEWS AND MEDI,51.96,SUBSCRIPTIONS,"BOOKS,PERIODICALS AND NEWSPAPERS"
18/09/2017,FAMILIES MOLE VALLEY,TESCO STORES 6999,6.09,PURCHASE OF FOOD (RAW MATERIALS),"GROCERY STORES, SUPERMARKETS"
18/09/2017,LIBERTAS COMMUNITY HOME,WWW.EUREKADIRECT.CO.UK,35.88,MEDICAL EXPENSES,DENTAL/LAB/MED/OPHTHALMIC HOSP EQUIP & SUPPLIES
18/09/2017,ACL CENTRAL EXPENDITURE,TESCO STORE 3149,118.90,REFRESHMENT COSTS,"GROCERY STORES, SUPERMARKETS"
18/09/2017,ACL CENTRAL EXPENDITURE,TESCO STORE 2160,69.50,REFRESHMENT COSTS,"GROCERY STORES, SUPERMARKETS"
18/09/2017,ACL CENTRAL EXPENDITURE,TESCO STORE 2160,-.24,REFRESHMENT COSTS,"GROCERY STORES, SUPERMARKETS"
18/09/2017,NW CARE - CP & COURT LAC,RYMAN 1138,14.99,EQUIPMENT,"OFFICE, SCHOOL SUPPLY, AND STATIONERY STORES"
18/09/2017,MALLOW CRESCENT,SAINSBURYS TO YOU 0652,19.75,PURCHASE OF FOOD (RAW MATERIALS),"GROCERY STORES, SUPERMARKETS"
18/09/2017,MALLOW CRESCENT,SAINSBURYS TO YOU 0652,95.56,PURCHASE OF FOOD (RAW MATERIALS),"GROCERY STORES, SUPERMARKETS"
18/09/2017,FAMILIES SPELTHORNE,TESCO STORES-2047,8.40,REFRESHMENT COSTS,"GROCERY STORES, SUPERMARKETS"
18/09/2017,WOODLANDS COMMUNITY HOME,SAINSBURYS SACAT 0167,13.00,EQUIPMENT,"GROCERY STORES, SUPERMARKETS"
18/09/2017,FAIRCROFT COMMUNITY HOME,TESCO STORE 2812,119.41,PURCHASE OF FOOD (RAW MATERIALS),"GROCERY STORES, SUPERMARKETS"
18/09/2017,PROPERTY OPERATIONS TEAM,WICKES,14.97,PURCHASE OF BUILDING MATERIALS,HOME SUPPLY WAREHOUSE STORES
18/09/2017,PROPERTY OPERATIONS TEAM,SCREWFIX GUILDFORD,54.96,PURCHASE OF BUILDING MATERIALS,"BUILDING MATERIALS, LUMBER STORES"
18/09/2017,PROPERTY OPERATIONS TEAM,SCREWFIX,71.45,PURCHASE OF BUILDING MATERIALS,"BUILDING MATERIALS, LUMBER STORES"
18/09/2017,WOODLANDS COMMUNITY HOME,AMAZON UK MARKETPLACE,14.23,LIBRARY RESOURCES,BOOK STORES
18/09/2017,WOODLANDS COMMUNITY HOME,AMAZON UK MARKETPLACE,16.88,EDUC VISITS/HOLS/CAMPS/TOYS,BOOK STORES
18/09/2017,WOODLANDS COMMUNITY HOME,AMAZON UK MARKETPLACE,9.27,EDUC VISITS/HOLS/CAMPS/TOYS,BOOK STORES
18/09/2017,COVEHAM,SAINSBURYS 0687,22.35,REFRESHMENT COSTS,"GROCERY STORES, SUPERMARKETS"
18/09/2017,TRANSPORT,AMAZON UK MARKETPLACE,9.98,COMPUTER HARDWARE,BOOK STORES
18/09/2017,"SW REF, ASS & INT SERVICE - HUB 2",TRAVELODGE,110.50,3RD PARTY PAYMENTS PRIVATE INDIV,TRAVELODGE
18/09/2017,MALLOW CRESCENT,SAINSBURYS TO YOU 0652,7.20,PURCHASE OF FOOD (RAW MATERIALS),"GROCERY STORES, SUPERMARKETS"
18/09/2017,MALLOW CRESCENT,SAINSBURYS TO YOU 0652,120.35,PURCHASE OF FOOD (RAW MATERIALS),"GROCERY STORES, SUPERMARKETS"
18/09/2017,IMT CRITICAL ENVIRONMENTS,MILK@MORE ONLINE,31.66,REFRESHMENT COSTS,"MISC FOOD STORE-CONVENIENCE,MRKT,SPLTY,VENDNG MACS"
18/09/2017,IMT CRITICAL ENVIRONMENTS,MILK@MORE ONLINE,27.98,REFRESHMENT COSTS,"MISC FOOD STORE-CONVENIENCE,MRKT,SPLTY,VENDNG MACS"
18/09/2017,HILLSIDE,LIDL UK,.75,PURCHASE OF FOOD (RAW MATERIALS),"GROCERY STORES, SUPERMARKETS"
18/09/2017,HILLSIDE,LIDL UK,21.51,PURCHASE OF FOOD (RAW MATERIALS),"GROCERY STORES, SUPERMARKETS"
18/09/2017,HERITAGE,EB  NEW FOREST KNOWLED,21.83,TRAINING EXPENSES EXTERNAL GENERAL,BUSINESS SERVICES-NOT ELSEWHERE CLASSIFIED
18/09/2017,HOPE SERVICE - WEST,SAINSBURYS 0683,80.65,PURCHASE OF FOOD (RAW MATERIALS),"GROCERY STORES, SUPERMARKETS"
18/09/2017,HOPE SERVICE - WEST,SAINSBURYS TO YOU 0686,76.24,PURCHASE OF FOOD (RAW MATERIALS),"GROCERY STORES, SUPERMARKETS"
18/09/2017,YSS YOUTH CENTRE IMPROVEMENTS,CURRYS T/SALES,239.98,EQUIPMENT,ELECTRONIC SALES
18/09/2017,ACL CENTRAL EXPENDITURE,AMAZON UK MARKETPLACE,24.73,EQUIPMENT,BOOK STORES
18/09/2017,POLICY AND PERFORMANCE TEAM,AMAZON EU,18.99,EQUIPMENT,DIRECT MARKETING-OTHER DIRECT MARKETERS/NOT ELSEW.
18/09/2017,POLICY AND PERFORMANCE TEAM,AMAZON UK MARKETPLACE,13.48,EQUIPMENT,BOOK STORES
18/09/2017,MEMBERS EXPENSES (INCL ALLOWANCES),ATLANTIS EUROPEAN LTD,460.00,STATIONERY,"COMMERCIAL ART, GRAPHICS, PHOTOGRAPHY"
18/09/2017,SURREY ARTS,ABRSM,240.00,TRAINING EXPENSES EXTERNAL GENERAL,"ORGANIZATIONS, CHARITABLE AND SOCIAL SERVICES"
18/09/2017,ACL CENTRAL EXPENDITURE,WWW.ARTDISCOUNT.CO.UK,82.50,EQUIPMENT,STATIONERY/OFFICE SUPPLIES/PRINTING & WRITING PAP.
18/09/2017,TRANSPORT,AMAZON UK MARKETPLACE,57.98,FURNITURE,BOOK STORES
18/09/2017,NW CARE - CP & COURT LAC,"CENTER PARCS, INHOUSE",117.30,EDUC VISITS/HOLS/CAMPS/TOYS,"LODGING-HOTELS,MOTELS,RESORTS-NOT CLASSIFIED"
18/09/2017,NW CARE - CP & COURT LAC,"CENTER PARCS, F&B",37.80,PURCHASE OF FOOD (RAW MATERIALS),"LODGING-HOTELS,MOTELS,RESORTS-NOT CLASSIFIED"
18/09/2017,NW CARE - CP & COURT LAC,"CENTER PARCS, F&B",47.90,PURCHASE OF FOOD (RAW MATERIALS),"LODGING-HOTELS,MOTELS,RESORTS-NOT CLASSIFIED"
18/09/2017,GODALMING YC,SAINSBURYS SACAT 0670,6.70,PURCHASE OF FOOD (RAW MATERIALS),"GROCERY STORES, SUPERMARKETS"
18/09/2017,FAMILIES TANDRIDGE,WAITROSE 838,3.50,PURCHASE OF FOOD (RAW MATERIALS),"GROCERY STORES, SUPERMARKETS"
18/09/2017,COUNTY HALL,CATER-KWIK LTD,368.34,EQUIPMENT,"COMMERCIAL EQUIPMENT, NOT ELSEWHERE CLASSIFIED"
18/09/2017,MALLOW CRESCENT,TESCO STORE 2590,4.55,PURCHASE OF FOOD (RAW MATERIALS),"GROCERY STORES, SUPERMARKETS"
18/09/2017,MALLOW CRESCENT,TESCO STORE 2590,92.69,PURCHASE OF FOOD (RAW MATERIALS),"GROCERY STORES, SUPERMARKETS"
18/09/2017,SERVICE DELIVERY SENIOR MANAGEMENT,POST OFFICE COUNTER,5.68,POSTAGE AND COURIER CHARGES,POSTAL SERVICES-GOVERNMENT ONLY
18/09/2017,FAMILIES GUILDFORD,TESCO STORE 2590,9.20,CURRICULUM CONSUMABLES,"GROCERY STORES, SUPERMARKETS"
18/09/2017,CYWS COMMISSIONING,WAITROSE 589,.85,PURCHASE OF FOOD (RAW MATERIALS),"GROCERY STORES, SUPERMARKETS"
18/09/2017,FAMILIES REIGATE AND BANSTREAD,POUNDLAND LTD 1244,5.05,REFRESHMENT COSTS,DISCOUNT STORES
18/09/2017,CHEYNE WALK COMMUNITY HOME,AMZ IDEA-STATION,-13.89,EQUIPMENT,MISCELLANEOUS AND SPECIALTY RETAIL STORES
18/09/2017,NW CARE - CP & COURT LAC,SAINSBURYS SACAT 0652,43.00,EDUC VISITS/HOLS/CAMPS/TOYS,"GROCERY STORES, SUPERMARKETS"
18/09/2017,NW CARE - CP & COURT LAC,SAINSBURYS SACAT 0652,20.00,EDUC VISITS/HOLS/CAMPS/TOYS,"GROCERY STORES, SUPERMARKETS"
18/09/2017,NW CARE - CP & COURT LAC,SAINSBURYS SACAT 0652,7.98,EDUC VISITS/HOLS/CAMPS/TOYS,"GROCERY STORES, SUPERMARKETS"
19/09/2017,PARKING TEAM,MEON LTD,215.64,EQUIPMENT,BUSINESS SERVICES-NOT ELSEWHERE CLASSIFIED
19/09/2017,WOODLANDS COMMUNITY HOME,CREAMS CAFE,42.95,PURCHASE OF FOOD (RAW MATERIALS),"EATING PLACES, RESTAURANTS"
19/09/2017,SOLD DAY TO DAY OPERATIONS,AMAZON.CO.UK,3.69,EQUIPMENT,BOOK STORES
19/09/2017,ASSET MANAGEMENT PLAN,ARGOS READING CALC,419.00,COMPUTER SERVICES,DISCOUNT STORES
19/09/2017,TARGETED INTERVENTION,WOKING SNOOKER CENTRE,5.63,EDUC VISITS/HOLS/CAMPS/TOYS,RECREATIONAL AND SPORTING CAMPS
19/09/2017,NW CARE - LAC,PREMIER INN,58.00,CHILDREN ACT SEC 17 PAYMENTS,PREMIER INN
19/09/2017,LANGDOWN STAFF COST,BUTLINS HOLIDAYS,401.00,3RD PARTY PAYMENTS PRIVATE INDIV,"LODGING-HOTELS,MOTELS,RESORTS-NOT CLASSIFIED"
19/09/2017,CHEYNE WALK COMMUNITY HOME,AMAZON.CO.UK,3.79,EQUIPMENT,BOOK STORES
19/09/2017,SOLD CURRICULUM PROGRAMME DELIVERY,HOTEL ON BOOKING.COM,35.00,TRAINING EXPENSES EXTERNAL GENERAL,"LODGING-HOTELS,MOTELS,RESORTS-NOT CLASSIFIED"
19/09/2017,RBDM - GENERAL,EUROFFICE.CO.UK,52.80,EQUIPMENT,"OFFICE, SCHOOL SUPPLY, AND STATIONERY STORES"
19/09/2017,RBDM - GENERAL,WWW.VIKING-DIRECT.CO.U,9.44,EQUIPMENT,STATIONERY/OFFICE SUPPLIES/PRINTING & WRITING PAP.
19/09/2017,ACL CENTRAL EXPENDITURE,CURRYS ONLINE,759.98,EQUIPMENT,ELECTRONIC SALES
19/09/2017,DOWNLANDS COUNTRYSIDE PROJECT,WH SMITH,23.65,STATIONERY,NEWS DEALERS AND NEWSSTANDS
19/09/2017,EXTENDED HOPE,SAINSBURYS 0652,21.91,FURNITURE,"GROCERY STORES, SUPERMARKETS"
19/09/2017,EXTENDED HOPE,TESCO STORE 2590,5.93,PURCHASE OF FOOD (RAW MATERIALS),"GROCERY STORES, SUPERMARKETS"
19/09/2017,EXTENDED HOPE,TESCO STORE 2590,76.74,PURCHASE OF FOOD (RAW MATERIALS),"GROCERY STORES, SUPERMARKETS"
19/09/2017,WOODLANDS COMMUNITY HOME,SAINSBURYS TO YOU 0686,18.45,PURCHASE OF FOOD (RAW MATERIALS),"GROCERY STORES, SUPERMARKETS"
19/09/2017,WOODLANDS COMMUNITY HOME,SAINSBURYS TO YOU 0686,231.74,PURCHASE OF FOOD (RAW MATERIALS),"GROCERY STORES, SUPERMARKETS"
19/09/2017,WOODLANDS COMMUNITY HOME,SAINSBURYS TO YOU 0686,-8.00,PURCHASE OF FOOD (RAW MATERIALS),"GROCERY STORES, SUPERMARKETS"
19/09/2017,BURBANK COMMUNITY HOME,COSTA COFFEE 43037185,6.35,REFRESHMENT COSTS,FAST FOOD RESTAURANTS
19/09/2017,WORKPLACE COMMERCIAL TEAM,AMAZON.CO.UK,57.73,EQUIPMENT,BOOK STORES
19/09/2017,FIRE & RESCUE COMMUNITY SAFETY,WEBCOM/ENABLE,28.80,PUBLICITY,COMPUTER MAIN./REPAIR/SERVICES NOT ELSEWHERE CLASS
19/09/2017,PROPERTY OPERATIONS TEAM,GUILDFORD LOCK & SAFE,172.00,PURCHASE OF BUILDING MATERIALS,HARDWARE EQUIPMENT AND SUPPLIES
19/09/2017,"NE REF, ASS & INT SERVICE - HUB 1",UKBA7627539433,"3,199.00",FEES,GOVERNMENT SERVICES-NOT ELSEWHERE CLASSIFIED
19/09/2017,WOODLANDS COMMUNITY HOME,AMAZON UK MARKETPLACE,8.45,EDUC VISITS/HOLS/CAMPS/TOYS,BOOK STORES
19/09/2017,WOODLANDS COMMUNITY HOME,PHOTOBOX LIMITED,32.67,EQUIPMENT,MISCELLANEOUS PUBLISHING AND PRINTING
19/09/2017,LOWER MOLE COUNTRYSIDE PROJECT,TESCO STORES 6320,12.29,POSTAGE AND COURIER CHARGES,"GROCERY STORES, SUPERMARKETS"
19/09/2017,WOODLANDS COMMUNITY HOME,SAINSBURYS SACAT 0686,48.75,PURCHASE OF FOOD (RAW MATERIALS),"GROCERY STORES, SUPERMARKETS"
19/09/2017,WOODLANDS COMMUNITY HOME,SAINSBURYS SACAT 0686,26.25,EQUIPMENT,"GROCERY STORES, SUPERMARKETS"
19/09/2017,WOODLANDS COMMUNITY HOME,TESCO STORES 3149,9.25,EQUIPMENT,"GROCERY STORES, SUPERMARKETS"
19/09/2017,SOLD CATERING,TESCO STORE 2812,21.87,PURCHASE OF FOOD (RAW MATERIALS),"GROCERY STORES, SUPERMARKETS"
19/09/2017,TRANSPORT,AMAZON UK MARKETPLACE,174.99,OPERATIONAL FIRE EQUIPMENT,BOOK STORES
19/09/2017,SOLD ESTATES MANAGEMENT,B & Q 1018,74.29,EQUIPMENT,"BUILDING MATERIALS, LUMBER STORES"
19/09/2017,BURBANK COMMUNITY HOME,W M MORRISONS,184.93,PURCHASE OF FOOD (RAW MATERIALS),"GROCERY STORES, SUPERMARKETS"
19/09/2017,BURBANK COMMUNITY HOME,W M MORRISONS,5.04,PURCHASE OF FOOD (RAW MATERIALS),"GROCERY STORES, SUPERMARKETS"
19/09/2017,RUTH HOUSE,AMAZON.CO.UK,7.98,EDUC VISITS/HOLS/CAMPS/TOYS,BOOK STORES
19/09/2017,TRAINING AND DEVELOPMENT,SERCO EPC,90.00,TRAINING EXPENSES EXTERNAL GENERAL,"COLLEGES, UNIV, PRO SCHOOLS, JUNIOR COLLEGES"
19/09/2017,TRAINING AND DEVELOPMENT,SERCO EPC,270.00,TRAINING EXPENSES EXTERNAL GENERAL,"COLLEGES, UNIV, PRO SCHOOLS, JUNIOR COLLEGES"
19/09/2017,TRAINING AND DEVELOPMENT,WWW.CFOASERVICES.CO.UK,792.00,SUBSISTENCE AND CONFERENCE EXPENSES,"ORGANIZATIONS, MEMBERSHIP-NOT ELSEWHERE CLASSIFIED"
19/09/2017,HILLSIDE,SAINSBURYS 0675,84.95,PURCHASE OF FOOD (RAW MATERIALS),"GROCERY STORES, SUPERMARKETS"
19/09/2017,WOODLANDS COMMUNITY HOME,VALENTINOS,28.99,"CLOTHING, UNIFORM AND LAUNDRY",MEN'S/WOMEN'S/CHILDREN'S UNIFORMS/COMMERCIAL CLOTH
19/09/2017,WOODLANDS COMMUNITY HOME,SAINSBURYS 0670,18.10,EQUIPMENT,"GROCERY STORES, SUPERMARKETS"
19/09/2017,WOODLANDS COMMUNITY HOME,SPECSAVERS 00326000WOK,45.00,EQUIPMENT,"OPTICIANS,OPTICAL GOODS & EYEGLASSES"
19/09/2017,WOODLANDS COMMUNITY HOME,CURRYS SUPERSTORE 2324,126.99,COMPUTER HARDWARE,ELECTRONIC SALES
19/09/2017,HOPE SERVICE - WEST,SAINSBURYS SACAT(4409),3.40,NEWSPAPER AND PERIODICALS,"GROCERY STORES, SUPERMARKETS"
19/09/2017,LIBERTAS COMMUNITY HOME,NEXT RETAIL LTD,142.05,"CLOTHING, UNIFORM AND LAUNDRY",FAMILY CLOTHING STORES
19/09/2017,CHEYNE WALK COMMUNITY HOME,AMAZON UK MARKETPLACE,17.82,EQUIPMENT,BOOK STORES
19/09/2017,YSS YOUTH CENTRE IMPROVEMENTS,APPLIANCEREPAIRS,69.60,DAY TO DAY MAINTENANCE,COMPUTER SOFTWARE STORES
19/09/2017,NW CARE - CP & COURT LAC,LAGOON BAR,40.52,REFRESHMENT COSTS,FAST FOOD RESTAURANTS
19/09/2017,NW CARE - CP & COURT LAC,LAGOON BAR,5.90,REFRESHMENT COSTS,FAST FOOD RESTAURANTS
19/09/2017,ROW VOLUNTEERS EAST                     ,CHOICE VEHICLE RENTALS,39.50,HIRE OF VEHICLES,AUTOMOBILE RENTAL AGENCY-NOT ELSEWHERE CLASSIFIED
19/09/2017,ACL CENTRAL EXPENDITURE,TESCO STORE 2160,79.00,REFRESHMENT COSTS,"GROCERY STORES, SUPERMARKETS"
19/09/2017,ACL CENTRAL EXPENDITURE,AMAZON.CO.UK,5.99,REFRESHMENT COSTS,BOOK STORES
19/09/2017,FAMILIES MOLE VALLEY,LIDL UK,10.60,PURCHASE OF FOOD (RAW MATERIALS),"GROCERY STORES, SUPERMARKETS"
19/09/2017,IMT SUPPORT FOR FIRE & RESCUE,AMAZON UK MARKETPLACE,22.99,COMPUTER HARDWARE,BOOK STORES
19/09/2017,SE CARE - CP & COURT LAC,ONLINECARPETS.COUK,148.12,FURNITURE,FLOOR COVERING STORES
19/09/2017,QUADRANT COURT WOKING,AMAZON UK MARKETPLACE,46.95,EQUIPMENT,BOOK STORES
19/09/2017,MALLOW CRESCENT,SAINSBURYS TO YOU 0652,19.60,PURCHASE OF FOOD (RAW MATERIALS),"GROCERY STORES, SUPERMARKETS"
19/09/2017,MALLOW CRESCENT,SAINSBURYS TO YOU 0652,105.84,PURCHASE OF FOOD (RAW MATERIALS),"GROCERY STORES, SUPERMARKETS"
19/09/2017,ROW VOLUNTEERS EAST                     ,ESSO MRH ROUNDABOUT,10.17,PETROL/DIESEL ALL OFF BUSINESS,SERVICE STATIONS WITH OR WITHOUT ANCILLARY SERVICE
19/09/2017,TARGETED INTERVENTION,AMF BOWLING,20.07,EDUC VISITS/HOLS/CAMPS/TOYS,"CLUBS-CNTRY,MBRSHIP(ATHLET,REC,SPRTS,PRIVATE GOLF"
19/09/2017,TARGETED INTERVENTION,SHELL ADDLESTONE,4.50,EDUC VISITS/HOLS/CAMPS/TOYS,SERVICE STATIONS WITH OR WITHOUT ANCILLARY SERVICE
19/09/2017,TARGETED INTERVENTION,TWO RIVERS CAR PK,1.20,EDUC VISITS/HOLS/CAMPS/TOYS,AUTOMOBILE PARKING LOTS AND GARAGES
19/09/2017,TARGETED INTERVENTION,TESCO STORE 2160,2.78,EDUC VISITS/HOLS/CAMPS/TOYS,"GROCERY STORES, SUPERMARKETS"
19/09/2017,TARGETED INTERVENTION,CINEWORLD CRA CP,5.60,EDUC VISITS/HOLS/CAMPS/TOYS,"THEATRICAL PRODUCERS(EXCL MOTION PIX),TICKET AGNCY"
19/09/2017,TARGETED INTERVENTION,TESCO STORE 2160,8.38,EDUC VISITS/HOLS/CAMPS/TOYS,"GROCERY STORES, SUPERMARKETS"
19/09/2017,FAMILIES REIGATE AND BANSTREAD,THE WORKS,58.05,EQUIPMENT,DISCOUNT STORES
19/09/2017,ACCESS 2 EDUCATION SE NON-MEDICAL,SURREY CC CARD PAY,50.00,SUBSISTENCE AND CONFERENCE EXPENSES,COMPUTER NETWORK/INFORMATION SERVICES
19/09/2017,HOLLAND CLOSE RESIDENTIAL HOME,CHOICE DISCOUNT STORES,10.47,CLEANING AND DOMESTIC SUPPLIES,FAMILY CLOTHING STORES
19/09/2017,HOLLAND CLOSE RESIDENTIAL HOME,POUNDLAND LTD 1244,5.00,EQUIPMENT,DISCOUNT STORES
19/09/2017,HOLLAND CLOSE RESIDENTIAL HOME,AD PHOTO LAB,172.00,PHOTOCOPIER MACHINES AND MATERIALS,"PHOTO DEVELOPING, PHOTOFINISHING LABORATORIES"
19/09/2017,ACL CENTRAL EXPENDITURE,WAITROSE 181,5.80,REFRESHMENT COSTS,"GROCERY STORES, SUPERMARKETS"
20/09/2017,TARGETED INTERVENTION,NBX CRAGGY ISLAND,60.00,EDUC VISITS/HOLS/CAMPS/TOYS,RECREATION SERVICES (NOT ELSEWHERE CLASSIFIED)
20/09/2017,NW CARE - CP & COURT LAC,BP THE BUCK F/STN,81.64,PURCHASE OF FOOD (RAW MATERIALS),SERVICE STATIONS WITH OR WITHOUT ANCILLARY SERVICE
20/09/2017,SE CARE - LAC,PREMIER INN,86.98,OTHER COMMUNITY CARE VOL,PREMIER INN
20/09/2017,TARGETED INTERVENTION,NBX CRAGGY ISLAND,60.00,EDUC VISITS/HOLS/CAMPS/TOYS,RECREATION SERVICES (NOT ELSEWHERE CLASSIFIED)
20/09/2017,COMMUNICATIONS TEAM,ISSUU,22.11,SUBSCRIPTIONS,"COMPUTERS, COMPUTER PERIPHERAL EQUIPMENT, SOFTWARE"
20/09/2017,CHMHS RAP TEAM,48HOURSLOGO.COM,134.96,EDUC VISITS/HOLS/CAMPS/TOYS,"COMP PROGRAMING,DATA PRCSNG,INTGRTD SYS DSGN SRVS"
20/09/2017,NW CARE - CP & COURT LAC,TNG LONGLEAT,28.98,EDUC VISITS/HOLS/CAMPS/TOYS,"GIFT, CARD, NOVELTY AND SOUVENIR SHOPS"
20/09/2017,NW CARE - CP & COURT LAC,LAGOON BAR,10.90,REFRESHMENT COSTS,FAST FOOD RESTAURANTS
20/09/2017,NW CARE - CP & COURT LAC,LAGOON BAR,10.23,REFRESHMENT COSTS,FAST FOOD RESTAURANTS
20/09/2017,NW CARE - CP & COURT LAC,LAGOON BAR,8.54,PURCHASE OF FOOD (RAW MATERIALS),FAST FOOD RESTAURANTS
20/09/2017,HILLSIDE,SAINSBURYS 0675,50.85,PURCHASE OF FOOD (RAW MATERIALS),"GROCERY STORES, SUPERMARKETS"
20/09/2017,HILLSIDE,SAINSBURYS 0675,14.55,EQUIPMENT,"GROCERY STORES, SUPERMARKETS"
20/09/2017,HILLSIDE,SAINSBURYS 0675,5.00,PURCHASE OF FOOD (RAW MATERIALS),"GROCERY STORES, SUPERMARKETS"
20/09/2017,HILLSIDE,SAINSBURYS PFS 0103,52.52,NON-STAFF RELATED TRANSPORT COSTS,SERVICE STATIONS WITH OR WITHOUT ANCILLARY SERVICE
20/09/2017,HOPE SERVICE - WEST,SAINSBURYS SACAT 4116,10.84,PURCHASE OF FOOD (RAW MATERIALS),"GROCERY STORES, SUPERMARKETS"
20/09/2017,LOCAL DELIVERY GROUP,AMAZON UK MARKETPLACE,21.70,EQUIPMENT,BOOK STORES
20/09/2017,ARUNDEL,ASDA SUPERSTORE,34.50,CLEANING MATERIALS,"GROCERY STORES, SUPERMARKETS"
20/09/2017,ARUNDEL,ASDA SUPERSTORE,7.50,REFRESHMENT COSTS,"GROCERY STORES, SUPERMARKETS"
20/09/2017,INNOVATION FUND,AMAZON UK MARKETPLACE,141.73,EQUIPMENT,BOOK STORES
20/09/2017,PRISON CAPITATION                       ,THE READING AGENCY,288.00,CURRIC BOOKS,"TYPESETTING, PLATE MAKING & RELATED SERVICES"
20/09/2017,NW CARE - LAC,ALLUNITED28604705,350.00,TRANSPORT SOCIAL CARE-TAXI,COMPUTER SOFTWARE STORES
20/09/2017,HOPE SERVICE - WEST,WHITE SPIDER,15.00,CURRIC BOOKS,"CLUBS-CNTRY,MBRSHIP(ATHLET,REC,SPRTS,PRIVATE GOLF"
20/09/2017,PROPERTY OPERATIONS TEAM,B & Q 1029,4.57,PURCHASE OF BUILDING MATERIALS,"BUILDING MATERIALS, LUMBER STORES"
20/09/2017,PROPERTY OPERATIONS TEAM,SCREWFIX GUILDFORD,56.15,PURCHASE OF BUILDING MATERIALS,"BUILDING MATERIALS, LUMBER STORES"
20/09/2017,ASSET PLANNING GROUP,IPF,867.00,SUBSCRIPTIONS,"ACCOUNTING, AUDITING AND BOOKKEEPING SERVICES"
20/09/2017,ASSET PLANNING GROUP,IPF,867.00,SUBSCRIPTIONS,"ACCOUNTING, AUDITING AND BOOKKEEPING SERVICES"
20/09/2017,FAIRCROFT COMMUNITY HOME,AO RETAIL LIMITED,-200.99,EQUIPMENT,HOUSEHOLD APPLIANCE STORES
20/09/2017,FAIRCROFT COMMUNITY HOME,AO RETAIL LIMITED,-151.98,EQUIPMENT,HOUSEHOLD APPLIANCE STORES
20/09/2017,CORE ACTIVITY                           ,HOMEBASE LTD 084,36.08,EQUIPMENT,"BUILDING MATERIALS, LUMBER STORES"
20/09/2017,LOCAL ASSISTANCE SCHEME,AMAZON UK MARKETPLACE,55.99,FURNITURE,BOOK STORES
20/09/2017,WOODLANDS COMMUNITY HOME,AMAZON UK MARKETPLACE,3.99,EDUC VISITS/HOLS/CAMPS/TOYS,BOOK STORES
20/09/2017,HILLSIDE,SELDRAM SUPPLIES (CAMB,43.74,CLEANING AND DOMESTIC SUPPLIES,"BUILDING MATERIALS, LUMBER STORES"
20/09/2017,BURBANK COMMUNITY HOME,COSTA COFFEE 43037185,3.35,REFRESHMENT COSTS,FAST FOOD RESTAURANTS
20/09/2017,SOLD CATERING,CLUSKEYS CCP LTD,28.80,EQUIPMENT,MISCELLANEOUS GENERAL MERCHANDISE
20/09/2017,SOLD DAY TO DAY OPERATIONS,AMAZON UK MARKETPLACE,52.38,EQUIPMENT,BOOK STORES
20/09/2017,MEMBERS EXPENSES (INCL ALLOWANCES),WWW.ICO.GOV.UK,35.00,SUBSCRIPTIONS,GOVERNMENT SERVICES-NOT ELSEWHERE CLASSIFIED
20/09/2017,MEMBERS EXPENSES (INCL ALLOWANCES),WWW.ICO.GOV.UK,35.00,SUBSCRIPTIONS,GOVERNMENT SERVICES-NOT ELSEWHERE CLASSIFIED
20/09/2017,MEMBERS EXPENSES (INCL ALLOWANCES),WWW.ICO.GOV.UK,35.00,SUBSCRIPTIONS,GOVERNMENT SERVICES-NOT ELSEWHERE CLASSIFIED
20/09/2017,SE CARE - CP & COURT LAC,BUYITDIRECT CO UK,.01,FURNITURE,COMPUTER SOFTWARE STORES
20/09/2017,"NW REF, ASS & INT SERVICE - HUB 2",WHSMITH.CO.UK,7.28,STATIONERY,DIRECT MARKETING-COMBINATION CATALOG/RETAIL MERCH.
20/09/2017,ARUNDEL,TESCO STORES 5999,201.81,REFRESHMENT COSTS,"GROCERY STORES, SUPERMARKETS"
20/09/2017,QUADRANT COURT WOKING,LAUNDRY COMPANY,39.86,EQUIPMENT,LAWN AND GARDEN SUPPLY STORES
20/09/2017,DEMOCRATIC SERVICES TEAM,AMAZON EU,19.70,REFRESHMENT COSTS,DIRECT MARKETING-OTHER DIRECT MARKETERS/NOT ELSEW.
20/09/2017,MEMBERS EXPENSES (INCL ALLOWANCES),WWW.ICO.GOV.UK,35.00,SUBSCRIPTIONS,GOVERNMENT SERVICES-NOT ELSEWHERE CLASSIFIED
20/09/2017,MEMBERS EXPENSES (INCL ALLOWANCES),WWW.ICO.GOV.UK,35.00,SUBSCRIPTIONS,GOVERNMENT SERVICES-NOT ELSEWHERE CLASSIFIED
20/09/2017,MEMBERS EXPENSES (INCL ALLOWANCES),WWW.ICO.GOV.UK,35.00,SUBSCRIPTIONS,GOVERNMENT SERVICES-NOT ELSEWHERE CLASSIFIED
20/09/2017,MEMBERS EXPENSES (INCL ALLOWANCES),WWW.ICO.GOV.UK,35.00,SUBSCRIPTIONS,GOVERNMENT SERVICES-NOT ELSEWHERE CLASSIFIED
20/09/2017,MEMBERS EXPENSES (INCL ALLOWANCES),WWW.ICO.GOV.UK,35.00,SUBSCRIPTIONS,GOVERNMENT SERVICES-NOT ELSEWHERE CLASSIFIED
20/09/2017,MEMBERS EXPENSES (INCL ALLOWANCES),WWW.ICO.GOV.UK,35.00,SUBSCRIPTIONS,GOVERNMENT SERVICES-NOT ELSEWHERE CLASSIFIED
20/09/2017,MEMBERS EXPENSES (INCL ALLOWANCES),WWW.ICO.GOV.UK,35.00,SUBSCRIPTIONS,GOVERNMENT SERVICES-NOT ELSEWHERE CLASSIFIED
20/09/2017,MEMBERS EXPENSES (INCL ALLOWANCES),WWW.ICO.GOV.UK,35.00,SUBSCRIPTIONS,GOVERNMENT SERVICES-NOT ELSEWHERE CLASSIFIED
20/09/2017,MEMBERS EXPENSES (INCL ALLOWANCES),WWW.ICO.GOV.UK,35.00,SUBSCRIPTIONS,GOVERNMENT SERVICES-NOT ELSEWHERE CLASSIFIED
20/09/2017,MEMBERS EXPENSES (INCL ALLOWANCES),WWW.ICO.GOV.UK,35.00,SUBSCRIPTIONS,GOVERNMENT SERVICES-NOT ELSEWHERE CLASSIFIED
20/09/2017,MEMBERS EXPENSES (INCL ALLOWANCES),WWW.ICO.GOV.UK,35.00,SUBSCRIPTIONS,GOVERNMENT SERVICES-NOT ELSEWHERE CLASSIFIED
20/09/2017,MEMBERS EXPENSES (INCL ALLOWANCES),WWW.ICO.GOV.UK,35.00,SUBSCRIPTIONS,GOVERNMENT SERVICES-NOT ELSEWHERE CLASSIFIED
20/09/2017,MEMBERS EXPENSES (INCL ALLOWANCES),WWW.ICO.GOV.UK,35.00,SUBSCRIPTIONS,GOVERNMENT SERVICES-NOT ELSEWHERE CLASSIFIED
20/09/2017,MEMBERS EXPENSES (INCL ALLOWANCES),WWW.ICO.GOV.UK,35.00,SUBSCRIPTIONS,GOVERNMENT SERVICES-NOT ELSEWHERE CLASSIFIED
20/09/2017,MEMBERS EXPENSES (INCL ALLOWANCES),WWW.ICO.GOV.UK,35.00,SUBSCRIPTIONS,GOVERNMENT SERVICES-NOT ELSEWHERE CLASSIFIED
20/09/2017,MEMBERS EXPENSES (INCL ALLOWANCES),WWW.ICO.GOV.UK,35.00,SUBSCRIPTIONS,GOVERNMENT SERVICES-NOT ELSEWHERE CLASSIFIED
20/09/2017,MEMBERS EXPENSES (INCL ALLOWANCES),WWW.ICO.GOV.UK,35.00,SUBSCRIPTIONS,GOVERNMENT SERVICES-NOT ELSEWHERE CLASSIFIED
20/09/2017,MEMBERS EXPENSES (INCL ALLOWANCES),WWW.ICO.GOV.UK,35.00,SUBSCRIPTIONS,GOVERNMENT SERVICES-NOT ELSEWHERE CLASSIFIED
20/09/2017,MEMBERS EXPENSES (INCL ALLOWANCES),WWW.ICO.GOV.UK,35.00,SUBSCRIPTIONS,GOVERNMENT SERVICES-NOT ELSEWHERE CLASSIFIED
20/09/2017,MEMBERS EXPENSES (INCL ALLOWANCES),WWW.ICO.GOV.UK,35.00,SUBSCRIPTIONS,GOVERNMENT SERVICES-NOT ELSEWHERE CLASSIFIED
20/09/2017,MEMBERS EXPENSES (INCL ALLOWANCES),WWW.ICO.GOV.UK,35.00,SUBSCRIPTIONS,GOVERNMENT SERVICES-NOT ELSEWHERE CLASSIFIED
20/09/2017,MEMBERS EXPENSES (INCL ALLOWANCES),WWW.ICO.GOV.UK,35.00,SUBSCRIPTIONS,GOVERNMENT SERVICES-NOT ELSEWHERE CLASSIFIED
20/09/2017,MEMBERS EXPENSES (INCL ALLOWANCES),WWW.ICO.GOV.UK,35.00,SUBSCRIPTIONS,GOVERNMENT SERVICES-NOT ELSEWHERE CLASSIFIED
20/09/2017,MEMBERS EXPENSES (INCL ALLOWANCES),WWW.ICO.GOV.UK,35.00,SUBSCRIPTIONS,GOVERNMENT SERVICES-NOT ELSEWHERE CLASSIFIED
20/09/2017,MEMBERS EXPENSES (INCL ALLOWANCES),WWW.ICO.GOV.UK,35.00,SUBSCRIPTIONS,GOVERNMENT SERVICES-NOT ELSEWHERE CLASSIFIED
20/09/2017,MEMBERS EXPENSES (INCL ALLOWANCES),WWW.ICO.GOV.UK,35.00,SUBSCRIPTIONS,GOVERNMENT SERVICES-NOT ELSEWHERE CLASSIFIED
20/09/2017,MEMBERS EXPENSES (INCL ALLOWANCES),WWW.ICO.GOV.UK,35.00,SUBSCRIPTIONS,GOVERNMENT SERVICES-NOT ELSEWHERE CLASSIFIED
20/09/2017,MEMBERS EXPENSES (INCL ALLOWANCES),WWW.ICO.GOV.UK,35.00,SUBSCRIPTIONS,GOVERNMENT SERVICES-NOT ELSEWHERE CLASSIFIED
20/09/2017,MEMBERS EXPENSES (INCL ALLOWANCES),WWW.ICO.GOV.UK,35.00,SUBSCRIPTIONS,GOVERNMENT SERVICES-NOT ELSEWHERE CLASSIFIED
20/09/2017,MEMBERS EXPENSES (INCL ALLOWANCES),WWW.ICO.GOV.UK,35.00,SUBSCRIPTIONS,GOVERNMENT SERVICES-NOT ELSEWHERE CLASSIFIED
20/09/2017,DEMOCRATIC SERVICES TEAM,AMAZON.CO.UK,41.69,REFRESHMENT COSTS,BOOK STORES
20/09/2017,TARGETED INTERVENTION,SAINSBURYS SACAT 0687,7.40,EDUC VISITS/HOLS/CAMPS/TOYS,"GROCERY STORES, SUPERMARKETS"
20/09/2017,TARGETED INTERVENTION,TESCO STORE 3149,3.89,EDUC VISITS/HOLS/CAMPS/TOYS,"GROCERY STORES, SUPERMARKETS"
20/09/2017,TARGETED INTERVENTION,IZ  BART?S CAFE LTD,2.80,EDUC VISITS/HOLS/CAMPS/TOYS,"EATING PLACES, RESTAURANTS"
20/09/2017,MEMBERS EXPENSES (INCL ALLOWANCES),WWW.ICO.GOV.UK,35.00,SUBSCRIPTIONS,GOVERNMENT SERVICES-NOT ELSEWHERE CLASSIFIED
20/09/2017,MEMBERS EXPENSES (INCL ALLOWANCES),WWW.ICO.GOV.UK,35.00,SUBSCRIPTIONS,GOVERNMENT SERVICES-NOT ELSEWHERE CLASSIFIED
20/09/2017,MEMBERS EXPENSES (INCL ALLOWANCES),WWW.ICO.GOV.UK,35.00,SUBSCRIPTIONS,GOVERNMENT SERVICES-NOT ELSEWHERE CLASSIFIED
20/09/2017,MEMBERS EXPENSES (INCL ALLOWANCES),WWW.ICO.GOV.UK,35.00,SUBSCRIPTIONS,GOVERNMENT SERVICES-NOT ELSEWHERE CLASSIFIED
20/09/2017,MEMBERS EXPENSES (INCL ALLOWANCES),WWW.ICO.GOV.UK,35.00,SUBSCRIPTIONS,GOVERNMENT SERVICES-NOT ELSEWHERE CLASSIFIED
20/09/2017,MEMBERS EXPENSES (INCL ALLOWANCES),WWW.ICO.GOV.UK,35.00,SUBSCRIPTIONS,GOVERNMENT SERVICES-NOT ELSEWHERE CLASSIFIED
20/09/2017,MEMBERS EXPENSES (INCL ALLOWANCES),WWW.ICO.GOV.UK,35.00,SUBSCRIPTIONS,GOVERNMENT SERVICES-NOT ELSEWHERE CLASSIFIED
20/09/2017,MEMBERS EXPENSES (INCL ALLOWANCES),WWW.ICO.GOV.UK,35.00,SUBSCRIPTIONS,GOVERNMENT SERVICES-NOT ELSEWHERE CLASSIFIED
20/09/2017,MEMBERS EXPENSES (INCL ALLOWANCES),WWW.ICO.GOV.UK,35.00,SUBSCRIPTIONS,GOVERNMENT SERVICES-NOT ELSEWHERE CLASSIFIED
20/09/2017,MEMBERS EXPENSES (INCL ALLOWANCES),WWW.ICO.GOV.UK,35.00,SUBSCRIPTIONS,GOVERNMENT SERVICES-NOT ELSEWHERE CLASSIFIED
20/09/2017,MEMBERS EXPENSES (INCL ALLOWANCES),WWW.ICO.GOV.UK,35.00,SUBSCRIPTIONS,GOVERNMENT SERVICES-NOT ELSEWHERE CLASSIFIED
20/09/2017,MEMBERS EXPENSES (INCL ALLOWANCES),WWW.ICO.GOV.UK,35.00,SUBSCRIPTIONS,GOVERNMENT SERVICES-NOT ELSEWHERE CLASSIFIED
20/09/2017,NW CARE - CP & COURT LAC,"CENTER PARCS, LEISURE",141.00,EDUC VISITS/HOLS/CAMPS/TOYS,"LODGING-HOTELS,MOTELS,RESORTS-NOT CLASSIFIED"
20/09/2017,NW CARE - CP & COURT LAC,"CENTER PARCS, LEISURE",39.00,EDUC VISITS/HOLS/CAMPS/TOYS,"LODGING-HOTELS,MOTELS,RESORTS-NOT CLASSIFIED"
20/09/2017,CRANLEIGH YC,HOMEBASE LTD 305,22.75,EQUIPMENT,"BUILDING MATERIALS, LUMBER STORES"
20/09/2017,ROW MAINTENANCE,CO-OP GROUP FOOD,4.00,REFRESHMENT COSTS,"GROCERY STORES, SUPERMARKETS"
20/09/2017,TARGETED INTERVENTION,CINEWORLD CRA CP,9.60,EDUC VISITS/HOLS/CAMPS/TOYS,"THEATRICAL PRODUCERS(EXCL MOTION PIX),TICKET AGNCY"
20/09/2017,TARGETED INTERVENTION,SAINSBURYS 0686,6.65,EDUC VISITS/HOLS/CAMPS/TOYS,"GROCERY STORES, SUPERMARKETS"
20/09/2017,FRIENDS & FAMILY CARE,AMAZON EU,104.39,EQUIPMENT,DIRECT MARKETING-OTHER DIRECT MARKETERS/NOT ELSEW.
20/09/2017,NW LOOKED AFTER TEAM,TRAVELODGE,71.50,CHILDREN ACT SEC 17 PAYMENTS,TRAVELODGE
20/09/2017,LIBERTAS COMMUNITY HOME,ARGOS BURPHAM,15.99,EQUIPMENT,DISCOUNT STORES
20/09/2017,NW CARE - LAC,EXPEDIA 7297218928914,55.00,3RD PARTY PAYMENTS PRIVATE INDIV,TRAVEL AGENCIES AND TOUR OPERATORS
20/09/2017,SOLD ESTATES MANAGEMENT,B & Q 1076,113.92,EQUIPMENT,"BUILDING MATERIALS, LUMBER STORES"
20/09/2017,ASSET PLANNING - OPERATIONS,WICKES,20.87,EQUIPMENT,"BUILDING MATERIALS, LUMBER STORES"
20/09/2017,DOWNLANDS COUNTRYSIDE PROJECT,WOODCOTE GREEN,20.00,UPKEEP OF GROUNDS,LAWN AND GARDEN SUPPLY STORES
20/09/2017,HEAD OF SERVICE,AMAZON UK MARKETPLACE,12.98,STATIONERY,BOOK STORES
20/09/2017,BURBANK COMMUNITY HOME,SAINSBURYS TO YOU 0686,283.54,PURCHASE OF FOOD (RAW MATERIALS),"GROCERY STORES, SUPERMARKETS"
20/09/2017,BURBANK COMMUNITY HOME,LIDL UK,3.22,PURCHASE OF FOOD (RAW MATERIALS),"GROCERY STORES, SUPERMARKETS"
20/09/2017,BURBANK COMMUNITY HOME,CAFE ROUGE,27.00,PURCHASE OF FOOD (RAW MATERIALS),"EATING PLACES, RESTAURANTS"
20/09/2017,RUTH HOUSE,G J HONOUR,523.57,PURCHASE OF FOOD (RAW MATERIALS),"MISC FOOD STORE-CONVENIENCE,MRKT,SPLTY,VENDNG MACS"
20/09/2017,RUTH HOUSE,RUTH HOUSE,558.30,PURCHASE OF FOOD (RAW MATERIALS),COMPUTER SOFTWARE STORES
20/09/2017,RUTH HOUSE,TESCO - SELLER_IST_1_2,87.98,FURNITURE,MISCELLANEOUS AND SPECIALTY RETAIL STORES
20/09/2017,RUTH HOUSE,HARVESTER YEOMAN,69.63,REFRESHMENT COSTS,"EATING PLACES, RESTAURANTS"
20/09/2017,TRAINING AND DEVELOPMENT,DAKOTA PRINT & SIGN LT,91.20,TRAINING EXPENSES EXTERNAL GENERAL,MISCELLANEOUS PUBLISHING AND PRINTING
20/09/2017,FAIRCROFT COMMUNITY HOME,SAINSBURYS 0687,30.45,PURCHASE OF FOOD (RAW MATERIALS),"GROCERY STORES, SUPERMARKETS"
20/09/2017,SURREY ARTS GENERAL,WWW.VIKING-DIRECT.CO.U,80.99,EQUIPMENT,STATIONERY/OFFICE SUPPLIES/PRINTING & WRITING PAP.
20/09/2017,FAMILIES SPELTHORNE,POUNDLAND LTD 1287,5.00,REFRESHMENT COSTS,DISCOUNT STORES
20/09/2017,FAMILIES SPELTHORNE,MARKS&SPENCER PLC SACA,2.39,REFRESHMENT COSTS,"GROCERY STORES, SUPERMARKETS"
20/09/2017,BURBANK COMMUNITY HOME,W M MORRISONS,3.50,EQUIPMENT,"GROCERY STORES, SUPERMARKETS"
20/09/2017,CHEYNE WALK COMMUNITY HOME,TESCO STORES 2560,45.75,PURCHASE OF FOOD (RAW MATERIALS),"GROCERY STORES, SUPERMARKETS"
20/09/2017,ASH YOUTH CENTRE,TIMPSON LTD,68.00,EQUIPMENT,"HAT CLEANING SHOPS, SHOE REPAIR SHOPS, SHOE SHINE"
20/09/2017,YSS YOUTH CENTRE IMPROVEMENTS,SAINSBURYS 0652,32.00,EQUIPMENT,"GROCERY STORES, SUPERMARKETS"
20/09/2017,CYWS COMMISSIONING,WWWGREENTANGERINEORG,288.00,PURCHASE OF FOOD (RAW MATERIALS),"MISC FOOD STORE-CONVENIENCE,MRKT,SPLTY,VENDNG MACS"
20/09/2017,FAMILIES GUILDFORD,TABLE TABLE41015900,2.85,REFRESHMENT COSTS,"EATING PLACES, RESTAURANTS"
20/09/2017,CHEYNE WALK COMMUNITY HOME,TESCO-STORES 6647,230.64,PURCHASE OF FOOD (RAW MATERIALS),"GROCERY STORES, SUPERMARKETS"
20/09/2017,TS SERVICE MANAGEMENT,AMAZON UK MARKETPLACE,12.57,EQUIPMENT,BOOK STORES
20/09/2017,S28A MENTAL HEALTH,HMCTS-SURREY125,75.00,FEES,FINES
20/09/2017,HOLLAND CLOSE RESIDENTIAL HOME,ARGOS LTD,27.02,EQUIPMENT,DISCOUNT STORES
20/09/2017,NE CARE - CP & COURT LAC,SURREY CC CARD PAY,28.00,OTHER COMMUNITY CARE VOL,COMPUTER NETWORK/INFORMATION SERVICES
20/09/2017,ACL CENTRAL EXPENDITURE,WAITROSE 181,6.83,REFRESHMENT COSTS,"GROCERY STORES, SUPERMARKETS"
20/09/2017,SE EDUCATION WELFARE OFFICERS,AMAZON UK MARKETPLACE,6.25,EQUIPMENT,BOOK STORES
20/09/2017,SE TEACHERS,AMAZON UK MARKETPLACE,6.25,EQUIPMENT,BOOK STORES
21/09/2017,ASYLUM SEEKERS 18+,TVLICENSING.CO.UK,147.00,CHILDREN ACT SEC 17 PAYMENTS,"CONSULTING, MANAGEMENT, AND PUBLIC RELATIONS SVCS"
21/09/2017,SW CARE - NON-LAC CP & COURT,PREMIER INN,729.00,CHILDREN ACT SEC 17 PAYMENTS,PREMIER INN
21/09/2017,COUNTRYSIDE PROJECT DEVELOPMENT,SURVEYMONKEY.COM,29.00,SUBSCRIPTIONS,DIRECT MARKETING-CONTINUITY/SUBSCRIPTION MERCHANTS
21/09/2017,ARUNDEL,ASDA HOME SHOPPING,49.75,CLEANING MATERIALS,"GROCERY STORES, SUPERMARKETS"
21/09/2017,PE/CDT MAINTENANCE OVERHEADS,FRESH AIR FITNESS,795.82,ITEMS PURCHASED FOR RE-SALE,MISCELLANEOUS AND SPECIALTY RETAIL STORES
21/09/2017,ROW MAINTENANCE,WWW.ARCO.CO.UK,139.20,EQUIPMENT,INDUSTRIAL SUPPLIES NOT ELSEWHERE CLASSIFIED
21/09/2017,SURREY GROWTH STRATEGY,LEITHS AT EARLS COURT&,356.70,REFRESHMENT COSTS,FAST FOOD RESTAURANTS
21/09/2017,HOPE SERVICE - WEST,FREEDOM LEISURE,10.00,EDUC VISITS/HOLS/CAMPS/TOYS,GOVERNMENT SERVICES-NOT ELSEWHERE CLASSIFIED
21/09/2017,BOOKS - ADULT NON-FICTION               ,AMAZON EU,30.09,LIBRARY RESOURCES,DIRECT MARKETING-OTHER DIRECT MARKETERS/NOT ELSEW.
21/09/2017,BOOKS - ADULT NON-FICTION               ,AMAZON UK RETAIL AMAZO,57.01,LIBRARY RESOURCES,MISCELLANEOUS AND SPECIALTY RETAIL STORES
21/09/2017,PE/CDT MAINTENANCE OVERHEADS,WWW.EXPERTFITNESSUK.CO,142.12,ITEMS PURCHASED FOR RE-SALE,SPORTING GOODS STORES
21/09/2017,ASSET DELIVERY,AMAZON UK MARKETPLACE,55.56,EQUIPMENT,BOOK STORES
21/09/2017,CHEYNE WALK COMMUNITY HOME,ROAD RUNNERS MECO LTD,30.00,TRANSPORT SOCIAL CARE-TAXI,LIMOUSINES AND TAXICABS
21/09/2017,PE/CDT MAINTENANCE OVERHEADS,UK TABLE TENNIS LTD,174.00,ITEMS PURCHASED FOR RE-SALE,SPORTING GOODS STORES
21/09/2017,PE/CDT MAINTENANCE OVERHEADS,WWW.EPSOM-EWELL.GOV.UK,381.52,TRADE REFUSE,GOVERNMENT SERVICES-NOT ELSEWHERE CLASSIFIED
21/09/2017,PE/CDT MAINTENANCE OVERHEADS,AMER SPORTS UK LTD,41.74,ITEMS PURCHASED FOR RE-SALE,SPORTING GOODS STORES
21/09/2017,PE/CDT MAINTENANCE OVERHEADS,HARROD UK SPORT,143.32,ITEMS PURCHASED FOR RE-SALE,"SPORTS APPAREL, RIDING APPAREL STORES"
21/09/2017,PROPERTY OPERATIONS TEAM,WICKES,37.49,PURCHASE OF BUILDING MATERIALS,"BUILDING MATERIALS, LUMBER STORES"
21/09/2017,TRAINING AND DEVELOPMENT,WWW.CFOASERVICES.CO.UK,582.00,TRAINING EXPENSES EXTERNAL GENERAL,"ORGANIZATIONS, MEMBERSHIP-NOT ELSEWHERE CLASSIFIED"
21/09/2017,TRAINING AND DEVELOPMENT,WWW.CFOASERVICES.CO.UK,-192.00,SUBSISTENCE AND CONFERENCE EXPENSES,"ORGANIZATIONS, MEMBERSHIP-NOT ELSEWHERE CLASSIFIED"
21/09/2017,COMMUNITY ARCHAEOLOGIST PROJECT,AMAZON UK MARKETPLACE,23.76,EQUIPMENT,BOOK STORES
21/09/2017,YSS YOUTH CENTRE IMPROVEMENTS,SAINSBURYS 0686,50.14,EQUIPMENT,"GROCERY STORES, SUPERMARKETS"
21/09/2017,NW CARE - CP & COURT LAC,NATIONAL TRUST,23.85,REFRESHMENT COSTS,"ORGANIZATIONS, CHARITABLE AND SOCIAL SERVICES"
21/09/2017,NW CARE - CP & COURT LAC,NATIONAL TRUST,4.95,REFRESHMENT COSTS,"ORGANIZATIONS, CHARITABLE AND SOCIAL SERVICES"
21/09/2017,NW CARE - CP & COURT LAC,MCDONALDS,4.57,REFRESHMENT COSTS,"EATING PLACES, RESTAURANTS"
21/09/2017,NW CARE - CP & COURT LAC,MCDONALDS,1.59,REFRESHMENT COSTS,"EATING PLACES, RESTAURANTS"
21/09/2017,ACL CENTRAL EXPENDITURE,W M MORRISONS,12.27,REFRESHMENT COSTS,"GROCERY STORES, SUPERMARKETS"
21/09/2017,HILLSIDE,TESCO STORE 3149,22.00,FIXTURES AND FITTINGS,"GROCERY STORES, SUPERMARKETS"
21/09/2017,HILLSIDE,TESCO STORE 3149,6.78,PURCHASE OF FOOD (RAW MATERIALS),"GROCERY STORES, SUPERMARKETS"
21/09/2017,HILLSIDE,TESCO STORE 3149,69.52,PURCHASE OF FOOD (RAW MATERIALS),"GROCERY STORES, SUPERMARKETS"
21/09/2017,FAIRCROFT COMMUNITY HOME,SAINSBURYS PFS0473,52.14,VEHICLE RUNNING COSTS,SERVICE STATIONS WITH OR WITHOUT ANCILLARY SERVICE
21/09/2017,FAIRCROFT COMMUNITY HOME,SAINSBURYS PFS0473,42.15,VEHICLE RUNNING COSTS,SERVICE STATIONS WITH OR WITHOUT ANCILLARY SERVICE
21/09/2017,SPLASH PROJECT,AMAZON UK MARKETPLACE,309.23,EDUC VISITS/HOLS/CAMPS/TOYS,BOOK STORES
21/09/2017,RBDM - GENERAL,AMAZON UK MARKETPLACE,13.70,EQUIPMENT,BOOK STORES
21/09/2017,FAMILIES SPELTHORNE,SAINSBURYS SACAT 0679,12.18,REFRESHMENT COSTS,"GROCERY STORES, SUPERMARKETS"
21/09/2017,ARUNDEL,ROYAL COLLEGE OF MUSIC,11.95,EDUC VISITS/HOLS/CAMPS/TOYS,"ORGANIZATIONS, CHARITABLE AND SOCIAL SERVICES"
21/09/2017,TARGETED INTERVENTION,TOP GOLF LTD,22.00,EDUC VISITS/HOLS/CAMPS/TOYS,"CLUBS-CNTRY,MBRSHIP(ATHLET,REC,SPRTS,PRIVATE GOLF"
21/09/2017,TARGETED INTERVENTION,THE HUB CAFE,3.90,EDUC VISITS/HOLS/CAMPS/TOYS,"EATING PLACES, RESTAURANTS"
21/09/2017,TARGETED INTERVENTION,TESCO STORES-2047,6.35,EDUC VISITS/HOLS/CAMPS/TOYS,"GROCERY STORES, SUPERMARKETS"
21/09/2017,TARGETED INTERVENTION,W M MORRISONS,3.85,EDUC VISITS/HOLS/CAMPS/TOYS,"GROCERY STORES, SUPERMARKETS"
21/09/2017,TARGETED INTERVENTION,W M MORRISONS,11.36,EDUC VISITS/HOLS/CAMPS/TOYS,"GROCERY STORES, SUPERMARKETS"
21/09/2017,ASYLUM SEEKERS UNDER 16,TRAINLINE,127.40,NON-STAFF RELATED TRANSPORT COSTS,PASSENGER RAILWAYS
21/09/2017,SW LOOKED AFTER TEAM,EASYJET,175.70,MISCELLANEOUS STAFF TRAVEL,EASYJET
21/09/2017,SW LOOKED AFTER TEAM,EASYJET,167.64,MISCELLANEOUS STAFF TRAVEL,EASYJET
21/09/2017,SW LOOKED AFTER TEAM,TRAVELODGE,99.00,CHILDREN ACT SEC 17 PAYMENTS,TRAVELODGE
21/09/2017,ASYLUM SEEKERS 18+,TESCO - SELLER_IST_1_2,104.99,FURNITURE,MISCELLANEOUS AND SPECIALTY RETAIL STORES
21/09/2017,YSS YOUTH CENTRE IMPROVEMENTS,MARCHWOOD ENGINEERING,53.29,DAY TO DAY MAINTENANCE,ELECTRICAL AND SMALL APPLIANCE REPAIR SHOPS
21/09/2017,FAMILIES EPSOM AND EWELL,CO-OP GROUP 310385,2.45,REFRESHMENT COSTS,"GROCERY STORES, SUPERMARKETS"
21/09/2017,LIBERTAS COMMUNITY HOME,SPORTSDIRECT 240,49.98,"CLOTHING, UNIFORM AND LAUNDRY",SPORTING GOODS STORES
21/09/2017,HOLLAND CLOSE RESIDENTIAL HOME,KFC,44.47,REFRESHMENT COSTS,FAST FOOD RESTAURANTS
21/09/2017,HOLLAND CLOSE RESIDENTIAL HOME,TEAM SPORT,120.00,EDUC VISITS/HOLS/CAMPS/TOYS,"AMUSEMENT PARKS,CARNIVALS,CIRCUS,FORTUNE TELLERS"
21/09/2017,HOLLAND CLOSE RESIDENTIAL HOME,HOMEBASE LTD 247,18.98,EQUIPMENT,"BUILDING MATERIALS, LUMBER STORES"
21/09/2017,HOLLAND CLOSE RESIDENTIAL HOME,CARDS DIRECT REDHILL,11.89,EDUC VISITS/HOLS/CAMPS/TOYS,"GIFT, CARD, NOVELTY AND SOUVENIR SHOPS"
21/09/2017,HOLLAND CLOSE RESIDENTIAL HOME,TFS STORES LTD - REDHI,20.05,EQUIPMENT,COSMETIC STORES
21/09/2017,NW CARE - CP & COURT LAC,SAINSBURYS SACAT 0652,42.05,"CLOTHING, UNIFORM AND LAUNDRY","GROCERY STORES, SUPERMARKETS"
21/09/2017,EPSOM & EWELL CMHRS CARE,HMCTS-SURREY125,75.00,FEES,FINES
21/09/2017,ACL CENTRAL EXPENDITURE,HIRE SRVS SOUTHERN LTD,444.17,EQUIPMENT,"EQUIPMENT RENTAL&LEASING SVS, FURNTURE/TOOL RENTAL"
21/09/2017,LIBERTAS COMMUNITY HOME,SAINSBURYS SACAT 0652,3.00,STATIONERY,"GROCERY STORES, SUPERMARKETS"
21/09/2017,LIBERTAS COMMUNITY HOME,MCDONALDS,5.48,REFRESHMENT COSTS,"EATING PLACES, RESTAURANTS"
21/09/2017,YSS MANAGEMENT PRACTICE AND SUPPORT,EB  CHILD FRIENDLY YOU,59.00,TRAINING EXPENSES EXTERNAL GENERAL,BUSINESS SERVICES-NOT ELSEWHERE CLASSIFIED
21/09/2017,SW LOOKED AFTER TEAM,EASYJET,-150.70,MISCELLANEOUS STAFF TRAVEL,EASYJET
21/09/2017,FAMILIES MOLE VALLEY,LIDL UK,9.93,PURCHASE OF FOOD (RAW MATERIALS),"GROCERY STORES, SUPERMARKETS"
21/09/2017,SIGNS OF SAFETY TRAINING,TRAINLINE,83.23,MISCELLANEOUS STAFF TRAVEL,PASSENGER RAILWAYS
21/09/2017,ARUNDEL,TESCO STORES 5999,96.57,REFRESHMENT COSTS,"GROCERY STORES, SUPERMARKETS"
21/09/2017,HOPE SERVICE - WEST,SAINSBURYS TO YOU 0686,44.39,PURCHASE OF FOOD (RAW MATERIALS),"GROCERY STORES, SUPERMARKETS"
21/09/2017,PROPERTY OPERATIONS TEAM,WICKES,11.98,PURCHASE OF BUILDING MATERIALS,"BUILDING MATERIALS, LUMBER STORES"
21/09/2017,WOODLANDS COMMUNITY HOME,SAINSBURYS 0686,55.38,EDUC VISITS/HOLS/CAMPS/TOYS,"GROCERY STORES, SUPERMARKETS"
21/09/2017,WOODLANDS COMMUNITY HOME,PLAYSTATIONNETWORK,61.98,EDUC VISITS/HOLS/CAMPS/TOYS,DIGITAL GOODS GAMES
21/09/2017,WOODLANDS COMMUNITY HOME,PLAYSTATIONNETWORK,77.97,EDUC VISITS/HOLS/CAMPS/TOYS,DIGITAL GOODS GAMES
21/09/2017,WOODLANDS COMMUNITY HOME,MCDONALDS,7.53,PURCHASE OF FOOD (RAW MATERIALS),"EATING PLACES, RESTAURANTS"
21/09/2017,FAIRCROFT COMMUNITY HOME,KFC,5.78,REFRESHMENT COSTS,FAST FOOD RESTAURANTS
21/09/2017,SURREY FRS INITIAL RESPONSE VEHICLES,PAYPAL  TOOLSTATION,315.57,CE02 FURNITURE AND EQUIPMENT,CHEMICALS/ALLIED PRODUCTS NOT ELSEWHERE CLASSIFIED
21/09/2017,FAIRCROFT COMMUNITY HOME,TESCO DELIVERY SAVER2,7.00,PURCHASE OF FOOD (RAW MATERIALS),DIRECT MARKETING-CONTINUITY/SUBSCRIPTION MERCHANTS
21/09/2017,CHMHS RAP TEAM,MIXAM UK LTD,90.50,EDUC VISITS/HOLS/CAMPS/TOYS,MISCELLANEOUS PUBLISHING AND PRINTING
21/09/2017,FAIRCROFT COMMUNITY HOME,EL MEXICANA,6.49,REFRESHMENT COSTS,"EATING PLACES, RESTAURANTS"
21/09/2017,FAIRCROFT COMMUNITY HOME,DEEP BLUE,6.50,REFRESHMENT COSTS,"EATING PLACES, RESTAURANTS"
21/09/2017,FAIRCROFT COMMUNITY HOME,PAPA JOHNS,6.79,REFRESHMENT COSTS,"MISC FOOD STORE-CONVENIENCE,MRKT,SPLTY,VENDNG MACS"
21/09/2017,FAIRCROFT COMMUNITY HOME,MCDONALDS,21.96,REFRESHMENT COSTS,FAST FOOD RESTAURANTS
21/09/2017,BURBANK COMMUNITY HOME,BOOTS 2142,14.38,EQUIPMENT,"DRUG STORES, PHARMACIES"
21/09/2017,SOLD ESTATES MANAGEMENT,B & Q 1029,99.94,FIXTURES AND FITTINGS,"BUILDING MATERIALS, LUMBER STORES"
21/09/2017,BURBANK COMMUNITY HOME,RSM DOMESTIC APPLI,25.00,EQUIPMENT,ELECTRONIC SALES
21/09/2017,PROPERTY OPERATIONS TEAM,CITY PLUMBING,24.79,PURCHASE OF BUILDING MATERIALS,"BUILDING MATERIALS, LUMBER STORES"
21/09/2017,ADULT SKILLS,AMAZON EU,62.04,CURRIC BOOKS,DIRECT MARKETING-OTHER DIRECT MARKETERS/NOT ELSEW.
21/09/2017,COUNTYWIDE MANAGED PRINT SERVICE,CARTRIDGE SAVE,88.23,PRINTING,STATIONERY/OFFICE SUPPLIES/PRINTING & WRITING PAP.
21/09/2017,HOPE SERVICE - WEST,ECSI LTD,11.10,REFRESHMENT COSTS,"MISC FOOD STORE-CONVENIENCE,MRKT,SPLTY,VENDNG MACS"
21/09/2017,YSS MANAGEMENT PRACTICE AND SUPPORT,MAG EVENTS,358.80,TRAINING EXPENSES EXTERNAL GENERAL,"BOOKS,PERIODICALS AND NEWSPAPERS"
21/09/2017,PROJECTS AND CONTRACTS GROUP,AUTOGLASS,379.64,VEHICLE REPAIRS AND MAINTENANCE,"AUTOMOTIVE PARTS, ACCESSORIES STORES"
21/09/2017,VIRTUAL SCHOOL FOR LAC PUPIL PREMIUM,AMAZON EU,17.99,BOOKS,DIRECT MARKETING-OTHER DIRECT MARKETERS/NOT ELSEW.
21/09/2017,VIRTUAL SCHOOL FOR LAC PUPIL PREMIUM,AMAZON EU,62.89,BOOKS,DIRECT MARKETING-OTHER DIRECT MARKETERS/NOT ELSEW.
21/09/2017,E&I - LOVE FOOD HATE WASTE              ,GOOGLE  ADWS2060179426,500.00,PUBLICITY,DIRECT MARKETING-CONTINUITY/SUBSCRIPTION MERCHANTS
22/09/2017,NW CARE - CP & COURT LAC,GRO HM PASSPORT OFFICE,-23.40,CHILDREN ACT SEC 24 PAYMENTS,GOVERNMENT SERVICES-NOT ELSEWHERE CLASSIFIED
22/09/2017,ARUNDEL,TESCO STORES 5999,149.36,REFRESHMENT COSTS,"GROCERY STORES, SUPERMARKETS"
22/09/2017,RUNNYMEDE LOCAL CARE OP,HMCTS-SURREY125,75.00,FEES,FINES
22/09/2017,ACL CENTRAL EXPENDITURE,COOKSON PRECIOUS M,434.45,EQUIPMENT,"PRECIOUS STONES AND METALS, WATCHES AND JEWELRY"
22/09/2017,AEO MANAGEMENT TEAM (SW),SURREY CC CARD PAY,50.00,TRAINING EXPENSES EXTERNAL GENERAL,COMPUTER NETWORK/INFORMATION SERVICES
22/09/2017,ACL CENTRAL EXPENDITURE,WWW.,214.80,COMPUTER CONSUMABLES,"OFFICE, SCHOOL SUPPLY, AND STATIONERY STORES"
22/09/2017,ACL CENTRAL EXPENDITURE,WWW.NISBETS.COM,33.52,REFRESHMENT COSTS,DIRECT MARKETING-CATALOG MERCHANTS
22/09/2017,LIBERTAS COMMUNITY HOME,SAINSBURYS 0652,12.30,PURCHASE OF FOOD (RAW MATERIALS),"GROCERY STORES, SUPERMARKETS"
22/09/2017,LIBERTAS COMMUNITY HOME,SAINSBURYS 0652,3.70,EQUIPMENT,"GROCERY STORES, SUPERMARKETS"
22/09/2017,LIBERTAS COMMUNITY HOME,SAINSBURYS 0652,123.42,PURCHASE OF FOOD (RAW MATERIALS),"GROCERY STORES, SUPERMARKETS"
22/09/2017,TARGETED INTERVENTION,TWO RIVERS CAR PK,1.20,EDUC VISITS/HOLS/CAMPS/TOYS,AUTOMOBILE PARKING LOTS AND GARAGES
22/09/2017,TARGETED INTERVENTION,KNIGHTS,7.00,EDUC VISITS/HOLS/CAMPS/TOYS,LAWN AND GARDEN SUPPLY STORES
22/09/2017,TARGETED INTERVENTION,WELCOME BREAK STARBUCK,2.90,EDUC VISITS/HOLS/CAMPS/TOYS,"MISC FOOD STORE-CONVENIENCE,MRKT,SPLTY,VENDNG MACS"
22/09/2017,NW CARE - CP & COURT LAC,GRO HM PASSPORT OFFICE,93.60,CHILDREN ACT SEC 24 PAYMENTS,GOVERNMENT SERVICES-NOT ELSEWHERE CLASSIFIED
22/09/2017,ASYLUM SEEKERS 18+,CURRYS ONLINE,639.97,EQUIPMENT,ELECTRONIC SALES
22/09/2017,ASYLUM SEEKERS 18+,TESCO - SELLER_IST_1_2,144.99,EQUIPMENT,MISCELLANEOUS AND SPECIALTY RETAIL STORES
22/09/2017,FAIRCROFT COMMUNITY HOME,LANGFORD & CHAMBER,127.50,EQUIPMENT,CATERERS
22/09/2017,PROPERTY OPERATIONS TEAM,HOWDENS - GUILDFORD D9,9.18,PURCHASE OF BUILDING MATERIALS,"BUILDING MATERIALS, LUMBER STORES"
22/09/2017,TRAINING AND DEVELOPMENT,WWW.PUBLICPOLICYEXCHAN,283.20,SUBSISTENCE AND CONFERENCE EXPENSES,BUSINESS SERVICES-NOT ELSEWHERE CLASSIFIED
22/09/2017,APPLEWOOD,ASDA HOME SHOPPING,157.84,PURCHASE OF FOOD (RAW MATERIALS),"GROCERY STORES, SUPERMARKETS"
22/09/2017,APPLEWOOD,ASDA HOME SHOPPING,35.00,PURCHASE OF FOOD (RAW MATERIALS),"GROCERY STORES, SUPERMARKETS"
22/09/2017,APPLEWOOD,ASDA HOME SHOPPING,1.11,PURCHASE OF FOOD (RAW MATERIALS),"GROCERY STORES, SUPERMARKETS"
22/09/2017,HILLSIDE,SAINSBURYS 0675,84.04,PURCHASE OF FOOD (RAW MATERIALS),"GROCERY STORES, SUPERMARKETS"
22/09/2017,WOODLANDS COMMUNITY HOME,SAINSBURYS 0686,17.00,PURCHASE OF FOOD (RAW MATERIALS),"GROCERY STORES, SUPERMARKETS"
22/09/2017,CHILDREN'S RIGHTS TEAM,AMAZON.CO.UK,27.99,EQUIPMENT,BOOK STORES
22/09/2017,FAMILIES MOLE VALLEY,ROBERT DYAS HOLDNG LTD,5.49,PUBLICITY,HARDWARE STORES
22/09/2017,MASH,SIGHT FOR SURREY,253.00,FEES,"ORGANIZATIONS, CHARITABLE AND SOCIAL SERVICES"
22/09/2017,MASH,SIGHT FOR SURREY,500.00,FEES,"ORGANIZATIONS, CHARITABLE AND SOCIAL SERVICES"
22/09/2017,TARGETED INTERVENTION,FREEDOM LEISURE,7.30,EDUC VISITS/HOLS/CAMPS/TOYS,GOVERNMENT SERVICES-NOT ELSEWHERE CLASSIFIED
22/09/2017,TARGETED INTERVENTION,TESCO STORE 2047,48.27,EDUC VISITS/HOLS/CAMPS/TOYS,"GROCERY STORES, SUPERMARKETS"
22/09/2017,TARGETED INTERVENTION,TESCO STORE 2047,8.55,EDUC VISITS/HOLS/CAMPS/TOYS,"GROCERY STORES, SUPERMARKETS"
22/09/2017,CS BUSINESS SUPPORT EAST,MANOR HOUSE HOTEL,805.00,INDEPENDENT LIVING PLACEMENTS,"LODGING-HOTELS,MOTELS,RESORTS-NOT CLASSIFIED"
22/09/2017,CS BUSINESS SUPPORT EAST,MANOR HOUSE HOTEL,313.60,INDEPENDENT LIVING PLACEMENTS,"LODGING-HOTELS,MOTELS,RESORTS-NOT CLASSIFIED"
22/09/2017,NW SECTION 17 CARE,TRAVELODGE,"1,825.00",INDEPENDENT LIVING PLACEMENTS,TRAVELODGE
22/09/2017,BURBANK COMMUNITY HOME,WATERS EDGE,14.60,REFRESHMENT COSTS,"EATING PLACES, RESTAURANTS"
22/09/2017,PE/CDT MAINTENANCE OVERHEADS,THE WOODWORK DUSTCONTR,195.60,EQUIPMENT,INDUSTRIAL SUPPLIES NOT ELSEWHERE CLASSIFIED
22/09/2017,STAFF OFFICE,LIPHOOK NORTH 229,94.63,MISCELLANEOUS STAFF TRAVEL,SERVICE STATIONS WITH OR WITHOUT ANCILLARY SERVICE
22/09/2017,ACL CENTRAL EXPENDITURE,COOKSON PRECIOUS M,112.78,EQUIPMENT,"PRECIOUS STONES AND METALS, WATCHES AND JEWELRY"
22/09/2017,RUTH HOUSE,SAINSBURYS TO YOU 0686,12.50,PURCHASE OF FOOD (RAW MATERIALS),"GROCERY STORES, SUPERMARKETS"
22/09/2017,RUTH HOUSE,SAINSBURYS TO YOU 0686,220.45,PURCHASE OF FOOD (RAW MATERIALS),"GROCERY STORES, SUPERMARKETS"
22/09/2017,RUTH HOUSE,ASDA  STORES 4775,10.98,EDUC VISITS/HOLS/CAMPS/TOYS,"GROCERY STORES, SUPERMARKETS"
22/09/2017,RUTH HOUSE,ASDA  STORES 4775,6.00,EDUC VISITS/HOLS/CAMPS/TOYS,"GROCERY STORES, SUPERMARKETS"
22/09/2017,RUTH HOUSE,MARTIN MCCOLL'S,2.25,EDUC VISITS/HOLS/CAMPS/TOYS,"MISC FOOD STORE-CONVENIENCE,MRKT,SPLTY,VENDNG MACS"
22/09/2017,RUTH HOUSE,ARGOS LTD,34.62,EDUC VISITS/HOLS/CAMPS/TOYS,DISCOUNT STORES
22/09/2017,NW SECTION 17 CARE,TRAVELODGE,"-1,735.00",INDEPENDENT LIVING PLACEMENTS,TRAVELODGE
22/09/2017,TARGETED INTERVENTION,FREEDOM LEISURE,9.10,EDUC VISITS/HOLS/CAMPS/TOYS,GOVERNMENT SERVICES-NOT ELSEWHERE CLASSIFIED
22/09/2017,TRAINING AND DEVELOPMENT,HOLIDAY INNS,84.99,SUBSISTENCE AND CONFERENCE EXPENSES,HOLIDAY INNS
22/09/2017,TRAINING AND DEVELOPMENT,HOLIDAY INNS,84.99,SUBSISTENCE AND CONFERENCE EXPENSES,HOLIDAY INNS
22/09/2017,TRAINING AND DEVELOPMENT,WWW.BDADYSLEXIA.,"1,685.10",TRAINING EXPENSES EXTERNAL GENERAL,"ORGANIZATIONS, CHARITABLE AND SOCIAL SERVICES"
22/09/2017,SPLASH PROJECT,AMAZON UK MARKETPLACE,389.60,EDUC VISITS/HOLS/CAMPS/TOYS,BOOK STORES
22/09/2017,ROW VOLUNTEERS WEST                     ,MOTOR FUELS LTD,8.03,REFRESHMENT COSTS,SERVICE STATIONS WITH OR WITHOUT ANCILLARY SERVICE
22/09/2017,ENSEMBLES & TOURS,SHEETMUSICPLUS.COM,93.08,EQUIPMENT,"MUSIC STORES-INSTRUMENTS, PIANOS, SHEET MUSIC"
22/09/2017,BOOKS - ADULT FICTION                   ,AMAZON UK MARKETPLACE,5.80,LIBRARY RESOURCES,BOOK STORES
22/09/2017,BOOKS - ADULT FICTION                   ,AMAZON.CO.UK,2.81,LIBRARY RESOURCES,BOOK STORES
22/09/2017,"NW REF, ASS & INT SERVICE - HUB 1",PREMIER INN,57.00,OTHER COMMUNITY CARE PRIV,PREMIER INN
22/09/2017,ASSET PLANNING - OPERATIONS,POST OFFICE COUNTER,16.40,POSTAGE AND COURIER CHARGES,POSTAL SERVICES-GOVERNMENT ONLY
22/09/2017,PE/CDT MAINTENANCE OVERHEADS,PULSE FITNESS,11.25,ITEMS PURCHASED FOR RE-SALE,SPORTING GOODS STORES
22/09/2017,COVEHAM,SAINSBURYS SACAT 0687,83.00,CLEANING MATERIALS,"GROCERY STORES, SUPERMARKETS"
22/09/2017,RUTH HOUSE,DUNELM LTD,106.43,FURNITURE,FAST FOOD RESTAURANTS
22/09/2017,RUTH HOUSE,DUNELM LTD,25.00,FURNITURE,FAST FOOD RESTAURANTS
23/09/2017,RUTH HOUSE,NEW LOOK 1792,154.11,"CLOTHING, UNIFORM AND LAUNDRY",WOMEN'S READY TO WEAR STORES
23/09/2017,RUTH HOUSE,"NEXT 0528, WOKING PEAC",22.05,"CLOTHING, UNIFORM AND LAUNDRY",FAMILY CLOTHING STORES
23/09/2017,RUTH HOUSE,SPECSAVERS 00326000WOK,10.00,EQUIPMENT,"OPTICIANS,OPTICAL GOODS & EYEGLASSES"
23/09/2017,7 TANNERY LANE GOSDEN COMMON BRAMLEY,B&Q DIRECT,18.57,FIXTURES AND FITTINGS,"BUILDING MATERIALS, LUMBER STORES"
23/09/2017,HILLSIDE,SAINSBURYS TO YOU 0675,25.20,PURCHASE OF FOOD (RAW MATERIALS),"GROCERY STORES, SUPERMARKETS"
23/09/2017,HILLSIDE,SAINSBURYS TO YOU 0675,215.65,PURCHASE OF FOOD (RAW MATERIALS),"GROCERY STORES, SUPERMARKETS"
23/09/2017,WOODLANDS COMMUNITY HOME,SAINSBURYS TO YOU 0686,92.80,PURCHASE OF FOOD (RAW MATERIALS),"GROCERY STORES, SUPERMARKETS"
23/09/2017,WOODLANDS COMMUNITY HOME,SAINSBURYS TO YOU 0686,16.00,PURCHASE OF FOOD (RAW MATERIALS),"GROCERY STORES, SUPERMARKETS"
23/09/2017,WOODLANDS COMMUNITY HOME,SAINSBURYS TO YOU 0686,5.00,EQUIPMENT,"GROCERY STORES, SUPERMARKETS"
23/09/2017,TRANSPORT,AMAZON UK MARKETPLACE,53.91,COMPUTER HARDWARE,BOOK STORES
23/09/2017,COMMUNICATIONS TEAM,AMAZON UK MARKETPLACE,18.28,STATIONERY,BOOK STORES
23/09/2017,COMMUNICATIONS TEAM,AMAZON UK MARKETPLACE,40.98,STATIONERY,BOOK STORES
23/09/2017,E&I - LOVE FOOD HATE WASTE              ,GOOGLE  ADWS2060179426,500.00,PUBLICITY,DIRECT MARKETING-CONTINUITY/SUBSCRIPTION MERCHANTS
23/09/2017,CHEYNE WALK COMMUNITY HOME,TESCO STORES 2560,6.75,EQUIPMENT,"GROCERY STORES, SUPERMARKETS"
23/09/2017,CHEYNE WALK COMMUNITY HOME,PRODUCT SUPPORT AG,2.00,EQUIPMENT,DIRECT MARKETING-CONTINUITY/SUBSCRIPTION MERCHANTS
23/09/2017,LIBERTAS COMMUNITY HOME,AMAZON EU,7.39,UPKEEP OF GROUNDS,DIRECT MARKETING-OTHER DIRECT MARKETERS/NOT ELSEW.
23/09/2017,COMMUNITY ARCHAEOLOGIST PROJECT,AMAZON EU,28.85,EQUIPMENT,DIRECT MARKETING-OTHER DIRECT MARKETERS/NOT ELSEW.
23/09/2017,FAIRCROFT COMMUNITY HOME,BAKED & BATTERED,9.75,REFRESHMENT COSTS,FAST FOOD RESTAURANTS
23/09/2017,FAIRCROFT COMMUNITY HOME,DEEP BLUE,31.70,REFRESHMENT COSTS,"EATING PLACES, RESTAURANTS"
23/09/2017,FAIRCROFT COMMUNITY HOME,FREEDOM LEISURE,22.80,EDUC VISITS/HOLS/CAMPS/TOYS,GOVERNMENT SERVICES-NOT ELSEWHERE CLASSIFIED
23/09/2017,EXTENDED HOPE,FREEDOM LEISURE,100.00,EDUC VISITS/HOLS/CAMPS/TOYS,GOVERNMENT SERVICES-NOT ELSEWHERE CLASSIFIED
23/09/2017,ACL CENTRAL EXPENDITURE,SAINSBURYS 0686,19.30,REFRESHMENT COSTS,"GROCERY STORES, SUPERMARKETS"
23/09/2017,HOLLAND CLOSE RESIDENTIAL HOME,TESCO-STORES 6647,150.27,PURCHASE OF FOOD (RAW MATERIALS),"GROCERY STORES, SUPERMARKETS"
23/09/2017,HOLLAND CLOSE RESIDENTIAL HOME,HALFORDS 0725,160.00,EDUC VISITS/HOLS/CAMPS/TOYS,BICYCLE SHOPS-SALES AND SERVICE
24/09/2017,COMMUNICATIONS TEAM,AMAZON.CO.UK,38.89,STATIONERY,BOOK STORES
24/09/2017,DOWNLANDS COUNTRYSIDE PROJECT,MOLE COUNTRY STORES,218.29,EQUIPMENT,AGRICULTURAL COOPERATIVES
24/09/2017,KARIBU COMMUNITY HOME,TESCO STORE 2812,343.04,PURCHASE OF FOOD (RAW MATERIALS),"GROCERY STORES, SUPERMARKETS"
24/09/2017,TRANSPORT,AMAZON UK MARKETPLACE,29.95,COMPUTER HARDWARE,BOOK STORES
24/09/2017,ORBIS HEAD OF PROCUREMENT,WWW.CIPS.ORG,82.25,EXAMINATION FEES,"ORGANIZATIONS, MEMBERSHIP-NOT ELSEWHERE CLASSIFIED"
24/09/2017,CYWS COMMISSIONING,SAINSBURYS SACAT 0828,8.30,PURCHASE OF FOOD (RAW MATERIALS),"GROCERY STORES, SUPERMARKETS"
24/09/2017,EXTENDED HOPE,AMAZON EU,24.10,EQUIPMENT,DIRECT MARKETING-OTHER DIRECT MARKETERS/NOT ELSEW.
24/09/2017,ACL CENTRAL EXPENDITURE,FACEBK RU96DCWT82,40.01,PUBLICITY,ADVERTISING SERVICES
24/09/2017,CHEYNE WALK COMMUNITY HOME,TESCO STORES 2560,15.70,PURCHASE OF FOOD (RAW MATERIALS),"GROCERY STORES, SUPERMARKETS"
24/09/2017,RECRUITMENT,FACEBK 6Z74FCEQ82,200.02,STAFF ADVERTISING ,ADVERTISING SERVICES
24/09/2017,HOLLAND CLOSE RESIDENTIAL HOME,WILKO RETAIL LIMIT,23.50,EQUIPMENT,HOUSEHOLD APPLIANCE STORES
25/09/2017,NW SECTION 17 CARE,PREMIER INN,283.50,CHILDREN ACT SEC 17 PAYMENTS,PREMIER INN
25/09/2017,TRAINING AND DEVELOPMENT,BRITISH A,258.55,TRAINING EXPENSES EXTERNAL GENERAL,BRITISH A
25/09/2017,TRANSPORT,BUCK & HICKMAN,603.76,OPERATIONAL FIRE EQUIPMENT,HARDWARE EQUIPMENT AND SUPPLIES
25/09/2017,RUTH HOUSE,NEXT RETAIL LTD,22.00,EQUIPMENT,FAMILY CLOTHING STORES
25/09/2017,RUTH HOUSE,B & Q 1029,28.14,EQUIPMENT,"BUILDING MATERIALS, LUMBER STORES"
25/09/2017,RUTH HOUSE,AMAZON UK MARKETPLACE,28.71,EDUC VISITS/HOLS/CAMPS/TOYS,BOOK STORES
25/09/2017,RUTH HOUSE,PAYPAL  RAMAN73,18.99,EDUC VISITS/HOLS/CAMPS/TOYS,MISCELLANEOUS AND SPECIALTY RETAIL STORES
25/09/2017,RUTH HOUSE,WWW.PARENTMAIL.CO.,50.00,PURCHASE OF FOOD (RAW MATERIALS),SCHOOLS & EDUCATIONAL SVC-NOT ELSEWHERE CLASSIFIED
25/09/2017,FAMILIES REIGATE AND BANSTREAD,LIDL UK,3.20,PURCHASE OF FOOD (RAW MATERIALS),"GROCERY STORES, SUPERMARKETS"
25/09/2017,FAIRCROFT COMMUNITY HOME,SAINSBURYS 0687,29.95,PURCHASE OF FOOD (RAW MATERIALS),"GROCERY STORES, SUPERMARKETS"
25/09/2017,MALLOW CRESCENT,TESCO STORE 2590,67.72,PURCHASE OF FOOD (RAW MATERIALS),"GROCERY STORES, SUPERMARKETS"
25/09/2017,SERVICE DELIVERY SENIOR MANAGEMENT,POST OFFICE COUNTER,11.00,POSTAGE AND COURIER CHARGES,POSTAL SERVICES-GOVERNMENT ONLY
25/09/2017,TRAINING AND DEVELOPMENT,TRAVELODGE,310.00,TRAINING EXPENSES EXTERNAL GENERAL,TRAVELODGE
25/09/2017,CHEYNE WALK COMMUNITY HOME,TESCO STORES 2560,22.00,PURCHASE OF FOOD (RAW MATERIALS),"GROCERY STORES, SUPERMARKETS"
25/09/2017,FAMILIES GUILDFORD,TESCO-STORES 2590,5.25,REFRESHMENT COSTS,"GROCERY STORES, SUPERMARKETS"
25/09/2017,SUPERFAST BROADBAND ECONOMIC DEVELOPMENT,LAYERSHIFT,60.00,COMPUTER SERVICES,COMPUTER NETWORK/INFORMATION SERVICES
25/09/2017,TS SERVICE MANAGEMENT,WWW.PUBLICPOLICYEXCHAN,354.00,SUBSISTENCE AND CONFERENCE EXPENSES,BUSINESS SERVICES-NOT ELSEWHERE CLASSIFIED
25/09/2017,HILLSIDE,SAINSBURYS SACAT 0675,44.91,PURCHASE OF FOOD (RAW MATERIALS),"GROCERY STORES, SUPERMARKETS"
25/09/2017,HILLSIDE,SAINSBURYS SACAT 0675,16.15,PURCHASE OF FOOD (RAW MATERIALS),"GROCERY STORES, SUPERMARKETS"
25/09/2017,COVEHAM,SAINSBURYS SACAT 0687,92.85,REFRESHMENT COSTS,"GROCERY STORES, SUPERMARKETS"
25/09/2017,ACL CENTRAL EXPENDITURE,TESCO STORE 3149,77.15,REFRESHMENT COSTS,"GROCERY STORES, SUPERMARKETS"
25/09/2017,ACL CENTRAL EXPENDITURE,TESCO STORE 2160,70.96,REFRESHMENT COSTS,"GROCERY STORES, SUPERMARKETS"
25/09/2017,MALLOW CRESCENT,SAINSBURYS TO YOU 0652,21.45,PURCHASE OF FOOD (RAW MATERIALS),"GROCERY STORES, SUPERMARKETS"
25/09/2017,MALLOW CRESCENT,SAINSBURYS TO YOU 0652,110.85,PURCHASE OF FOOD (RAW MATERIALS),"GROCERY STORES, SUPERMARKETS"
25/09/2017,ROW MAINTENANCE,MAINLANDAGGREGATES,388.61,PURCHASE OF BUILDING MATERIALS,INDUSTRIAL SUPPLIES NOT ELSEWHERE CLASSIFIED
25/09/2017,FAMILIES SPELTHORNE,TESCO STORES-2047,5.88,REFRESHMENT COSTS,"GROCERY STORES, SUPERMARKETS"
25/09/2017,EXTENDED HOPE,TESCO STORE 2590,11.41,PURCHASE OF FOOD (RAW MATERIALS),"GROCERY STORES, SUPERMARKETS"
25/09/2017,EXTENDED HOPE,TESCO STORE 2590,113.42,PURCHASE OF FOOD (RAW MATERIALS),"GROCERY STORES, SUPERMARKETS"
25/09/2017,GODALMING YC,SAINSBURYS SACAT 0670,14.75,PURCHASE OF FOOD (RAW MATERIALS),"GROCERY STORES, SUPERMARKETS"
25/09/2017,GODALMING YC,ROBERT DYAS HOLDNG LTD,18.93,EQUIPMENT,HARDWARE STORES
25/09/2017,TARGETED INTERVENTION,ALLSAINTS,4.70,EDUC VISITS/HOLS/CAMPS/TOYS,"EATING PLACES, RESTAURANTS"
25/09/2017,TARGETED INTERVENTION,BLETCHINGLEY GOLF CLUB,6.75,EDUC VISITS/HOLS/CAMPS/TOYS,SPORTING GOODS STORES
25/09/2017,TARGETED INTERVENTION,BLETCHINGLEY GOLF CLUB,2.25,EDUC VISITS/HOLS/CAMPS/TOYS,SPORTING GOODS STORES
25/09/2017,TARGETED INTERVENTION,TESCO STORE 2160,6.79,EDUC VISITS/HOLS/CAMPS/TOYS,"GROCERY STORES, SUPERMARKETS"
25/09/2017,TARGETED INTERVENTION,COSTA COFFEE 43038140,5.20,EDUC VISITS/HOLS/CAMPS/TOYS,FAST FOOD RESTAURANTS
25/09/2017,LIBERTAS COMMUNITY HOME,SAINSBURYS 0652,13.35,PURCHASE OF FOOD (RAW MATERIALS),"GROCERY STORES, SUPERMARKETS"
25/09/2017,LIBERTAS COMMUNITY HOME,SAINSBURYS 0652,1.75,EQUIPMENT,"GROCERY STORES, SUPERMARKETS"
25/09/2017,LIBERTAS COMMUNITY HOME,SAINSBURYS 0652,136.96,PURCHASE OF FOOD (RAW MATERIALS),"GROCERY STORES, SUPERMARKETS"
25/09/2017,COMMUNICATIONS TEAM,AMAZON UK MARKETPLACE,14.30,STATIONERY,BOOK STORES
25/09/2017,MALLOW CRESCENT,SAINSBURYS TO YOU 0652,4.50,PURCHASE OF FOOD (RAW MATERIALS),"GROCERY STORES, SUPERMARKETS"
25/09/2017,MALLOW CRESCENT,SAINSBURYS TO YOU 0652,127.40,PURCHASE OF FOOD (RAW MATERIALS),"GROCERY STORES, SUPERMARKETS"
25/09/2017,HOPE SERVICE - WEST,SAINSBURYS TO YOU 0686,103.73,PURCHASE OF FOOD (RAW MATERIALS),"GROCERY STORES, SUPERMARKETS"
25/09/2017,INNOVATION FUND,INC SOC MUSICIANS,482.85,TRAINING EXPENSES EXTERNAL GENERAL,DIRECT MARKETING-COMBINATION CATALOG/RETAIL MERCH.
25/09/2017,FAIRCROFT COMMUNITY HOME,TESCO STORE 2812,170.25,PURCHASE OF FOOD (RAW MATERIALS),"GROCERY STORES, SUPERMARKETS"
25/09/2017,TRANSPORT,DESIGN SIGNAGE SOLUTIO,66.00,VEHICLE REPAIRS AND MAINTENANCE,"QUICK COPY,REPRODUCTION AND BLUEPRINTING SERVICES"
25/09/2017,LOWER MOLE COUNTRYSIDE PROJECT,SAINSBURYS 0683,66.40,REFRESHMENT COSTS,"GROCERY STORES, SUPERMARKETS"
25/09/2017,LOWER MOLE COUNTRYSIDE PROJECT,HALFORDS 0731,11.38,PURCHASE OF BUILDING MATERIALS,BICYCLE SHOPS-SALES AND SERVICE
25/09/2017,COVEHAM,CURRYS SUPERSTORE,499.98,EQUIPMENT,ELECTRONIC SALES
25/09/2017,TRANSPORT CO-ORDINATION TEAM,DVSA OLCS PORTAL 3,401.00,LICENCE FEES,GOVERNMENT SERVICES-NOT ELSEWHERE CLASSIFIED
25/09/2017,SOLD CATERING,TESCO STORE 2590,28.17,PURCHASE OF FOOD (RAW MATERIALS),"GROCERY STORES, SUPERMARKETS"
25/09/2017,SOLD ESTATES MANAGEMENT,B & Q 1029,31.62,EQUIPMENT,"BUILDING MATERIALS, LUMBER STORES"
25/09/2017,SOLD PROFESSIONAL TRAINING AND DEVLPMNT,WALTON FIRS ACTIVITY C,230.00,TRAINING EXPENSES EXTERNAL GENERAL,RECREATIONAL AND SPORTING CAMPS
25/09/2017,AREA SCHOOLS OFFICER (NE),SURREY CC CARD PAY,50.00,TRAINING EXPENSES EXTERNAL GENERAL,COMPUTER NETWORK/INFORMATION SERVICES
25/09/2017,SURREY THE GREAT WAR,NATIONAL MEMORIAL,-170.00,TRAINING EXPENSES EXTERNAL GENERAL,"GIFT, CARD, NOVELTY AND SOUVENIR SHOPS"
25/09/2017,SEND TRANSPORT COMMISSIONING,CARE.CITRIXONLINE.COM,238.80,COMPUTER SOFTWARE,DIRECT MARKETING-CONTINUITY/SUBSCRIPTION MERCHANTS
25/09/2017,COMMUNICATIONS TEAM,AMAZON UK MARKETPLACE,10.07,STATIONERY,BOOK STORES
26/09/2017,LANGDOWN STAFF COST,AMAZON.CO.UK,10.48,EQUIPMENT,BOOK STORES
26/09/2017,ROW VOLUNTEERS WEST                     ,METHOLD VEHICLE HIRE,40.00,HIRE OF VEHICLES,AUTOMOBILE RENTAL AGENCY-NOT ELSEWHERE CLASSIFIED
26/09/2017,ENSEMBLES & TOURS,WWW.BAX-SHOP.CO.UK,84.95,EQUIPMENT,ELECTRONIC SALES
26/09/2017,NW SECTION 17 CARE,PREMIER INN,675.00,INDEPENDENT LIVING PLACEMENTS,PREMIER INN
26/09/2017,NW SECTION 17 CARE,PREMIER INN,626.00,INDEPENDENT LIVING PLACEMENTS,PREMIER INN
26/09/2017,NW SECTION 17 CARE,PREMIER INN,296.00,INDEPENDENT LIVING PLACEMENTS,PREMIER INN
26/09/2017,TRAINING AND DEVELOPMENT,PREMIER INN,83.99,SUBSISTENCE AND CONFERENCE EXPENSES,PREMIER INN
26/09/2017,DEVELOPMENT TEAM,"CLOUD9 IDE, INC",5.93,COMPUTER SERVICES,"COMPUTERS, COMPUTER PERIPHERAL EQUIPMENT, SOFTWARE"
26/09/2017,TARGETED INTERVENTION,STARBUCKS,12.10,EDUC VISITS/HOLS/CAMPS/TOYS,FAST FOOD RESTAURANTS
26/09/2017,TARGETED INTERVENTION,FREEDOM LEISURE,1.50,EDUC VISITS/HOLS/CAMPS/TOYS,GOVERNMENT SERVICES-NOT ELSEWHERE CLASSIFIED
26/09/2017,TARGETED INTERVENTION,FREEDOM LEISURE,10.65,EDUC VISITS/HOLS/CAMPS/TOYS,GOVERNMENT SERVICES-NOT ELSEWHERE CLASSIFIED
26/09/2017,E&I - LOVE FOOD HATE WASTE              ,GOOGLE  ADWS2060179426,500.00,PUBLICITY,DIRECT MARKETING-CONTINUITY/SUBSCRIPTION MERCHANTS
26/09/2017,MASH,MILK & MORE OFFLINE,212.40,PURCHASE OF FOOD (RAW MATERIALS),"MISC FOOD STORE-CONVENIENCE,MRKT,SPLTY,VENDNG MACS"
26/09/2017,MASH,MILK & MORE OFFLINE,55.68,PURCHASE OF FOOD (RAW MATERIALS),"MISC FOOD STORE-CONVENIENCE,MRKT,SPLTY,VENDNG MACS"
26/09/2017,CHEYNE WALK COMMUNITY HOME,TESCO STORE 2560,35.75,REFRESHMENT COSTS,"GROCERY STORES, SUPERMARKETS"
26/09/2017,YSS YOUTH CENTRE IMPROVEMENTS,AMAZON UK MARKETPLACE,15.49,DAY TO DAY MAINTENANCE,BOOK STORES
26/09/2017,YSS YOUTH CENTRE IMPROVEMENTS,ARGOS RETAIL GROUP,19.99,EQUIPMENT,DISCOUNT STORES
26/09/2017,EQUIPMENT SCC BUDGET,METCALFE CATERING,20.86,EQUIPMENT,"EQUIP, FURNITURE, HOME FURNSHNGS STRS (EXCPT APPL)"
26/09/2017,TRANSPORT,INTRAMARK,380.40,"CLOTHING, UNIFORM AND LAUNDRY",MISCELLANEOUS AND SPECIALTY RETAIL STORES
26/09/2017,TRAINING PROPERTY,DENBIES OFFICE,300.00,VENUE COSTS (INCLUDING HIRE OF ROOMS),TOURIST ATTRACTIONS AND EXHIBITS
26/09/2017,COUNTY HALL,AMAZON UK MARKETPLACE,5.78,EQUIPMENT,BOOK STORES
26/09/2017,ACL CENTRAL EXPENDITURE,WWW.TIRANTI.CO.UK,77.69,EQUIPMENT,"ARTIST SUPPLY STORES, CRAFT SHOPS"
26/09/2017,RUTH HOUSE,PAYPAL  CLOSEREJ,30.00,FURNITURE,MISCELLANEOUS AND SPECIALTY RETAIL STORES
26/09/2017,RUTH HOUSE,PAYPAL  KIMRAINBOWV,25.00,EQUIPMENT,MISCELLANEOUS AND SPECIALTY RETAIL STORES
26/09/2017,FAIRCROFT COMMUNITY HOME,UPAY,15.00,REFRESHMENT COSTS,"EATING PLACES, RESTAURANTS"
26/09/2017,TARGETED INTERVENTION,THE SCULPTURE PARK,30.00,EDUC VISITS/HOLS/CAMPS/TOYS,TOURIST ATTRACTIONS AND EXHIBITS
26/09/2017,TARGETED INTERVENTION,THE GARDEN POD,4.90,EDUC VISITS/HOLS/CAMPS/TOYS,"EATING PLACES, RESTAURANTS"
26/09/2017,TARGETED INTERVENTION,FREEDOM LEISURE,11.50,EDUC VISITS/HOLS/CAMPS/TOYS,GOVERNMENT SERVICES-NOT ELSEWHERE CLASSIFIED
26/09/2017,TARGETED INTERVENTION,FREEDOM LEISURE,28.00,EDUC VISITS/HOLS/CAMPS/TOYS,GOVERNMENT SERVICES-NOT ELSEWHERE CLASSIFIED
26/09/2017,TARGETED INTERVENTION,STARBUCKS,8.65,EDUC VISITS/HOLS/CAMPS/TOYS,FAST FOOD RESTAURANTS
26/09/2017,ACL CENTRAL EXPENDITURE,TESCO STORE 2160,108.47,REFRESHMENT COSTS,"GROCERY STORES, SUPERMARKETS"
26/09/2017,ACL CENTRAL EXPENDITURE,TESCO STORE 2160,-.50,REFRESHMENT COSTS,"GROCERY STORES, SUPERMARKETS"
26/09/2017,TRAINING AND DEVELOPMENT,GLASGOW POND HOTEL,183.60,TRAINING EXPENSES EXTERNAL GENERAL,"LODGING-HOTELS,MOTELS,RESORTS-NOT CLASSIFIED"
26/09/2017,TRAINING AND DEVELOPMENT,HI RUGBY NORTHAMPT,92.00,SUBSISTENCE AND CONFERENCE EXPENSES,"LODGING-HOTELS,MOTELS,RESORTS-NOT CLASSIFIED"
26/09/2017,TRAINING AND DEVELOPMENT,WWW.OLDBRIDGEHOTEL.COM,"1,466.00",TRAINING EXPENSES EXTERNAL GENERAL,"LODGING-HOTELS,MOTELS,RESORTS-NOT CLASSIFIED"
26/09/2017,TARGETED INTERVENTION,FOODWISE HORLEY,7.23,EDUC VISITS/HOLS/CAMPS/TOYS,"GROCERY STORES, SUPERMARKETS"
26/09/2017,TARGETED INTERVENTION,SAINSBURYS 0670,4.70,EDUC VISITS/HOLS/CAMPS/TOYS,"GROCERY STORES, SUPERMARKETS"
26/09/2017,TARGETED INTERVENTION,KITKABIN LTD,6.00,EDUC VISITS/HOLS/CAMPS/TOYS,SPORTING GOODS STORES
26/09/2017,TARGETED INTERVENTION,KITKABIN LTD,11.00,EDUC VISITS/HOLS/CAMPS/TOYS,SPORTING GOODS STORES
26/09/2017,IMT CRITICAL ENVIRONMENTS,AMAZON EU,39.88,REFRESHMENT COSTS,DIRECT MARKETING-OTHER DIRECT MARKETERS/NOT ELSEW.
26/09/2017,NE EDUCATION PSYCHOLOGISTS,ACAMH LTD,30.00,TRAINING EXPENSES EXTERNAL GENERAL,DIRECT MARKETING-COMBINATION CATALOG/RETAIL MERCH.
26/09/2017,HOPE SERVICE - WEST,SAINSBURYS 0683,96.64,PURCHASE OF FOOD (RAW MATERIALS),"GROCERY STORES, SUPERMARKETS"
26/09/2017,CHILDREN'S RIGHTS TEAM,TESCO STORES 6542,6.20,REFRESHMENT COSTS,"GROCERY STORES, SUPERMARKETS"
26/09/2017,VIRTUAL SCHOOL FOR LAC PUPIL PREMIUM,SURREY CC CARD PAY,50.00,SUBSISTENCE AND CONFERENCE EXPENSES,COMPUTER NETWORK/INFORMATION SERVICES
26/09/2017,TRAINING-POLICY AND PERFORMANCE TEAM,WWW.WESTMINSTER-BRIEFI,294.00,TRAINING EXPENSES EXTERNAL GENERAL,"SCHOOLS, BUSINESS AND SECRETARIAL"
26/09/2017,WOODLANDS COMMUNITY HOME,W M MORRISONS,20.00,FIXTURES AND FITTINGS,"GROCERY STORES, SUPERMARKETS"
26/09/2017,WOODLANDS COMMUNITY HOME,SPORTSDIRECT 234,110.74,"CLOTHING, UNIFORM AND LAUNDRY",SPORTING GOODS STORES
26/09/2017,DRAMA WARDROBE,APPLIANCEREPAIRS,123.60,DAY TO DAY MAINTENANCE,COMPUTER SOFTWARE STORES
26/09/2017,HOPE SERVICE - WEST,SAINSBURYS SACAT(4409),4.10,NEWSPAPER AND PERIODICALS,"GROCERY STORES, SUPERMARKETS"
26/09/2017,ACL CENTRAL EXPENDITURE,AMAZON UK MARKETPLACE,16.99,EQUIPMENT,BOOK STORES
26/09/2017,ACL CENTRAL EXPENDITURE,WWW.ARTDISCOUNT.CO.UK,110.00,EQUIPMENT,STATIONERY/OFFICE SUPPLIES/PRINTING & WRITING PAP.
26/09/2017,LIBERTAS COMMUNITY HOME,HORSE & GROOM,120.55,EDUC VISITS/HOLS/CAMPS/TOYS,"EATING PLACES, RESTAURANTS"
26/09/2017,HILLSIDE,SAINSBURYS 0675,11.50,PURCHASE OF FOOD (RAW MATERIALS),"GROCERY STORES, SUPERMARKETS"
26/09/2017,HILLSIDE,SAINSBURYS 0675,101.53,PURCHASE OF FOOD (RAW MATERIALS),"GROCERY STORES, SUPERMARKETS"
26/09/2017,CHEYNE WALK COMMUNITY HOME,CO-OP GROUP PETROL,11.71,PURCHASE OF FOOD (RAW MATERIALS),SERVICE STATIONS WITH OR WITHOUT ANCILLARY SERVICE
26/09/2017,TS SERVICE MANAGEMENT,NEWSWEAVER,360.00,PUBLICITY,"COMPUTERS, COMPUTER PERIPHERAL EQUIPMENT, SOFTWARE"
26/09/2017,PROPERTY OPERATIONS TEAM,GUILDFORD LOCK & SAFE,28.98,PURCHASE OF BUILDING MATERIALS,HARDWARE EQUIPMENT AND SUPPLIES
26/09/2017,TRANSPORT,PAYPAL  LPGREIGAN,135.00,VEHICLE REPAIRS AND MAINTENANCE,"AUTOMOTIVE PARTS, ACCESSORIES STORES"
26/09/2017,BURBANK COMMUNITY HOME,B & Q 1029,55.28,EQUIPMENT,"BUILDING MATERIALS, LUMBER STORES"
26/09/2017,STUDENT FARECARD,SURREY CC CARD PAY,25.00,NON-STAFF RELATED TRANSPORT COSTS,COMPUTER NETWORK/INFORMATION SERVICES
26/09/2017,STUDENT FARECARD,SURREY CC CARD PAY,25.00,NON-STAFF RELATED TRANSPORT COSTS,COMPUTER NETWORK/INFORMATION SERVICES
26/09/2017,HILLSIDE,TK MAXX,24.98,"CLOTHING, UNIFORM AND LAUNDRY",VARIETY STORES
26/09/2017,LEAP WOKING,ARGOS LTD,10.97,EQUIPMENT,DISCOUNT STORES
26/09/2017,LEAP WOKING,HOBBYCRAFT,66.60,EQUIPMENT,"ARTIST SUPPLY STORES, CRAFT SHOPS"
26/09/2017,LEAVING CARE PACKAGES,TRAVELODGE,52.25,OTHER COMMUNITY CARE VOL,TRAVELODGE
26/09/2017,HERITAGE PUBLIC SERVICE,W M MORRISONS,28.96,REFRESHMENT COSTS,"GROCERY STORES, SUPERMARKETS"
26/09/2017,LANGDOWN STAFF COST,AMAZON.CO.UK,3.25,EQUIPMENT,BOOK STORES
26/09/2017,ROW VOLUNTEERS WEST                     ,ESSO HOGS BACK SSTN,15.03,PETROL/DIESEL ALL OFF BUSINESS,SERVICE STATIONS WITH OR WITHOUT ANCILLARY SERVICE
26/09/2017,FARNHAM LIBRARY,AMAZON UK MARKETPLACE,17.73,LIBRARY RESOURCES,BOOK STORES
26/09/2017,FARNHAM LIBRARY,AMAZON UK MARKETPLACE,17.72,LIBRARY RESOURCES,BOOK STORES
26/09/2017,STUDENT FARECARD,SURREY CC CARD PAY,-25.00,NON-STAFF RELATED TRANSPORT COSTS,COMPUTER NETWORK/INFORMATION SERVICES
26/09/2017,STUDENT FARECARD,SURREY CC CARD PAY,-25.00,NON-STAFF RELATED TRANSPORT COSTS,COMPUTER NETWORK/INFORMATION SERVICES
26/09/2017,SOLD DAY TO DAY OPERATIONS,AMAZON UK MARKETPLACE,12.91,PURCHASE OF FOOD (RAW MATERIALS),BOOK STORES
26/09/2017,SOLD DAY TO DAY OPERATIONS,AMAZON UK MARKETPLACE,16.50,EQUIPMENT,BOOK STORES
26/09/2017,ENSEMBLES & TOURS,WWW.STUDIO-MUSIC.C,49.50,EQUIPMENT,MISCELLANEOUS PUBLISHING AND PRINTING
26/09/2017,FARNHAM LIBRARY,AMAZON.CO.UK,17.72,LIBRARY RESOURCES,BOOK STORES
26/09/2017,FAMILIES SPELTHORNE,TESCO STORES-2047,1.50,REFRESHMENT COSTS,"GROCERY STORES, SUPERMARKETS"
26/09/2017,WOODLANDS COMMUNITY HOME,TESCO STORES 5706,6.49,PURCHASE OF FOOD (RAW MATERIALS),"GROCERY STORES, SUPERMARKETS"
26/09/2017,SW EDUCATION PSYCHOLOGISTS,AMAZON UK MARKETPLACE,78.41,BOOKS,BOOK STORES
26/09/2017,TARGETED INTERVENTION,SAINSBURYS SACAT 0680,10.00,EDUC VISITS/HOLS/CAMPS/TOYS,"GROCERY STORES, SUPERMARKETS"
26/09/2017,TARGETED INTERVENTION,SAINSBURYS SACAT 0680,9.90,EDUC VISITS/HOLS/CAMPS/TOYS,"GROCERY STORES, SUPERMARKETS"
27/09/2017,COVEHAM,ARGOS RETAIL GROUP,59.98,EQUIPMENT,DISCOUNT STORES
27/09/2017,TARGETED INTERVENTION,TOP GOLF LTD,10.55,EDUC VISITS/HOLS/CAMPS/TOYS,"CLUBS-CNTRY,MBRSHIP(ATHLET,REC,SPRTS,PRIVATE GOLF"
27/09/2017,TARGETED INTERVENTION,COSTA CHERTSEY,2.60,EDUC VISITS/HOLS/CAMPS/TOYS,"MISC FOOD STORE-CONVENIENCE,MRKT,SPLTY,VENDNG MACS"
27/09/2017,HERITAGE PUBLIC SERVICE,W M MORRISONS,13.62,REFRESHMENT COSTS,"GROCERY STORES, SUPERMARKETS"
27/09/2017,RBDM - GENERAL,AMAZON UK MARKETPLACE,22.99,REFRESHMENT COSTS,BOOK STORES
27/09/2017,LEGAL SUPPORT TEAM,RINGGO,9.40,EXPENSES,GOVERNMENT SERVICES-NOT ELSEWHERE CLASSIFIED
27/09/2017,SW TEACHERS,AMAZON EU,62.57,BOOKS,DIRECT MARKETING-OTHER DIRECT MARKETERS/NOT ELSEW.
